{"text_format":"3","workbook":"xlsx","n_sheets":15,"sheets":["Jak používat tuto šablonu","Seznam studentů","Srpen","Září","Říjen","Listopad","Prosinec","Leden","Únor","Březen","Duben","Květen","Červen","Červenec","Sestava prezence studentů"],"not_rendered":{"defined_names":16},"read":"whole","date_system":"1900"}

{"sheet":"Jak používat tuto šablonu","index":0,"n_rows":25,"n_cols":5,"rows_kept":25,"merged":[[3,2,3,12],[4,4,4,12],[5,4,5,12],[6,4,6,12],[7,4,7,12],[8,4,8,7],[11,2,11,12],[12,4,12,12],[13,4,13,12],[14,4,14,12],[17,2,17,12],[18,4,18,12],[19,4,19,12],[20,4,20,12],[21,4,21,12],[24,2,24,12]]}
["JAK POUŽÍVAT TUTO ŠABLONU"]
[]
[null,"KDE MÁM ZAČÍT?"]
[null,null,"Než budete moct začít sledovat docházku studentů, je potřeba udělat několik kroků:"]
[{"$nulls":3},"1.","Zadejte studenty: Na listu Seznam studentů zadejte informace o jednotlivých studentech, jako jsou jména zákonných zástupců a jejich kontakty. Důležitou položkou je číslo studenta, protože tvoří pro každého studenta jedinečný identifikátor a používá se v celém sešitu pro různé rozevírací seznamy s čísly studentů k usnadnění zadávání dat. Informace zadané na listu Seznam studentů se používají i na dalších listech, jako je Sestava prezence studentů a měsíční záznamy prezence."]
[{"$nulls":3},"2.","Zadejte školní kalendářní rok: Na listu docházky Srpen klikněte na číselník vpravo nahoře v záhlaví a nastavte školní kalendářní rok. Tato změna způsobí aktualizaci záhlaví všech měsíčních záznamů prezence v tomto sešitu. (Tlačítko číselníku se nevytiskne.)"]
[{"$nulls":3},"3.","(Volitelné) Upravte barvy v sešitu: Nejdřív přejděte na poslední list, Sestavu prezence studentů, a na kartě Revize klikněte ve skupině Změny na tlačítko Odemknout list. Pak na kartě Rozložení stránky ve skupině Motivy klikněte na tlačítko Barvy a v galerii barev vyberte jinou barevnou sadu motivu. Až podle potřeby změníte barvy a další prvky motivu, vraťte se na list Sestava prezence studentů a na kartě Revize ve skupině Změny klikněte na tlačítko Zamknout list. Potom klikněte na tlačítko OK."]
[{"$nulls":4},"Tip: Vytvořte vlastní barevnou sadu motivu odpovídající barvám školy! Na kartě Rozložení stránky ve skupině Motivy klikněte na tlačítko Barvy a pak v dolní části galerie barev klikněte na Vytvořit nové barvy motivu. Další informace o vytváření vlastní barevné sady získáte v následujícím tématu nápovědy: "]
[{"$nulls":4},"Přizpůsobte si motiv dokumentu."]
[]
[null,"ZADAL(A) JSEM STUDENTY, CO TEĎ?"]
[null,null,"Po zadání studentů na listu Seznam studentů můžete začít sledovat jejich prezenci v příslušném školním roce takto:"]
[{"$nulls":3},"1.","Pokud chcete do záznamu prezence přidat studenta, klikněte na buňku pod sloupcem Č. studenta a vyberte v seznamu číslo. Po výběru čísla se automaticky zobrazí jméno studenta. "]
[{"$nulls":4},"Tip: Ušetřete si práci při zadávání dat! Po zadání studentů v jednom měsíci vyberte zadaná čísla studentů, zkopírujte je a vložte do sloupce Č. studenta pro zbývající měsíce. "]
[{"$nulls":3},"2.","Pak zadejte záznam prezence pro jednotlivé dny měsíce pomocí typů prezence v legendě barev. Ve sloupci Souhrny se pro každého studenta automaticky vypočítá docházka studentů podle jednotlivých typů prezence. Celkové absence se pro každý den automaticky počítají v dolní části tabulky v řádku Celkem."]
[]
[null,"JAK SE DAJÍ PŘIDAT DALŠÍ STUDENTI DO MĚSÍČNÍHO ZÁZNAMU PREZENCE?"]
[null,null,"Listy měsíčního záznamu prezence a seznamu studentů jsou tabulky Excelu. Pokud chcete do tabulky v Excelu přidat nové řádky, udělejte jeden z následujících kroků:"]
[{"$nulls":3},"● ","Pokud tabulka nemá řádek Celkem, začněte psát do buňky těsně pod tabulkou a tabulka se automaticky roztáhne po stisknutí klávesy Enter nebo Tab."]
[{"$nulls":3},"● ","Umístěte kurzor do poslední buňky nad řádek Celkem (třeba nad buňku Dny absence) a stiskněte klávesu Tab."]
[{"$nulls":3},"● ","Klikněte v tabulce pravým tlačítkem myši a v rozevírací nabídce přejděte na příkaz Vložit a pak klikněte na Řádky tabulky nad nebo Řádky tabulky pod. "]
[{"$nulls":3},"● ","Přesuňte myš do pravého dolního rohu tabulky na úchyt pro změnu velikosti tabulky a tažením směrem dolů zvětšete počet řádků tabulky."]
[]
[null,"DÁ SE ZOBRAZIT DOCHÁZKA STUDENTA V CELÉM ŠKOLNÍM ROCE?"]
[null,null,"Poslední list v sešitu – Sestava prezence studentů – umožňuje sledovat docházku od začátku roku. Pokud chcete zobrazit sestavu pro určitého studenta, klikněte na buňku pod sloupcem Č. studenta a v rozevíracím seznamu vyberte číslo. Automaticky se zobrazí informace, které jste zadali na listu Seznam studentů pro vybraného studenta. Když použijete Sestavu prezence studentů poprvé, je potřeba zadat hodnoty Škola, Stupeň, Učitel(ka) a Místnost. Tyto informace se při výběru jiného studenta nezmění. "]

{"sheet":"Seznam studentů","index":1,"n_rows":8,"n_cols":19,"rows_kept":8}
["SEZNAM STUDENTŮ"]
[]
[null,"Č. studenta","Křestní jméno studenta","Příjmení studenta","Pohlaví","Datum narození","Rodič nebo zákonný zástupce 1","Rodič/zák.zástupce 1 – vztah","Rodič/zák.zástupce 1 – č.do práce","Rodič/zák.zástupce 1 – č.domů","Rodič/zák.zástupce 2","Rodič/zák.zástupce 2 – vztah","Rodič/zák.zástupce 2 – č.do práce","Rodič/zák.zástupce 2 – č.domů","Nouzový kontakt","Nouzový kontakt – vztah","Nouzový kontakt – číslo do práce","Nouzový kontakt – číslo domů","Celé jméno studenta"]
[null,"S001","David","Burian","M","1997-03-28","Jiří","Burian",543222111,545555789,"Dita Burianová","Matka",543222111,545555789,"Jan Kotas","Dědeček",549125111,549125125,{"$f":"SeznamStudentů[[#This Row],[Křestní jméno studenta]]&\" \" &SeznamStudentů[[#This Row],[Příjmení studenta]]","v":"David Burian"}]
[null,"S002","Student",2,{"$nulls":14},{"$f":"SeznamStudentů[[#This Row],[Křestní jméno studenta]]&\" \" &SeznamStudentů[[#This Row],[Příjmení studenta]]","v":"Student 2"}]
[null,"S003","Student",3,{"$nulls":14},{"$f":"SeznamStudentů[[#This Row],[Křestní jméno studenta]]&\" \" &SeznamStudentů[[#This Row],[Příjmení studenta]]","v":"Student 3"}]
[null,"S004","Student",4,{"$nulls":14},{"$f":"SeznamStudentů[[#This Row],[Křestní jméno studenta]]&\" \" &SeznamStudentů[[#This Row],[Příjmení studenta]]","v":"Student 4"}]
[null,"S005","Student",5,{"$nulls":14},{"$f":"SeznamStudentů[[#This Row],[Křestní jméno studenta]]&\" \" &SeznamStudentů[[#This Row],[Příjmení studenta]]","v":"Student 5"}]

{"sheet":"Srpen","index":2,"n_rows":12,"n_cols":39,"rows_kept":12,"merged":[[4,34,4,38]]}
["ZÁZNAM PREZENCE STUDENTŮ",{"$nulls":36},"Zahájení školního roku:",2012]
[]
[null,null,"LEGENDA BAREV ","Z","Zpoždění",null,null,"O","Omluven(a)",null,null,"N","Neomluven(a)",null,null,"P","Přítomnost",null,null,"Ne","Není vyučování"]
[]
[null,{"$f":"DATE(KalendářníRok,8,1)","v":"2012-08-01"},null,{"$f":"TEXT(WEEKDAY(DATE(KalendářníRok,8,1),1),\"aaa\")","v":"st"},{"$f":"TEXT(WEEKDAY(DATE(KalendářníRok,8,2),1),\"aaa\")","v":"čt"},{"$f":"TEXT(WEEKDAY(DATE(KalendářníRok,8,3),1),\"aaa\")","v":"pá"},{"$f":"TEXT(WEEKDAY(DATE(KalendářníRok,8,4),1),\"aaa\")","v":"so"},{"$f":"TEXT(WEEKDAY(DATE(KalendářníRok,8,5),1),\"aaa\")","v":"ne"},{"$f":"TEXT(WEEKDAY(DATE(KalendářníRok,8,6),1),\"aaa\")","v":"po"},{"$f":"TEXT(WEEKDAY(DATE(KalendářníRok,8,7),1),\"aaa\")","v":"út"},{"$f":"TEXT(WEEKDAY(DATE(KalendářníRok,8,8),1),\"aaa\")","v":"st"},{"$f":"TEXT(WEEKDAY(DATE(KalendářníRok,8,9),1),\"aaa\")","v":"čt"},{"$f":"TEXT(WEEKDAY(DATE(KalendářníRok,8,10),1),\"aaa\")","v":"pá"},{"$f":"TEXT(WEEKDAY(DATE(KalendářníRok,8,11),1),\"aaa\")","v":"so"},{"$f":"TEXT(WEEKDAY(DATE(KalendářníRok,8,12),1),\"aaa\")","v":"ne"},{"$f":"TEXT(WEEKDAY(DATE(KalendářníRok,8,13),1),\"aaa\")","v":"po"},{"$f":"TEXT(WEEKDAY(DATE(KalendářníRok,8,14),1),\"aaa\")","v":"út"},{"$f":"TEXT(WEEKDAY(DATE(KalendářníRok,8,15),1),\"aaa\")","v":"st"},{"$f":"TEXT(WEEKDAY(DATE(KalendářníRok,8,16),1),\"aaa\")","v":"čt"},{"$f":"TEXT(WEEKDAY(DATE(KalendářníRok,8,17),1),\"aaa\")","v":"pá"},{"$f":"TEXT(WEEKDAY(DATE(KalendářníRok,8,18),1),\"aaa\")","v":"so"},{"$f":"TEXT(WEEKDAY(DATE(KalendářníRok,8,19),1),\"aaa\")","v":"ne"},{"$f":"TEXT(WEEKDAY(DATE(KalendářníRok,8,20),1),\"aaa\")","v":"po"},{"$f":"TEXT(WEEKDAY(DATE(KalendářníRok,8,21),1),\"aaa\")","v":"út"},{"$f":"TEXT(WEEKDAY(DATE(KalendářníRok,8,22),1),\"aaa\")","v":"st"},{"$f":"TEXT(WEEKDAY(DATE(KalendářníRok,8,23),1),\"aaa\")","v":"čt"},{"$f":"TEXT(WEEKDAY(DATE(KalendářníRok,8,24),1),\"aaa\")","v":"pá"},{"$f":"TEXT(WEEKDAY(DATE(KalendářníRok,8,25),1),\"aaa\")","v":"so"},{"$f":"TEXT(WEEKDAY(DATE(KalendářníRok,8,26),1),\"aaa\")","v":"ne"},{"$f":"TEXT(WEEKDAY(DATE(KalendářníRok,8,27),1),\"aaa\")","v":"po"},{"$f":"TEXT(WEEKDAY(DATE(KalendářníRok,8,28),1),\"aaa\")","v":"út"},{"$f":"TEXT(WEEKDAY(DATE(KalendářníRok,8,29),1),\"aaa\")","v":"st"},{"$f":"TEXT(WEEKDAY(DATE(KalendářníRok,8,30),1),\"aaa\")","v":"čt"},{"$f":"TEXT(WEEKDAY(DATE(KalendářníRok,8,31),1),\"aaa\")","v":"pá"},"Souhrny"]
[null,"Č. studenta","Jméno studenta","1","2","3","4","5","6","7","8","9","10","11","12","13","14","15","16","17","18","19","20","21","22","23","24","25","26","27","28","29","30","31","Z","O","N","P","Dny absence"]
[null,"S001",{"$f":"IFERROR(VLOOKUP(PrezenceZaSrpen[[#This Row],[Č. studenta]],SeznamStudentů[],18,FALSE),\"\")","v":"David Burian"},"P","P","Z","Z","P","Ne","Ne","P","P","O","P","P","Ne","Ne","P","P","P","P","P","Ne","Ne","P","P","P","P","P","Ne","Ne","P","P","P",{"$f":"COUNTIF(PrezenceZaSrpen[[#This Row],[1]:[31]],Kód1)","v":2},{"$f":"COUNTIF(PrezenceZaSrpen[[#This Row],[1]:[31]],Kód2)","v":1},{"$f":"COUNTIF(PrezenceZaSrpen[[#This Row],[1]:[31]],Kód3)","v":0},{"$f":"COUNTIF(PrezenceZaSrpen[[#This Row],[1]:[31]],Kód4)","v":20},{"$f":"SUM(PrezenceZaSrpen[[#This Row],[O]:[N]])","v":1}]
[null,"S002",{"$f":"IFERROR(VLOOKUP(PrezenceZaSrpen[[#This Row],[Č. studenta]],SeznamStudentů[],18,FALSE),\"\")","v":"Student 2"},"P","N","P","P","P","Ne","Ne","P","O","O","O","O","Ne","Ne","P","P","P","P","P","Ne","Ne","P","P","P","Z","Z","Ne","Ne","P","P","P",{"$f":"COUNTIF(PrezenceZaSrpen[[#This Row],[1]:[31]],Kód1)","v":2},{"$f":"COUNTIF(PrezenceZaSrpen[[#This Row],[1]:[31]],Kód2)","v":4},{"$f":"COUNTIF(PrezenceZaSrpen[[#This Row],[1]:[31]],Kód3)","v":1},{"$f":"COUNTIF(PrezenceZaSrpen[[#This Row],[1]:[31]],Kód4)","v":16},{"$f":"SUM(PrezenceZaSrpen[[#This Row],[O]:[N]])","v":5}]
[null,"S003",{"$f":"IFERROR(VLOOKUP(PrezenceZaSrpen[[#This Row],[Č. studenta]],SeznamStudentů[],18,FALSE),\"\")","v":"Student 3"},"P","O","P","P","P","Ne","Ne","P","P","N","P","P","Ne","Ne","P","P","P","P","P","Ne","Ne","P","P","O","O","P","Ne","Ne","P","P","P",{"$f":"COUNTIF(PrezenceZaSrpen[[#This Row],[1]:[31]],Kód1)","v":0},{"$f":"COUNTIF(PrezenceZaSrpen[[#This Row],[1]:[31]],Kód2)","v":3},{"$f":"COUNTIF(PrezenceZaSrpen[[#This Row],[1]:[31]],Kód3)","v":1},{"$f":"COUNTIF(PrezenceZaSrpen[[#This Row],[1]:[31]],Kód4)","v":19},{"$f":"SUM(PrezenceZaSrpen[[#This Row],[O]:[N]])","v":4}]
[null,"S004",{"$f":"IFERROR(VLOOKUP(PrezenceZaSrpen[[#This Row],[Č. studenta]],SeznamStudentů[],18,FALSE),\"\")","v":"Student 4"},"P","P","P","P","P","Ne","Ne","P","P","P","P","P","Ne","Ne","P","P","P","P","P","Ne","Ne","P","N","P","P","O","Ne","Ne","P","O","P",{"$f":"COUNTIF(PrezenceZaSrpen[[#This Row],[1]:[31]],Kód1)","v":0},{"$f":"COUNTIF(PrezenceZaSrpen[[#This Row],[1]:[31]],Kód2)","v":2},{"$f":"COUNTIF(PrezenceZaSrpen[[#This Row],[1]:[31]],Kód3)","v":1},{"$f":"COUNTIF(PrezenceZaSrpen[[#This Row],[1]:[31]],Kód4)","v":20},{"$f":"SUM(PrezenceZaSrpen[[#This Row],[O]:[N]])","v":3}]
[null,"S005",{"$f":"IFERROR(VLOOKUP(PrezenceZaSrpen[[#This Row],[Č. studenta]],SeznamStudentů[],18,FALSE),\"\")","v":"Student 5"},"P","P","P","P","P","Ne","Ne","P","P","P","P","P","Ne","Ne","P","P","P","P","P","Ne","Ne","P","P","P","P","P","Ne","Ne","P","P","P",{"$f":"COUNTIF(PrezenceZaSrpen[[#This Row],[1]:[31]],Kód1)","v":0},{"$f":"COUNTIF(PrezenceZaSrpen[[#This Row],[1]:[31]],Kód2)","v":0},{"$f":"COUNTIF(PrezenceZaSrpen[[#This Row],[1]:[31]],Kód3)","v":0},{"$f":"COUNTIF(PrezenceZaSrpen[[#This Row],[1]:[31]],Kód4)","v":23},{"$f":"SUM(PrezenceZaSrpen[[#This Row],[O]:[N]])","v":0}]
[null,null,"Celkem dny absence",{"$f":"COUNTIF(PrezenceZaSrpen[1],\"N\")+COUNTIF(PrezenceZaSrpen[1],\"O\")","v":0},{"$f":"COUNTIF(PrezenceZaSrpen[2],\"N\")+COUNTIF(PrezenceZaSrpen[2],\"O\")","v":2},{"$f":"COUNTIF(PrezenceZaSrpen[3],\"N\")+COUNTIF(PrezenceZaSrpen[3],\"O\")","v":0},{"$f":"COUNTIF(PrezenceZaSrpen[4],\"N\")+COUNTIF(PrezenceZaSrpen[4],\"O\")","v":0},{"$f":"COUNTIF(PrezenceZaSrpen[5],\"N\")+COUNTIF(PrezenceZaSrpen[5],\"O\")","v":0},{"$f":"COUNTIF(PrezenceZaSrpen[6],\"N\")+COUNTIF(PrezenceZaSrpen[6],\"O\")","v":0},{"$f":"COUNTIF(PrezenceZaSrpen[7],\"N\")+COUNTIF(PrezenceZaSrpen[7],\"O\")","v":0},{"$f":"COUNTIF(PrezenceZaSrpen[8],\"N\")+COUNTIF(PrezenceZaSrpen[8],\"O\")","v":0},{"$f":"COUNTIF(PrezenceZaSrpen[9],\"N\")+COUNTIF(PrezenceZaSrpen[9],\"O\")","v":1},{"$f":"COUNTIF(PrezenceZaSrpen[10],\"N\")+COUNTIF(PrezenceZaSrpen[10],\"O\")","v":3},{"$f":"COUNTIF(PrezenceZaSrpen[11],\"N\")+COUNTIF(PrezenceZaSrpen[11],\"O\")","v":1},{"$f":"COUNTIF(PrezenceZaSrpen[12],\"N\")+COUNTIF(PrezenceZaSrpen[12],\"O\")","v":1},{"$f":"COUNTIF(PrezenceZaSrpen[13],\"N\")+COUNTIF(PrezenceZaSrpen[13],\"O\")","v":0},{"$f":"COUNTIF(PrezenceZaSrpen[14],\"N\")+COUNTIF(PrezenceZaSrpen[14],\"O\")","v":0},{"$f":"COUNTIF(PrezenceZaSrpen[15],\"N\")+COUNTIF(PrezenceZaSrpen[15],\"O\")","v":0},{"$f":"COUNTIF(PrezenceZaSrpen[16],\"N\")+COUNTIF(PrezenceZaSrpen[16],\"O\")","v":0},{"$f":"COUNTIF(PrezenceZaSrpen[17],\"N\")+COUNTIF(PrezenceZaSrpen[17],\"O\")","v":0},{"$f":"COUNTIF(PrezenceZaSrpen[18],\"N\")+COUNTIF(PrezenceZaSrpen[18],\"O\")","v":0},{"$f":"COUNTIF(PrezenceZaSrpen[19],\"N\")+COUNTIF(PrezenceZaSrpen[19],\"O\")","v":0},{"$f":"COUNTIF(PrezenceZaSrpen[20],\"N\")+COUNTIF(PrezenceZaSrpen[20],\"O\")","v":0},{"$f":"COUNTIF(PrezenceZaSrpen[21],\"N\")+COUNTIF(PrezenceZaSrpen[21],\"O\")","v":0},{"$f":"COUNTIF(PrezenceZaSrpen[22],\"N\")+COUNTIF(PrezenceZaSrpen[22],\"O\")","v":0},{"$f":"COUNTIF(PrezenceZaSrpen[23],\"N\")+COUNTIF(PrezenceZaSrpen[23],\"O\")","v":1},{"$f":"COUNTIF(PrezenceZaSrpen[24],\"N\")+COUNTIF(PrezenceZaSrpen[24],\"O\")","v":1},{"$f":"COUNTIF(PrezenceZaSrpen[25],\"N\")+COUNTIF(PrezenceZaSrpen[25],\"O\")","v":1},{"$f":"COUNTIF(PrezenceZaSrpen[26],\"N\")+COUNTIF(PrezenceZaSrpen[26],\"O\")","v":1},{"$f":"COUNTIF(PrezenceZaSrpen[27],\"N\")+COUNTIF(PrezenceZaSrpen[27],\"O\")","v":0},{"$f":"COUNTIF(PrezenceZaSrpen[28],\"N\")+COUNTIF(PrezenceZaSrpen[28],\"O\")","v":0},{"$f":"COUNTIF(PrezenceZaSrpen[29],\"N\")+COUNTIF(PrezenceZaSrpen[29],\"O\")","v":0},{"$f":"COUNTIF(PrezenceZaSrpen[30],\"N\")+COUNTIF(PrezenceZaSrpen[30],\"O\")","v":1},{"$f":"COUNTIF(PrezenceZaSrpen[31],\"N\")+COUNTIF(PrezenceZaSrpen[31],\"O\")","v":0},{"$f":"SUBTOTAL(109,PrezenceZaSrpen[Z])","v":4},{"$f":"SUBTOTAL(109,PrezenceZaSrpen[O])","v":10},{"$f":"SUBTOTAL(109,PrezenceZaSrpen[N])","v":3},{"$f":"SUBTOTAL(109,PrezenceZaSrpen[P])","v":98},{"$f":"SUBTOTAL(109,PrezenceZaSrpen[Dny absence])","v":13}]

{"sheet":"Září","index":3,"n_rows":12,"n_cols":39,"rows_kept":12,"merged":[[4,34,4,38]]}
["ZÁZNAM PREZENCE STUDENTŮ",{"$nulls":36},"Zahájení školního roku:",{"$f":"KalendářníRok","v":2012}]
[]
[null,null,{"$f":"TextLegendyBarev","v":"LEGENDA BAREV "},{"$f":"Kód1","v":"Z"},{"$f":"Kód1Text","v":"Zpoždění"},null,null,{"$f":"Kód2","v":"O"},{"$f":"Kód2Text","v":"Omluven(a)"},null,null,{"$f":"Kód3","v":"N"},{"$f":"Kód3Text","v":"Neomluven(a)"},null,null,{"$f":"Kód4","v":"P"},{"$f":"Kód4Text","v":"Přítomnost"},null,null,{"$f":"Kód5","v":"Ne"},{"$f":"Kód5Text","v":"Není vyučování"}]
[]
[null,{"$f":"DATE(KalendářníRok,9,1)","v":"2012-09-01"},null,{"$f":"TEXT(WEEKDAY(DATE(KalendářníRok,9,1),1),\"aaa\")","v":"so"},{"$f":"TEXT(WEEKDAY(DATE(KalendářníRok,9,2),1),\"aaa\")","v":"ne"},{"$f":"TEXT(WEEKDAY(DATE(KalendářníRok,9,3),1),\"aaa\")","v":"po"},{"$f":"TEXT(WEEKDAY(DATE(KalendářníRok,9,4),1),\"aaa\")","v":"út"},{"$f":"TEXT(WEEKDAY(DATE(KalendářníRok,9,5),1),\"aaa\")","v":"st"},{"$f":"TEXT(WEEKDAY(DATE(KalendářníRok,9,6),1),\"aaa\")","v":"čt"},{"$f":"TEXT(WEEKDAY(DATE(KalendářníRok,9,7),1),\"aaa\")","v":"pá"},{"$f":"TEXT(WEEKDAY(DATE(KalendářníRok,9,8),1),\"aaa\")","v":"so"},{"$f":"TEXT(WEEKDAY(DATE(KalendářníRok,9,9),1),\"aaa\")","v":"ne"},{"$f":"TEXT(WEEKDAY(DATE(KalendářníRok,9,10),1),\"aaa\")","v":"po"},{"$f":"TEXT(WEEKDAY(DATE(KalendářníRok,9,11),1),\"aaa\")","v":"út"},{"$f":"TEXT(WEEKDAY(DATE(KalendářníRok,9,12),1),\"aaa\")","v":"st"},{"$f":"TEXT(WEEKDAY(DATE(KalendářníRok,9,13),1),\"aaa\")","v":"čt"},{"$f":"TEXT(WEEKDAY(DATE(KalendářníRok,9,14),1),\"aaa\")","v":"pá"},{"$f":"TEXT(WEEKDAY(DATE(KalendářníRok,9,15),1),\"aaa\")","v":"so"},{"$f":"TEXT(WEEKDAY(DATE(KalendářníRok,9,16),1),\"aaa\")","v":"ne"},{"$f":"TEXT(WEEKDAY(DATE(KalendářníRok,9,17),1),\"aaa\")","v":"po"},{"$f":"TEXT(WEEKDAY(DATE(KalendářníRok,9,18),1),\"aaa\")","v":"út"},{"$f":"TEXT(WEEKDAY(DATE(KalendářníRok,9,19),1),\"aaa\")","v":"st"},{"$f":"TEXT(WEEKDAY(DATE(KalendářníRok,9,20),1),\"aaa\")","v":"čt"},{"$f":"TEXT(WEEKDAY(DATE(KalendářníRok,9,21),1),\"aaa\")","v":"pá"},{"$f":"TEXT(WEEKDAY(DATE(KalendářníRok,9,22),1),\"aaa\")","v":"so"},{"$f":"TEXT(WEEKDAY(DATE(KalendářníRok,9,23),1),\"aaa\")","v":"ne"},{"$f":"TEXT(WEEKDAY(DATE(KalendářníRok,9,24),1),\"aaa\")","v":"po"},{"$f":"TEXT(WEEKDAY(DATE(KalendářníRok,9,25),1),\"aaa\")","v":"út"},{"$f":"TEXT(WEEKDAY(DATE(KalendářníRok,9,26),1),\"aaa\")","v":"st"},{"$f":"TEXT(WEEKDAY(DATE(KalendářníRok,9,27),1),\"aaa\")","v":"čt"},{"$f":"TEXT(WEEKDAY(DATE(KalendářníRok,9,28),1),\"aaa\")","v":"pá"},{"$f":"TEXT(WEEKDAY(DATE(KalendářníRok,9,29),1),\"aaa\")","v":"so"},{"$f":"TEXT(WEEKDAY(DATE(KalendářníRok,9,30),1),\"aaa\")","v":"ne"},null,"Souhrny"]
[null,"Č. studenta","Jméno studenta","1","2","3","4","5","6","7","8","9","10","11","12","13","14","15","16","17","18","19","20","21","22","23","24","25","26","27","28","29","30"," ","Z","O","N","P","Dny absence"]
[null,null,{"$f":"IFERROR(VLOOKUP(PrezenceZaZáří[[#This Row],[Č. studenta]],SeznamStudentů[],18,FALSE),\"\")","v":""},{"$nulls":31},{"$f":"COUNTIF(PrezenceZaZáří[[#This Row],[1]:[ ]],Kód1)","v":0},{"$f":"COUNTIF(PrezenceZaZáří[[#This Row],[1]:[ ]],Kód2)","v":0},{"$f":"COUNTIF(PrezenceZaZáří[[#This Row],[1]:[ ]],Kód3)","v":0},{"$f":"COUNTIF(PrezenceZaZáří[[#This Row],[1]:[ ]],Kód4)","v":0},{"$f":"SUM(PrezenceZaZáří[[#This Row],[O]:[N]])","v":0}]
[null,null,{"$f":"IFERROR(VLOOKUP(PrezenceZaZáří[[#This Row],[Č. studenta]],SeznamStudentů[],18,FALSE),\"\")","v":""},{"$nulls":31},{"$f":"COUNTIF(PrezenceZaZáří[[#This Row],[1]:[ ]],Kód1)","v":0},{"$f":"COUNTIF(PrezenceZaZáří[[#This Row],[1]:[ ]],Kód2)","v":0},{"$f":"COUNTIF(PrezenceZaZáří[[#This Row],[1]:[ ]],Kód3)","v":0},{"$f":"COUNTIF(PrezenceZaZáří[[#This Row],[1]:[ ]],Kód4)","v":0},{"$f":"SUM(PrezenceZaZáří[[#This Row],[O]:[N]])","v":0}]
[null,null,{"$f":"IFERROR(VLOOKUP(PrezenceZaZáří[[#This Row],[Č. studenta]],SeznamStudentů[],18,FALSE),\"\")","v":""},{"$nulls":31},{"$f":"COUNTIF(PrezenceZaZáří[[#This Row],[1]:[ ]],Kód1)","v":0},{"$f":"COUNTIF(PrezenceZaZáří[[#This Row],[1]:[ ]],Kód2)","v":0},{"$f":"COUNTIF(PrezenceZaZáří[[#This Row],[1]:[ ]],Kód3)","v":0},{"$f":"COUNTIF(PrezenceZaZáří[[#This Row],[1]:[ ]],Kód4)","v":0},{"$f":"SUM(PrezenceZaZáří[[#This Row],[O]:[N]])","v":0}]
[null,null,{"$f":"IFERROR(VLOOKUP(PrezenceZaZáří[[#This Row],[Č. studenta]],SeznamStudentů[],18,FALSE),\"\")","v":""},{"$nulls":31},{"$f":"COUNTIF(PrezenceZaZáří[[#This Row],[1]:[ ]],Kód1)","v":0},{"$f":"COUNTIF(PrezenceZaZáří[[#This Row],[1]:[ ]],Kód2)","v":0},{"$f":"COUNTIF(PrezenceZaZáří[[#This Row],[1]:[ ]],Kód3)","v":0},{"$f":"COUNTIF(PrezenceZaZáří[[#This Row],[1]:[ ]],Kód4)","v":0},{"$f":"SUM(PrezenceZaZáří[[#This Row],[O]:[N]])","v":0}]
[null,null,{"$f":"IFERROR(VLOOKUP(PrezenceZaZáří[[#This Row],[Č. studenta]],SeznamStudentů[],18,FALSE),\"\")","v":""},{"$nulls":31},{"$f":"COUNTIF(PrezenceZaZáří[[#This Row],[1]:[ ]],Kód1)","v":0},{"$f":"COUNTIF(PrezenceZaZáří[[#This Row],[1]:[ ]],Kód2)","v":0},{"$f":"COUNTIF(PrezenceZaZáří[[#This Row],[1]:[ ]],Kód3)","v":0},{"$f":"COUNTIF(PrezenceZaZáří[[#This Row],[1]:[ ]],Kód4)","v":0},{"$f":"SUM(PrezenceZaZáří[[#This Row],[O]:[N]])","v":0}]
[null,null,"Celkem dny absence",{"$f":"COUNTIF(PrezenceZaZáří[1],\"N\")+COUNTIF(PrezenceZaZáří[1],\"O\")","v":0},{"$f":"COUNTIF(PrezenceZaZáří[2],\"N\")+COUNTIF(PrezenceZaZáří[2],\"O\")","v":0},{"$f":"COUNTIF(PrezenceZaZáří[3],\"N\")+COUNTIF(PrezenceZaZáří[3],\"O\")","v":0},{"$f":"COUNTIF(PrezenceZaZáří[4],\"N\")+COUNTIF(PrezenceZaZáří[4],\"O\")","v":0},{"$f":"COUNTIF(PrezenceZaZáří[5],\"N\")+COUNTIF(PrezenceZaZáří[5],\"O\")","v":0},{"$f":"COUNTIF(PrezenceZaZáří[6],\"N\")+COUNTIF(PrezenceZaZáří[6],\"O\")","v":0},{"$f":"COUNTIF(PrezenceZaZáří[7],\"N\")+COUNTIF(PrezenceZaZáří[7],\"O\")","v":0},{"$f":"COUNTIF(PrezenceZaZáří[8],\"N\")+COUNTIF(PrezenceZaZáří[8],\"O\")","v":0},{"$f":"COUNTIF(PrezenceZaZáří[9],\"N\")+COUNTIF(PrezenceZaZáří[9],\"O\")","v":0},{"$f":"COUNTIF(PrezenceZaZáří[10],\"N\")+COUNTIF(PrezenceZaZáří[10],\"O\")","v":0},{"$f":"COUNTIF(PrezenceZaZáří[11],\"N\")+COUNTIF(PrezenceZaZáří[11],\"O\")","v":0},{"$f":"COUNTIF(PrezenceZaZáří[12],\"N\")+COUNTIF(PrezenceZaZáří[12],\"O\")","v":0},{"$f":"COUNTIF(PrezenceZaZáří[13],\"N\")+COUNTIF(PrezenceZaZáří[13],\"O\")","v":0},{"$f":"COUNTIF(PrezenceZaZáří[14],\"N\")+COUNTIF(PrezenceZaZáří[14],\"O\")","v":0},{"$f":"COUNTIF(PrezenceZaZáří[15],\"N\")+COUNTIF(PrezenceZaZáří[15],\"O\")","v":0},{"$f":"COUNTIF(PrezenceZaZáří[16],\"N\")+COUNTIF(PrezenceZaZáří[16],\"O\")","v":0},{"$f":"COUNTIF(PrezenceZaZáří[17],\"N\")+COUNTIF(PrezenceZaZáří[17],\"O\")","v":0},{"$f":"COUNTIF(PrezenceZaZáří[18],\"N\")+COUNTIF(PrezenceZaZáří[18],\"O\")","v":0},{"$f":"COUNTIF(PrezenceZaZáří[19],\"N\")+COUNTIF(PrezenceZaZáří[19],\"O\")","v":0},{"$f":"COUNTIF(PrezenceZaZáří[20],\"N\")+COUNTIF(PrezenceZaZáří[20],\"O\")","v":0},{"$f":"COUNTIF(PrezenceZaZáří[21],\"N\")+COUNTIF(PrezenceZaZáří[21],\"O\")","v":0},{"$f":"COUNTIF(PrezenceZaZáří[22],\"N\")+COUNTIF(PrezenceZaZáří[22],\"O\")","v":0},{"$f":"COUNTIF(PrezenceZaZáří[23],\"N\")+COUNTIF(PrezenceZaZáří[23],\"O\")","v":0},{"$f":"COUNTIF(PrezenceZaZáří[24],\"N\")+COUNTIF(PrezenceZaZáří[24],\"O\")","v":0},{"$f":"COUNTIF(PrezenceZaZáří[25],\"N\")+COUNTIF(PrezenceZaZáří[25],\"O\")","v":0},{"$f":"COUNTIF(PrezenceZaZáří[26],\"N\")+COUNTIF(PrezenceZaZáří[26],\"O\")","v":0},{"$f":"COUNTIF(PrezenceZaZáří[27],\"N\")+COUNTIF(PrezenceZaZáří[27],\"O\")","v":0},{"$f":"COUNTIF(PrezenceZaZáří[28],\"N\")+COUNTIF(PrezenceZaZáří[28],\"O\")","v":0},{"$f":"COUNTIF(PrezenceZaZáří[29],\"N\")+COUNTIF(PrezenceZaZáří[29],\"O\")","v":0},{"$f":"COUNTIF(PrezenceZaZáří[30],\"N\")+COUNTIF(PrezenceZaZáří[30],\"O\")","v":0},{"$f":"COUNTIF(PrezenceZaZáří[[ ]],\"N\")+COUNTIF(PrezenceZaZáří[[ ]],\"O\")","v":0},{"$f":"SUBTOTAL(109,PrezenceZaZáří[Z])","v":0},{"$f":"SUBTOTAL(109,PrezenceZaZáří[O])","v":0},{"$f":"SUBTOTAL(109,PrezenceZaZáří[N])","v":0},{"$f":"SUBTOTAL(109,PrezenceZaZáří[P])","v":0},{"$f":"SUBTOTAL(109,PrezenceZaZáří[Dny absence])","v":0}]

{"sheet":"Říjen","index":4,"n_rows":12,"n_cols":39,"rows_kept":12,"merged":[[4,34,4,38]]}
["ZÁZNAM PREZENCE STUDENTŮ",{"$nulls":36},"Zahájení školního roku:",{"$f":"KalendářníRok","v":2012}]
[]
[null,null,{"$f":"TextLegendyBarev","v":"LEGENDA BAREV "},{"$f":"Kód1","v":"Z"},{"$f":"Kód1Text","v":"Zpoždění"},null,null,{"$f":"Kód2","v":"O"},{"$f":"Kód2Text","v":"Omluven(a)"},null,null,{"$f":"Kód3","v":"N"},{"$f":"Kód3Text","v":"Neomluven(a)"},null,null,{"$f":"Kód4","v":"P"},{"$f":"Kód4Text","v":"Přítomnost"},null,null,{"$f":"Kód5","v":"Ne"},{"$f":"Kód5Text","v":"Není vyučování"}]
[]
[null,{"$f":"DATE(KalendářníRok,10,1)","v":"2012-10-01"},null,{"$f":"TEXT(WEEKDAY(DATE(KalendářníRok,10,1),1),\"aaa\")","v":"po"},{"$f":"TEXT(WEEKDAY(DATE(KalendářníRok,10,2),1),\"aaa\")","v":"út"},{"$f":"TEXT(WEEKDAY(DATE(KalendářníRok,10,3),1),\"aaa\")","v":"st"},{"$f":"TEXT(WEEKDAY(DATE(KalendářníRok,10,4),1),\"aaa\")","v":"čt"},{"$f":"TEXT(WEEKDAY(DATE(KalendářníRok,10,5),1),\"aaa\")","v":"pá"},{"$f":"TEXT(WEEKDAY(DATE(KalendářníRok,10,6),1),\"aaa\")","v":"so"},{"$f":"TEXT(WEEKDAY(DATE(KalendářníRok,10,7),1),\"aaa\")","v":"ne"},{"$f":"TEXT(WEEKDAY(DATE(KalendářníRok,10,8),1),\"aaa\")","v":"po"},{"$f":"TEXT(WEEKDAY(DATE(KalendářníRok,10,9),1),\"aaa\")","v":"út"},{"$f":"TEXT(WEEKDAY(DATE(KalendářníRok,10,10),1),\"aaa\")","v":"st"},{"$f":"TEXT(WEEKDAY(DATE(KalendářníRok,10,11),1),\"aaa\")","v":"čt"},{"$f":"TEXT(WEEKDAY(DATE(KalendářníRok,10,12),1),\"aaa\")","v":"pá"},{"$f":"TEXT(WEEKDAY(DATE(KalendářníRok,10,13),1),\"aaa\")","v":"so"},{"$f":"TEXT(WEEKDAY(DATE(KalendářníRok,10,14),1),\"aaa\")","v":"ne"},{"$f":"TEXT(WEEKDAY(DATE(KalendářníRok,10,15),1),\"aaa\")","v":"po"},{"$f":"TEXT(WEEKDAY(DATE(KalendářníRok,10,16),1),\"aaa\")","v":"út"},{"$f":"TEXT(WEEKDAY(DATE(KalendářníRok,10,17),1),\"aaa\")","v":"st"},{"$f":"TEXT(WEEKDAY(DATE(KalendářníRok,10,18),1),\"aaa\")","v":"čt"},{"$f":"TEXT(WEEKDAY(DATE(KalendářníRok,10,19),1),\"aaa\")","v":"pá"},{"$f":"TEXT(WEEKDAY(DATE(KalendářníRok,10,20),1),\"aaa\")","v":"so"},{"$f":"TEXT(WEEKDAY(DATE(KalendářníRok,10,21),1),\"aaa\")","v":"ne"},{"$f":"TEXT(WEEKDAY(DATE(KalendářníRok,10,22),1),\"aaa\")","v":"po"},{"$f":"TEXT(WEEKDAY(DATE(KalendářníRok,10,23),1),\"aaa\")","v":"út"},{"$f":"TEXT(WEEKDAY(DATE(KalendářníRok,10,24),1),\"aaa\")","v":"st"},{"$f":"TEXT(WEEKDAY(DATE(KalendářníRok,10,25),1),\"aaa\")","v":"čt"},{"$f":"TEXT(WEEKDAY(DATE(KalendářníRok,10,26),1),\"aaa\")","v":"pá"},{"$f":"TEXT(WEEKDAY(DATE(KalendářníRok,10,27),1),\"aaa\")","v":"so"},{"$f":"TEXT(WEEKDAY(DATE(KalendářníRok,10,28),1),\"aaa\")","v":"ne"},{"$f":"TEXT(WEEKDAY(DATE(KalendářníRok,10,29),1),\"aaa\")","v":"po"},{"$f":"TEXT(WEEKDAY(DATE(KalendářníRok,10,30),1),\"aaa\")","v":"út"},{"$f":"TEXT(WEEKDAY(DATE(KalendářníRok,10,31),1),\"aaa\")","v":"st"},"Souhrny"]
[null,"Č. studenta","Jméno studenta","1","2","3","4","5","6","7","8","9","10","11","12","13","14","15","16","17","18","19","20","21","22","23","24","25","26","27","28","29","30","31","Z","O","N","P","Dny absence"]
[null,null,{"$f":"IFERROR(VLOOKUP(PrezenceZaŘíjen[[#This Row],[Č. studenta]],SeznamStudentů[],18,FALSE),\"\")","v":""},{"$nulls":31},{"$f":"COUNTIF(PrezenceZaŘíjen[[#This Row],[1]:[31]],Kód1)","v":0},{"$f":"COUNTIF(PrezenceZaŘíjen[[#This Row],[1]:[31]],Kód2)","v":0},{"$f":"COUNTIF(PrezenceZaŘíjen[[#This Row],[1]:[31]],Kód3)","v":0},{"$f":"COUNTIF(PrezenceZaŘíjen[[#This Row],[1]:[31]],Kód4)","v":0},{"$f":"SUM(PrezenceZaŘíjen[[#This Row],[O]:[N]])","v":0}]
[null,null,{"$f":"IFERROR(VLOOKUP(PrezenceZaŘíjen[[#This Row],[Č. studenta]],SeznamStudentů[],18,FALSE),\"\")","v":""},{"$nulls":31},{"$f":"COUNTIF(PrezenceZaŘíjen[[#This Row],[1]:[31]],Kód1)","v":0},{"$f":"COUNTIF(PrezenceZaŘíjen[[#This Row],[1]:[31]],Kód2)","v":0},{"$f":"COUNTIF(PrezenceZaŘíjen[[#This Row],[1]:[31]],Kód3)","v":0},{"$f":"COUNTIF(PrezenceZaŘíjen[[#This Row],[1]:[31]],Kód4)","v":0},{"$f":"SUM(PrezenceZaŘíjen[[#This Row],[O]:[N]])","v":0}]
[null,null,{"$f":"IFERROR(VLOOKUP(PrezenceZaŘíjen[[#This Row],[Č. studenta]],SeznamStudentů[],18,FALSE),\"\")","v":""},{"$nulls":31},{"$f":"COUNTIF(PrezenceZaŘíjen[[#This Row],[1]:[31]],Kód1)","v":0},{"$f":"COUNTIF(PrezenceZaŘíjen[[#This Row],[1]:[31]],Kód2)","v":0},{"$f":"COUNTIF(PrezenceZaŘíjen[[#This Row],[1]:[31]],Kód3)","v":0},{"$f":"COUNTIF(PrezenceZaŘíjen[[#This Row],[1]:[31]],Kód4)","v":0},{"$f":"SUM(PrezenceZaŘíjen[[#This Row],[O]:[N]])","v":0}]
[null,null,{"$f":"IFERROR(VLOOKUP(PrezenceZaŘíjen[[#This Row],[Č. studenta]],SeznamStudentů[],18,FALSE),\"\")","v":""},{"$nulls":31},{"$f":"COUNTIF(PrezenceZaŘíjen[[#This Row],[1]:[31]],Kód1)","v":0},{"$f":"COUNTIF(PrezenceZaŘíjen[[#This Row],[1]:[31]],Kód2)","v":0},{"$f":"COUNTIF(PrezenceZaŘíjen[[#This Row],[1]:[31]],Kód3)","v":0},{"$f":"COUNTIF(PrezenceZaŘíjen[[#This Row],[1]:[31]],Kód4)","v":0},{"$f":"SUM(PrezenceZaŘíjen[[#This Row],[O]:[N]])","v":0}]
[null,null,{"$f":"IFERROR(VLOOKUP(PrezenceZaŘíjen[[#This Row],[Č. studenta]],SeznamStudentů[],18,FALSE),\"\")","v":""},{"$nulls":31},{"$f":"COUNTIF(PrezenceZaŘíjen[[#This Row],[1]:[31]],Kód1)","v":0},{"$f":"COUNTIF(PrezenceZaŘíjen[[#This Row],[1]:[31]],Kód2)","v":0},{"$f":"COUNTIF(PrezenceZaŘíjen[[#This Row],[1]:[31]],Kód3)","v":0},{"$f":"COUNTIF(PrezenceZaŘíjen[[#This Row],[1]:[31]],Kód4)","v":0},{"$f":"SUM(PrezenceZaŘíjen[[#This Row],[O]:[N]])","v":0}]
[null,null,"Celkem dny absence",{"$f":"COUNTIF(PrezenceZaŘíjen[1],\"N\")+COUNTIF(PrezenceZaŘíjen[1],\"O\")","v":0},{"$f":"COUNTIF(PrezenceZaŘíjen[2],\"N\")+COUNTIF(PrezenceZaŘíjen[2],\"O\")","v":0},{"$f":"COUNTIF(PrezenceZaŘíjen[3],\"N\")+COUNTIF(PrezenceZaŘíjen[3],\"O\")","v":0},{"$f":"COUNTIF(PrezenceZaŘíjen[4],\"N\")+COUNTIF(PrezenceZaŘíjen[4],\"O\")","v":0},{"$f":"COUNTIF(PrezenceZaŘíjen[5],\"N\")+COUNTIF(PrezenceZaŘíjen[5],\"O\")","v":0},{"$f":"COUNTIF(PrezenceZaŘíjen[6],\"N\")+COUNTIF(PrezenceZaŘíjen[6],\"O\")","v":0},{"$f":"COUNTIF(PrezenceZaŘíjen[7],\"N\")+COUNTIF(PrezenceZaŘíjen[7],\"O\")","v":0},{"$f":"COUNTIF(PrezenceZaŘíjen[8],\"N\")+COUNTIF(PrezenceZaŘíjen[8],\"O\")","v":0},{"$f":"COUNTIF(PrezenceZaŘíjen[9],\"N\")+COUNTIF(PrezenceZaŘíjen[9],\"O\")","v":0},{"$f":"COUNTIF(PrezenceZaŘíjen[10],\"N\")+COUNTIF(PrezenceZaŘíjen[10],\"O\")","v":0},{"$f":"COUNTIF(PrezenceZaŘíjen[11],\"N\")+COUNTIF(PrezenceZaŘíjen[11],\"O\")","v":0},{"$f":"COUNTIF(PrezenceZaŘíjen[12],\"N\")+COUNTIF(PrezenceZaŘíjen[12],\"O\")","v":0},{"$f":"COUNTIF(PrezenceZaŘíjen[13],\"N\")+COUNTIF(PrezenceZaŘíjen[13],\"O\")","v":0},{"$f":"COUNTIF(PrezenceZaŘíjen[14],\"N\")+COUNTIF(PrezenceZaŘíjen[14],\"O\")","v":0},{"$f":"COUNTIF(PrezenceZaŘíjen[15],\"N\")+COUNTIF(PrezenceZaŘíjen[15],\"O\")","v":0},{"$f":"COUNTIF(PrezenceZaŘíjen[16],\"N\")+COUNTIF(PrezenceZaŘíjen[16],\"O\")","v":0},{"$f":"COUNTIF(PrezenceZaŘíjen[17],\"N\")+COUNTIF(PrezenceZaŘíjen[17],\"O\")","v":0},{"$f":"COUNTIF(PrezenceZaŘíjen[18],\"N\")+COUNTIF(PrezenceZaŘíjen[18],\"O\")","v":0},{"$f":"COUNTIF(PrezenceZaŘíjen[19],\"N\")+COUNTIF(PrezenceZaŘíjen[19],\"O\")","v":0},{"$f":"COUNTIF(PrezenceZaŘíjen[20],\"N\")+COUNTIF(PrezenceZaŘíjen[20],\"O\")","v":0},{"$f":"COUNTIF(PrezenceZaŘíjen[21],\"N\")+COUNTIF(PrezenceZaŘíjen[21],\"O\")","v":0},{"$f":"COUNTIF(PrezenceZaŘíjen[22],\"N\")+COUNTIF(PrezenceZaŘíjen[22],\"O\")","v":0},{"$f":"COUNTIF(PrezenceZaŘíjen[23],\"N\")+COUNTIF(PrezenceZaŘíjen[23],\"O\")","v":0},{"$f":"COUNTIF(PrezenceZaŘíjen[24],\"N\")+COUNTIF(PrezenceZaŘíjen[24],\"O\")","v":0},{"$f":"COUNTIF(PrezenceZaŘíjen[25],\"N\")+COUNTIF(PrezenceZaŘíjen[25],\"O\")","v":0},{"$f":"COUNTIF(PrezenceZaŘíjen[26],\"N\")+COUNTIF(PrezenceZaŘíjen[26],\"O\")","v":0},{"$f":"COUNTIF(PrezenceZaŘíjen[27],\"N\")+COUNTIF(PrezenceZaŘíjen[27],\"O\")","v":0},{"$f":"COUNTIF(PrezenceZaŘíjen[28],\"N\")+COUNTIF(PrezenceZaŘíjen[28],\"O\")","v":0},{"$f":"COUNTIF(PrezenceZaŘíjen[29],\"N\")+COUNTIF(PrezenceZaŘíjen[29],\"O\")","v":0},{"$f":"COUNTIF(PrezenceZaŘíjen[30],\"N\")+COUNTIF(PrezenceZaŘíjen[30],\"O\")","v":0},{"$f":"COUNTIF(PrezenceZaŘíjen[31],\"N\")+COUNTIF(PrezenceZaŘíjen[31],\"O\")","v":0},{"$f":"SUBTOTAL(109,PrezenceZaŘíjen[Z])","v":0},{"$f":"SUBTOTAL(109,PrezenceZaŘíjen[O])","v":0},{"$f":"SUBTOTAL(109,PrezenceZaŘíjen[N])","v":0},{"$f":"SUBTOTAL(109,PrezenceZaŘíjen[P])","v":0},{"$f":"SUBTOTAL(109,PrezenceZaŘíjen[Dny absence])","v":0}]

{"sheet":"Listopad","index":5,"n_rows":12,"n_cols":39,"rows_kept":12,"merged":[[4,34,4,38]]}
["ZÁZNAM PREZENCE STUDENTŮ",{"$nulls":36},"Zahájení školního roku:",{"$f":"KalendářníRok","v":2012}]
[]
[null,null,{"$f":"TextLegendyBarev","v":"LEGENDA BAREV "},{"$f":"Kód1","v":"Z"},{"$f":"Kód1Text","v":"Zpoždění"},null,null,{"$f":"Kód2","v":"O"},{"$f":"Kód2Text","v":"Omluven(a)"},null,null,{"$f":"Kód3","v":"N"},{"$f":"Kód3Text","v":"Neomluven(a)"},null,null,{"$f":"Kód4","v":"P"},{"$f":"Kód4Text","v":"Přítomnost"},null,null,{"$f":"Kód5","v":"Ne"},{"$f":"Kód5Text","v":"Není vyučování"}]
[]
[null,{"$f":"DATE(KalendářníRok,11,1)","v":"2012-11-01"},null,{"$f":"TEXT(WEEKDAY(DATE(KalendářníRok,11,1),1),\"aaa\")","v":"čt"},{"$f":"TEXT(WEEKDAY(DATE(KalendářníRok,11,2),1),\"aaa\")","v":"pá"},{"$f":"TEXT(WEEKDAY(DATE(KalendářníRok,11,3),1),\"aaa\")","v":"so"},{"$f":"TEXT(WEEKDAY(DATE(KalendářníRok,11,4),1),\"aaa\")","v":"ne"},{"$f":"TEXT(WEEKDAY(DATE(KalendářníRok,11,5),1),\"aaa\")","v":"po"},{"$f":"TEXT(WEEKDAY(DATE(KalendářníRok,11,6),1),\"aaa\")","v":"út"},{"$f":"TEXT(WEEKDAY(DATE(KalendářníRok,11,7),1),\"aaa\")","v":"st"},{"$f":"TEXT(WEEKDAY(DATE(KalendářníRok,11,8),1),\"aaa\")","v":"čt"},{"$f":"TEXT(WEEKDAY(DATE(KalendářníRok,11,9),1),\"aaa\")","v":"pá"},{"$f":"TEXT(WEEKDAY(DATE(KalendářníRok,11,10),1),\"aaa\")","v":"so"},{"$f":"TEXT(WEEKDAY(DATE(KalendářníRok,11,11),1),\"aaa\")","v":"ne"},{"$f":"TEXT(WEEKDAY(DATE(KalendářníRok,11,12),1),\"aaa\")","v":"po"},{"$f":"TEXT(WEEKDAY(DATE(KalendářníRok,11,13),1),\"aaa\")","v":"út"},{"$f":"TEXT(WEEKDAY(DATE(KalendářníRok,11,14),1),\"aaa\")","v":"st"},{"$f":"TEXT(WEEKDAY(DATE(KalendářníRok,11,15),1),\"aaa\")","v":"čt"},{"$f":"TEXT(WEEKDAY(DATE(KalendářníRok,11,16),1),\"aaa\")","v":"pá"},{"$f":"TEXT(WEEKDAY(DATE(KalendářníRok,11,17),1),\"aaa\")","v":"so"},{"$f":"TEXT(WEEKDAY(DATE(KalendářníRok,11,18),1),\"aaa\")","v":"ne"},{"$f":"TEXT(WEEKDAY(DATE(KalendářníRok,11,19),1),\"aaa\")","v":"po"},{"$f":"TEXT(WEEKDAY(DATE(KalendářníRok,11,20),1),\"aaa\")","v":"út"},{"$f":"TEXT(WEEKDAY(DATE(KalendářníRok,11,21),1),\"aaa\")","v":"st"},{"$f":"TEXT(WEEKDAY(DATE(KalendářníRok,11,22),1),\"aaa\")","v":"čt"},{"$f":"TEXT(WEEKDAY(DATE(KalendářníRok,11,23),1),\"aaa\")","v":"pá"},{"$f":"TEXT(WEEKDAY(DATE(KalendářníRok,11,24),1),\"aaa\")","v":"so"},{"$f":"TEXT(WEEKDAY(DATE(KalendářníRok,11,25),1),\"aaa\")","v":"ne"},{"$f":"TEXT(WEEKDAY(DATE(KalendářníRok,11,26),1),\"aaa\")","v":"po"},{"$f":"TEXT(WEEKDAY(DATE(KalendářníRok,11,27),1),\"aaa\")","v":"út"},{"$f":"TEXT(WEEKDAY(DATE(KalendářníRok,11,28),1),\"aaa\")","v":"st"},{"$f":"TEXT(WEEKDAY(DATE(KalendářníRok,11,29),1),\"aaa\")","v":"čt"},{"$f":"TEXT(WEEKDAY(DATE(KalendářníRok,11,30),1),\"aaa\")","v":"pá"},null,"Souhrny"]
[null,"Č. studenta","Jméno studenta","1","2","3","4","5","6","7","8","9","10","11","12","13","14","15","16","17","18","19","20","21","22","23","24","25","26","27","28","29","30"," ","Z","O","N","P","Dny absence"]
[null,null,{"$f":"IFERROR(VLOOKUP(PrezenceZaListopad[[#This Row],[Č. studenta]],SeznamStudentů[],18,FALSE),\"\")","v":""},{"$nulls":31},{"$f":"COUNTIF(PrezenceZaListopad[[#This Row],[1]:[ ]],Kód1)","v":0},{"$f":"COUNTIF(PrezenceZaListopad[[#This Row],[1]:[ ]],Kód2)","v":0},{"$f":"COUNTIF(PrezenceZaListopad[[#This Row],[1]:[ ]],Kód3)","v":0},{"$f":"COUNTIF(PrezenceZaListopad[[#This Row],[1]:[ ]],Kód4)","v":0},{"$f":"SUM(PrezenceZaListopad[[#This Row],[O]:[N]])","v":0}]
[null,null,{"$f":"IFERROR(VLOOKUP(PrezenceZaListopad[[#This Row],[Č. studenta]],SeznamStudentů[],18,FALSE),\"\")","v":""},{"$nulls":31},{"$f":"COUNTIF(PrezenceZaListopad[[#This Row],[1]:[ ]],Kód1)","v":0},{"$f":"COUNTIF(PrezenceZaListopad[[#This Row],[1]:[ ]],Kód2)","v":0},{"$f":"COUNTIF(PrezenceZaListopad[[#This Row],[1]:[ ]],Kód3)","v":0},{"$f":"COUNTIF(PrezenceZaListopad[[#This Row],[1]:[ ]],Kód4)","v":0},{"$f":"SUM(PrezenceZaListopad[[#This Row],[O]:[N]])","v":0}]
[null,null,{"$f":"IFERROR(VLOOKUP(PrezenceZaListopad[[#This Row],[Č. studenta]],SeznamStudentů[],18,FALSE),\"\")","v":""},{"$nulls":31},{"$f":"COUNTIF(PrezenceZaListopad[[#This Row],[1]:[ ]],Kód1)","v":0},{"$f":"COUNTIF(PrezenceZaListopad[[#This Row],[1]:[ ]],Kód2)","v":0},{"$f":"COUNTIF(PrezenceZaListopad[[#This Row],[1]:[ ]],Kód3)","v":0},{"$f":"COUNTIF(PrezenceZaListopad[[#This Row],[1]:[ ]],Kód4)","v":0},{"$f":"SUM(PrezenceZaListopad[[#This Row],[O]:[N]])","v":0}]
[null,null,{"$f":"IFERROR(VLOOKUP(PrezenceZaListopad[[#This Row],[Č. studenta]],SeznamStudentů[],18,FALSE),\"\")","v":""},{"$nulls":31},{"$f":"COUNTIF(PrezenceZaListopad[[#This Row],[1]:[ ]],Kód1)","v":0},{"$f":"COUNTIF(PrezenceZaListopad[[#This Row],[1]:[ ]],Kód2)","v":0},{"$f":"COUNTIF(PrezenceZaListopad[[#This Row],[1]:[ ]],Kód3)","v":0},{"$f":"COUNTIF(PrezenceZaListopad[[#This Row],[1]:[ ]],Kód4)","v":0},{"$f":"SUM(PrezenceZaListopad[[#This Row],[O]:[N]])","v":0}]
[null,null,{"$f":"IFERROR(VLOOKUP(PrezenceZaListopad[[#This Row],[Č. studenta]],SeznamStudentů[],18,FALSE),\"\")","v":""},{"$nulls":31},{"$f":"COUNTIF(PrezenceZaListopad[[#This Row],[1]:[ ]],Kód1)","v":0},{"$f":"COUNTIF(PrezenceZaListopad[[#This Row],[1]:[ ]],Kód2)","v":0},{"$f":"COUNTIF(PrezenceZaListopad[[#This Row],[1]:[ ]],Kód3)","v":0},{"$f":"COUNTIF(PrezenceZaListopad[[#This Row],[1]:[ ]],Kód4)","v":0},{"$f":"SUM(PrezenceZaListopad[[#This Row],[O]:[N]])","v":0}]
[null,null,"Celkem dny absence",{"$f":"COUNTIF(PrezenceZaListopad[1],\"N\")+COUNTIF(PrezenceZaListopad[1],\"O\")","v":0},{"$f":"COUNTIF(PrezenceZaListopad[2],\"N\")+COUNTIF(PrezenceZaListopad[2],\"O\")","v":0},{"$f":"COUNTIF(PrezenceZaListopad[3],\"N\")+COUNTIF(PrezenceZaListopad[3],\"O\")","v":0},{"$f":"COUNTIF(PrezenceZaListopad[4],\"N\")+COUNTIF(PrezenceZaListopad[4],\"O\")","v":0},{"$f":"COUNTIF(PrezenceZaListopad[5],\"N\")+COUNTIF(PrezenceZaListopad[5],\"O\")","v":0},{"$f":"COUNTIF(PrezenceZaListopad[6],\"N\")+COUNTIF(PrezenceZaListopad[6],\"O\")","v":0},{"$f":"COUNTIF(PrezenceZaListopad[7],\"N\")+COUNTIF(PrezenceZaListopad[7],\"O\")","v":0},{"$f":"COUNTIF(PrezenceZaListopad[8],\"N\")+COUNTIF(PrezenceZaListopad[8],\"O\")","v":0},{"$f":"COUNTIF(PrezenceZaListopad[9],\"N\")+COUNTIF(PrezenceZaListopad[9],\"O\")","v":0},{"$f":"COUNTIF(PrezenceZaListopad[10],\"N\")+COUNTIF(PrezenceZaListopad[10],\"O\")","v":0},{"$f":"COUNTIF(PrezenceZaListopad[11],\"N\")+COUNTIF(PrezenceZaListopad[11],\"O\")","v":0},{"$f":"COUNTIF(PrezenceZaListopad[12],\"N\")+COUNTIF(PrezenceZaListopad[12],\"O\")","v":0},{"$f":"COUNTIF(PrezenceZaListopad[13],\"N\")+COUNTIF(PrezenceZaListopad[13],\"O\")","v":0},{"$f":"COUNTIF(PrezenceZaListopad[14],\"N\")+COUNTIF(PrezenceZaListopad[14],\"O\")","v":0},{"$f":"COUNTIF(PrezenceZaListopad[15],\"N\")+COUNTIF(PrezenceZaListopad[15],\"O\")","v":0},{"$f":"COUNTIF(PrezenceZaListopad[16],\"N\")+COUNTIF(PrezenceZaListopad[16],\"O\")","v":0},{"$f":"COUNTIF(PrezenceZaListopad[17],\"N\")+COUNTIF(PrezenceZaListopad[17],\"O\")","v":0},{"$f":"COUNTIF(PrezenceZaListopad[18],\"N\")+COUNTIF(PrezenceZaListopad[18],\"O\")","v":0},{"$f":"COUNTIF(PrezenceZaListopad[19],\"N\")+COUNTIF(PrezenceZaListopad[19],\"O\")","v":0},{"$f":"COUNTIF(PrezenceZaListopad[20],\"N\")+COUNTIF(PrezenceZaListopad[20],\"O\")","v":0},{"$f":"COUNTIF(PrezenceZaListopad[21],\"N\")+COUNTIF(PrezenceZaListopad[21],\"O\")","v":0},{"$f":"COUNTIF(PrezenceZaListopad[22],\"N\")+COUNTIF(PrezenceZaListopad[22],\"O\")","v":0},{"$f":"COUNTIF(PrezenceZaListopad[23],\"N\")+COUNTIF(PrezenceZaListopad[23],\"O\")","v":0},{"$f":"COUNTIF(PrezenceZaListopad[24],\"N\")+COUNTIF(PrezenceZaListopad[24],\"O\")","v":0},{"$f":"COUNTIF(PrezenceZaListopad[25],\"N\")+COUNTIF(PrezenceZaListopad[25],\"O\")","v":0},{"$f":"COUNTIF(PrezenceZaListopad[26],\"N\")+COUNTIF(PrezenceZaListopad[26],\"O\")","v":0},{"$f":"COUNTIF(PrezenceZaListopad[27],\"N\")+COUNTIF(PrezenceZaListopad[27],\"O\")","v":0},{"$f":"COUNTIF(PrezenceZaListopad[28],\"N\")+COUNTIF(PrezenceZaListopad[28],\"O\")","v":0},{"$f":"COUNTIF(PrezenceZaListopad[29],\"N\")+COUNTIF(PrezenceZaListopad[29],\"O\")","v":0},{"$f":"COUNTIF(PrezenceZaListopad[30],\"N\")+COUNTIF(PrezenceZaListopad[30],\"O\")","v":0},{"$f":"COUNTIF(PrezenceZaListopad[[ ]],\"N\")+COUNTIF(PrezenceZaListopad[[ ]],\"O\")","v":0},{"$f":"SUBTOTAL(109,PrezenceZaListopad[Z])","v":0},{"$f":"SUBTOTAL(109,PrezenceZaListopad[O])","v":0},{"$f":"SUBTOTAL(109,PrezenceZaListopad[N])","v":0},{"$f":"SUBTOTAL(109,PrezenceZaListopad[P])","v":0},{"$f":"SUBTOTAL(109,PrezenceZaListopad[Dny absence])","v":0}]

{"sheet":"Prosinec","index":6,"n_rows":12,"n_cols":39,"rows_kept":12,"merged":[[4,34,4,38]]}
["ZÁZNAM PREZENCE STUDENTŮ",{"$nulls":36},"Zahájení školního roku:",{"$f":"KalendářníRok","v":2012}]
[]
[null,null,{"$f":"TextLegendyBarev","v":"LEGENDA BAREV "},{"$f":"Kód1","v":"Z"},{"$f":"Kód1Text","v":"Zpoždění"},null,null,{"$f":"Kód2","v":"O"},{"$f":"Kód2Text","v":"Omluven(a)"},null,null,{"$f":"Kód3","v":"N"},{"$f":"Kód3Text","v":"Neomluven(a)"},null,null,{"$f":"Kód4","v":"P"},{"$f":"Kód4Text","v":"Přítomnost"},null,null,{"$f":"Kód5","v":"Ne"},{"$f":"Kód5Text","v":"Není vyučování"}]
[]
[null,{"$f":"DATE(KalendářníRok,12,1)","v":"2012-12-01"},null,{"$f":"TEXT(WEEKDAY(DATE(KalendářníRok,12,1),1),\"aaa\")","v":"so"},{"$f":"TEXT(WEEKDAY(DATE(KalendářníRok,12,2),1),\"aaa\")","v":"ne"},{"$f":"TEXT(WEEKDAY(DATE(KalendářníRok,12,3),1),\"aaa\")","v":"po"},{"$f":"TEXT(WEEKDAY(DATE(KalendářníRok,12,4),1),\"aaa\")","v":"út"},{"$f":"TEXT(WEEKDAY(DATE(KalendářníRok,12,5),1),\"aaa\")","v":"st"},{"$f":"TEXT(WEEKDAY(DATE(KalendářníRok,12,6),1),\"aaa\")","v":"čt"},{"$f":"TEXT(WEEKDAY(DATE(KalendářníRok,12,7),1),\"aaa\")","v":"pá"},{"$f":"TEXT(WEEKDAY(DATE(KalendářníRok,12,8),1),\"aaa\")","v":"so"},{"$f":"TEXT(WEEKDAY(DATE(KalendářníRok,12,9),1),\"aaa\")","v":"ne"},{"$f":"TEXT(WEEKDAY(DATE(KalendářníRok,12,10),1),\"aaa\")","v":"po"},{"$f":"TEXT(WEEKDAY(DATE(KalendářníRok,12,11),1),\"aaa\")","v":"út"},{"$f":"TEXT(WEEKDAY(DATE(KalendářníRok,12,12),1),\"aaa\")","v":"st"},{"$f":"TEXT(WEEKDAY(DATE(KalendářníRok,12,13),1),\"aaa\")","v":"čt"},{"$f":"TEXT(WEEKDAY(DATE(KalendářníRok,12,14),1),\"aaa\")","v":"pá"},{"$f":"TEXT(WEEKDAY(DATE(KalendářníRok,12,15),1),\"aaa\")","v":"so"},{"$f":"TEXT(WEEKDAY(DATE(KalendářníRok,12,16),1),\"aaa\")","v":"ne"},{"$f":"TEXT(WEEKDAY(DATE(KalendářníRok,12,17),1),\"aaa\")","v":"po"},{"$f":"TEXT(WEEKDAY(DATE(KalendářníRok,12,18),1),\"aaa\")","v":"út"},{"$f":"TEXT(WEEKDAY(DATE(KalendářníRok,12,19),1),\"aaa\")","v":"st"},{"$f":"TEXT(WEEKDAY(DATE(KalendářníRok,12,20),1),\"aaa\")","v":"čt"},{"$f":"TEXT(WEEKDAY(DATE(KalendářníRok,12,21),1),\"aaa\")","v":"pá"},{"$f":"TEXT(WEEKDAY(DATE(KalendářníRok,12,22),1),\"aaa\")","v":"so"},{"$f":"TEXT(WEEKDAY(DATE(KalendářníRok,12,23),1),\"aaa\")","v":"ne"},{"$f":"TEXT(WEEKDAY(DATE(KalendářníRok,12,24),1),\"aaa\")","v":"po"},{"$f":"TEXT(WEEKDAY(DATE(KalendářníRok,12,25),1),\"aaa\")","v":"út"},{"$f":"TEXT(WEEKDAY(DATE(KalendářníRok,12,26),1),\"aaa\")","v":"st"},{"$f":"TEXT(WEEKDAY(DATE(KalendářníRok,12,27),1),\"aaa\")","v":"čt"},{"$f":"TEXT(WEEKDAY(DATE(KalendářníRok,12,28),1),\"aaa\")","v":"pá"},{"$f":"TEXT(WEEKDAY(DATE(KalendářníRok,12,29),1),\"aaa\")","v":"so"},{"$f":"TEXT(WEEKDAY(DATE(KalendářníRok,12,30),1),\"aaa\")","v":"ne"},{"$f":"TEXT(WEEKDAY(DATE(KalendářníRok,12,31),1),\"aaa\")","v":"po"},"Souhrny"]
[null,"Č. studenta","Jméno studenta","1","2","3","4","5","6","7","8","9","10","11","12","13","14","15","16","17","18","19","20","21","22","23","24","25","26","27","28","29","30","31","Z","O","N","P","Dny absence"]
[null,null,{"$f":"IFERROR(VLOOKUP(PrezenceZaProsinec[[#This Row],[Č. studenta]],SeznamStudentů[],18,FALSE),\"\")","v":""},{"$nulls":31},{"$f":"COUNTIF(PrezenceZaProsinec[[#This Row],[1]:[31]],Kód1)","v":0},{"$f":"COUNTIF(PrezenceZaProsinec[[#This Row],[1]:[31]],Kód2)","v":0},{"$f":"COUNTIF(PrezenceZaProsinec[[#This Row],[1]:[31]],Kód3)","v":0},{"$f":"COUNTIF(PrezenceZaProsinec[[#This Row],[1]:[31]],Kód4)","v":0},{"$f":"SUM(PrezenceZaProsinec[[#This Row],[O]:[N]])","v":0}]
[null,null,{"$f":"IFERROR(VLOOKUP(PrezenceZaProsinec[[#This Row],[Č. studenta]],SeznamStudentů[],18,FALSE),\"\")","v":""},{"$nulls":31},{"$f":"COUNTIF(PrezenceZaProsinec[[#This Row],[1]:[31]],Kód1)","v":0},{"$f":"COUNTIF(PrezenceZaProsinec[[#This Row],[1]:[31]],Kód2)","v":0},{"$f":"COUNTIF(PrezenceZaProsinec[[#This Row],[1]:[31]],Kód3)","v":0},{"$f":"COUNTIF(PrezenceZaProsinec[[#This Row],[1]:[31]],Kód4)","v":0},{"$f":"SUM(PrezenceZaProsinec[[#This Row],[O]:[N]])","v":0}]
[null,null,{"$f":"IFERROR(VLOOKUP(PrezenceZaProsinec[[#This Row],[Č. studenta]],SeznamStudentů[],18,FALSE),\"\")","v":""},{"$nulls":31},{"$f":"COUNTIF(PrezenceZaProsinec[[#This Row],[1]:[31]],Kód1)","v":0},{"$f":"COUNTIF(PrezenceZaProsinec[[#This Row],[1]:[31]],Kód2)","v":0},{"$f":"COUNTIF(PrezenceZaProsinec[[#This Row],[1]:[31]],Kód3)","v":0},{"$f":"COUNTIF(PrezenceZaProsinec[[#This Row],[1]:[31]],Kód4)","v":0},{"$f":"SUM(PrezenceZaProsinec[[#This Row],[O]:[N]])","v":0}]
[null,null,{"$f":"IFERROR(VLOOKUP(PrezenceZaProsinec[[#This Row],[Č. studenta]],SeznamStudentů[],18,FALSE),\"\")","v":""},{"$nulls":31},{"$f":"COUNTIF(PrezenceZaProsinec[[#This Row],[1]:[31]],Kód1)","v":0},{"$f":"COUNTIF(PrezenceZaProsinec[[#This Row],[1]:[31]],Kód2)","v":0},{"$f":"COUNTIF(PrezenceZaProsinec[[#This Row],[1]:[31]],Kód3)","v":0},{"$f":"COUNTIF(PrezenceZaProsinec[[#This Row],[1]:[31]],Kód4)","v":0},{"$f":"SUM(PrezenceZaProsinec[[#This Row],[O]:[N]])","v":0}]
[null,null,{"$f":"IFERROR(VLOOKUP(PrezenceZaProsinec[[#This Row],[Č. studenta]],SeznamStudentů[],18,FALSE),\"\")","v":""},{"$nulls":31},{"$f":"COUNTIF(PrezenceZaProsinec[[#This Row],[1]:[31]],Kód1)","v":0},{"$f":"COUNTIF(PrezenceZaProsinec[[#This Row],[1]:[31]],Kód2)","v":0},{"$f":"COUNTIF(PrezenceZaProsinec[[#This Row],[1]:[31]],Kód3)","v":0},{"$f":"COUNTIF(PrezenceZaProsinec[[#This Row],[1]:[31]],Kód4)","v":0},{"$f":"SUM(PrezenceZaProsinec[[#This Row],[O]:[N]])","v":0}]
[null,null,"Celkem dny absence",{"$f":"COUNTIF(PrezenceZaProsinec[1],\"N\")+COUNTIF(PrezenceZaProsinec[1],\"O\")","v":0},{"$f":"COUNTIF(PrezenceZaProsinec[2],\"N\")+COUNTIF(PrezenceZaProsinec[2],\"O\")","v":0},{"$f":"COUNTIF(PrezenceZaProsinec[3],\"N\")+COUNTIF(PrezenceZaProsinec[3],\"O\")","v":0},{"$f":"COUNTIF(PrezenceZaProsinec[4],\"N\")+COUNTIF(PrezenceZaProsinec[4],\"O\")","v":0},{"$f":"COUNTIF(PrezenceZaProsinec[5],\"N\")+COUNTIF(PrezenceZaProsinec[5],\"O\")","v":0},{"$f":"COUNTIF(PrezenceZaProsinec[6],\"N\")+COUNTIF(PrezenceZaProsinec[6],\"O\")","v":0},{"$f":"COUNTIF(PrezenceZaProsinec[7],\"N\")+COUNTIF(PrezenceZaProsinec[7],\"O\")","v":0},{"$f":"COUNTIF(PrezenceZaProsinec[8],\"N\")+COUNTIF(PrezenceZaProsinec[8],\"O\")","v":0},{"$f":"COUNTIF(PrezenceZaProsinec[9],\"N\")+COUNTIF(PrezenceZaProsinec[9],\"O\")","v":0},{"$f":"COUNTIF(PrezenceZaProsinec[10],\"N\")+COUNTIF(PrezenceZaProsinec[10],\"O\")","v":0},{"$f":"COUNTIF(PrezenceZaProsinec[11],\"N\")+COUNTIF(PrezenceZaProsinec[11],\"O\")","v":0},{"$f":"COUNTIF(PrezenceZaProsinec[12],\"N\")+COUNTIF(PrezenceZaProsinec[12],\"O\")","v":0},{"$f":"COUNTIF(PrezenceZaProsinec[13],\"N\")+COUNTIF(PrezenceZaProsinec[13],\"O\")","v":0},{"$f":"COUNTIF(PrezenceZaProsinec[14],\"N\")+COUNTIF(PrezenceZaProsinec[14],\"O\")","v":0},{"$f":"COUNTIF(PrezenceZaProsinec[15],\"N\")+COUNTIF(PrezenceZaProsinec[15],\"O\")","v":0},{"$f":"COUNTIF(PrezenceZaProsinec[16],\"N\")+COUNTIF(PrezenceZaProsinec[16],\"O\")","v":0},{"$f":"COUNTIF(PrezenceZaProsinec[17],\"N\")+COUNTIF(PrezenceZaProsinec[17],\"O\")","v":0},{"$f":"COUNTIF(PrezenceZaProsinec[18],\"N\")+COUNTIF(PrezenceZaProsinec[18],\"O\")","v":0},{"$f":"COUNTIF(PrezenceZaProsinec[19],\"N\")+COUNTIF(PrezenceZaProsinec[19],\"O\")","v":0},{"$f":"COUNTIF(PrezenceZaProsinec[20],\"N\")+COUNTIF(PrezenceZaProsinec[20],\"O\")","v":0},{"$f":"COUNTIF(PrezenceZaProsinec[21],\"N\")+COUNTIF(PrezenceZaProsinec[21],\"O\")","v":0},{"$f":"COUNTIF(PrezenceZaProsinec[22],\"N\")+COUNTIF(PrezenceZaProsinec[22],\"O\")","v":0},{"$f":"COUNTIF(PrezenceZaProsinec[23],\"N\")+COUNTIF(PrezenceZaProsinec[23],\"O\")","v":0},{"$f":"COUNTIF(PrezenceZaProsinec[24],\"N\")+COUNTIF(PrezenceZaProsinec[24],\"O\")","v":0},{"$f":"COUNTIF(PrezenceZaProsinec[25],\"N\")+COUNTIF(PrezenceZaProsinec[25],\"O\")","v":0},{"$f":"COUNTIF(PrezenceZaProsinec[26],\"N\")+COUNTIF(PrezenceZaProsinec[26],\"O\")","v":0},{"$f":"COUNTIF(PrezenceZaProsinec[27],\"N\")+COUNTIF(PrezenceZaProsinec[27],\"O\")","v":0},{"$f":"COUNTIF(PrezenceZaProsinec[28],\"N\")+COUNTIF(PrezenceZaProsinec[28],\"O\")","v":0},{"$f":"COUNTIF(PrezenceZaProsinec[29],\"N\")+COUNTIF(PrezenceZaProsinec[29],\"O\")","v":0},{"$f":"COUNTIF(PrezenceZaProsinec[30],\"N\")+COUNTIF(PrezenceZaProsinec[30],\"O\")","v":0},{"$f":"COUNTIF(PrezenceZaProsinec[31],\"N\")+COUNTIF(PrezenceZaProsinec[31],\"O\")","v":0},{"$f":"SUBTOTAL(109,PrezenceZaProsinec[Z])","v":0},{"$f":"SUBTOTAL(109,PrezenceZaProsinec[O])","v":0},{"$f":"SUBTOTAL(109,PrezenceZaProsinec[N])","v":0},{"$f":"SUBTOTAL(109,PrezenceZaProsinec[P])","v":0},{"$f":"SUBTOTAL(109,PrezenceZaProsinec[Dny absence])","v":0}]

{"sheet":"Leden","index":7,"n_rows":12,"n_cols":39,"rows_kept":12,"merged":[[4,34,4,38]]}
["ZÁZNAM PREZENCE STUDENTŮ",{"$nulls":36},"Zahájení školního roku:",{"$f":"KalendářníRok","v":2012}]
[]
[null,null,{"$f":"TextLegendyBarev","v":"LEGENDA BAREV "},{"$f":"Kód1","v":"Z"},{"$f":"Kód1Text","v":"Zpoždění"},null,null,{"$f":"Kód2","v":"O"},{"$f":"Kód2Text","v":"Omluven(a)"},null,null,{"$f":"Kód3","v":"N"},{"$f":"Kód3Text","v":"Neomluven(a)"},null,null,{"$f":"Kód4","v":"P"},{"$f":"Kód4Text","v":"Přítomnost"},null,null,{"$f":"Kód5","v":"Ne"},{"$f":"Kód5Text","v":"Není vyučování"}]
[]
[null,{"$f":"DATE(KalendářníRok+1,1,1)","v":"2013-01-01"},null,{"$f":"TEXT(WEEKDAY(DATE(KalendářníRok+1,1,1),1),\"aaa\")","v":"út"},{"$f":"TEXT(WEEKDAY(DATE(KalendářníRok+1,1,2),1),\"aaa\")","v":"st"},{"$f":"TEXT(WEEKDAY(DATE(KalendářníRok+1,1,3),1),\"aaa\")","v":"čt"},{"$f":"TEXT(WEEKDAY(DATE(KalendářníRok+1,1,4),1),\"aaa\")","v":"pá"},{"$f":"TEXT(WEEKDAY(DATE(KalendářníRok+1,1,5),1),\"aaa\")","v":"so"},{"$f":"TEXT(WEEKDAY(DATE(KalendářníRok+1,1,6),1),\"aaa\")","v":"ne"},{"$f":"TEXT(WEEKDAY(DATE(KalendářníRok+1,1,7),1),\"aaa\")","v":"po"},{"$f":"TEXT(WEEKDAY(DATE(KalendářníRok+1,1,8),1),\"aaa\")","v":"út"},{"$f":"TEXT(WEEKDAY(DATE(KalendářníRok+1,1,9),1),\"aaa\")","v":"st"},{"$f":"TEXT(WEEKDAY(DATE(KalendářníRok+1,1,10),1),\"aaa\")","v":"čt"},{"$f":"TEXT(WEEKDAY(DATE(KalendářníRok+1,1,11),1),\"aaa\")","v":"pá"},{"$f":"TEXT(WEEKDAY(DATE(KalendářníRok+1,1,12),1),\"aaa\")","v":"so"},{"$f":"TEXT(WEEKDAY(DATE(KalendářníRok+1,1,13),1),\"aaa\")","v":"ne"},{"$f":"TEXT(WEEKDAY(DATE(KalendářníRok+1,1,14),1),\"aaa\")","v":"po"},{"$f":"TEXT(WEEKDAY(DATE(KalendářníRok+1,1,15),1),\"aaa\")","v":"út"},{"$f":"TEXT(WEEKDAY(DATE(KalendářníRok+1,1,16),1),\"aaa\")","v":"st"},{"$f":"TEXT(WEEKDAY(DATE(KalendářníRok+1,1,17),1),\"aaa\")","v":"čt"},{"$f":"TEXT(WEEKDAY(DATE(KalendářníRok+1,1,18),1),\"aaa\")","v":"pá"},{"$f":"TEXT(WEEKDAY(DATE(KalendářníRok+1,1,19),1),\"aaa\")","v":"so"},{"$f":"TEXT(WEEKDAY(DATE(KalendářníRok+1,1,20),1),\"aaa\")","v":"ne"},{"$f":"TEXT(WEEKDAY(DATE(KalendářníRok+1,1,21),1),\"aaa\")","v":"po"},{"$f":"TEXT(WEEKDAY(DATE(KalendářníRok+1,1,22),1),\"aaa\")","v":"út"},{"$f":"TEXT(WEEKDAY(DATE(KalendářníRok+1,1,23),1),\"aaa\")","v":"st"},{"$f":"TEXT(WEEKDAY(DATE(KalendářníRok+1,1,24),1),\"aaa\")","v":"čt"},{"$f":"TEXT(WEEKDAY(DATE(KalendářníRok+1,1,25),1),\"aaa\")","v":"pá"},{"$f":"TEXT(WEEKDAY(DATE(KalendářníRok+1,1,26),1),\"aaa\")","v":"so"},{"$f":"TEXT(WEEKDAY(DATE(KalendářníRok+1,1,27),1),\"aaa\")","v":"ne"},{"$f":"TEXT(WEEKDAY(DATE(KalendářníRok+1,1,28),1),\"aaa\")","v":"po"},{"$f":"TEXT(WEEKDAY(DATE(KalendářníRok+1,1,29),1),\"aaa\")","v":"út"},{"$f":"TEXT(WEEKDAY(DATE(KalendářníRok+1,1,30),1),\"aaa\")","v":"st"},{"$f":"TEXT(WEEKDAY(DATE(KalendářníRok+1,1,31),1),\"aaa\")","v":"čt"},"Souhrny"]
[null,"Č. studenta","Jméno studenta","1","2","3","4","5","6","7","8","9","10","11","12","13","14","15","16","17","18","19","20","21","22","23","24","25","26","27","28","29","30","31","Z","O","N","P","Dny absence"]
[null,null,{"$f":"IFERROR(VLOOKUP(PrezenceZaLeden[[#This Row],[Č. studenta]],SeznamStudentů[],18,FALSE),\"\")","v":""},{"$nulls":31},{"$f":"COUNTIF(PrezenceZaLeden[[#This Row],[1]:[31]],Kód1)","v":0},{"$f":"COUNTIF(PrezenceZaLeden[[#This Row],[1]:[31]],Kód2)","v":0},{"$f":"COUNTIF(PrezenceZaLeden[[#This Row],[1]:[31]],Kód3)","v":0},{"$f":"COUNTIF(PrezenceZaLeden[[#This Row],[1]:[31]],Kód4)","v":0},{"$f":"SUM(PrezenceZaLeden[[#This Row],[O]:[N]])","v":0}]
[null,null,{"$f":"IFERROR(VLOOKUP(PrezenceZaLeden[[#This Row],[Č. studenta]],SeznamStudentů[],18,FALSE),\"\")","v":""},{"$nulls":31},{"$f":"COUNTIF(PrezenceZaLeden[[#This Row],[1]:[31]],Kód1)","v":0},{"$f":"COUNTIF(PrezenceZaLeden[[#This Row],[1]:[31]],Kód2)","v":0},{"$f":"COUNTIF(PrezenceZaLeden[[#This Row],[1]:[31]],Kód3)","v":0},{"$f":"COUNTIF(PrezenceZaLeden[[#This Row],[1]:[31]],Kód4)","v":0},{"$f":"SUM(PrezenceZaLeden[[#This Row],[O]:[N]])","v":0}]
[null,null,{"$f":"IFERROR(VLOOKUP(PrezenceZaLeden[[#This Row],[Č. studenta]],SeznamStudentů[],18,FALSE),\"\")","v":""},{"$nulls":31},{"$f":"COUNTIF(PrezenceZaLeden[[#This Row],[1]:[31]],Kód1)","v":0},{"$f":"COUNTIF(PrezenceZaLeden[[#This Row],[1]:[31]],Kód2)","v":0},{"$f":"COUNTIF(PrezenceZaLeden[[#This Row],[1]:[31]],Kód3)","v":0},{"$f":"COUNTIF(PrezenceZaLeden[[#This Row],[1]:[31]],Kód4)","v":0},{"$f":"SUM(PrezenceZaLeden[[#This Row],[O]:[N]])","v":0}]
[null,null,{"$f":"IFERROR(VLOOKUP(PrezenceZaLeden[[#This Row],[Č. studenta]],SeznamStudentů[],18,FALSE),\"\")","v":""},{"$nulls":31},{"$f":"COUNTIF(PrezenceZaLeden[[#This Row],[1]:[31]],Kód1)","v":0},{"$f":"COUNTIF(PrezenceZaLeden[[#This Row],[1]:[31]],Kód2)","v":0},{"$f":"COUNTIF(PrezenceZaLeden[[#This Row],[1]:[31]],Kód3)","v":0},{"$f":"COUNTIF(PrezenceZaLeden[[#This Row],[1]:[31]],Kód4)","v":0},{"$f":"SUM(PrezenceZaLeden[[#This Row],[O]:[N]])","v":0}]
[null,null,{"$f":"IFERROR(VLOOKUP(PrezenceZaLeden[[#This Row],[Č. studenta]],SeznamStudentů[],18,FALSE),\"\")","v":""},{"$nulls":31},{"$f":"COUNTIF(PrezenceZaLeden[[#This Row],[1]:[31]],Kód1)","v":0},{"$f":"COUNTIF(PrezenceZaLeden[[#This Row],[1]:[31]],Kód2)","v":0},{"$f":"COUNTIF(PrezenceZaLeden[[#This Row],[1]:[31]],Kód3)","v":0},{"$f":"COUNTIF(PrezenceZaLeden[[#This Row],[1]:[31]],Kód4)","v":0},{"$f":"SUM(PrezenceZaLeden[[#This Row],[O]:[N]])","v":0}]
[null,null,"Celkem dny absence",{"$f":"COUNTIF(PrezenceZaLeden[1],\"N\")+COUNTIF(PrezenceZaLeden[1],\"O\")","v":0},{"$f":"COUNTIF(PrezenceZaLeden[2],\"N\")+COUNTIF(PrezenceZaLeden[2],\"O\")","v":0},{"$f":"COUNTIF(PrezenceZaLeden[3],\"N\")+COUNTIF(PrezenceZaLeden[3],\"O\")","v":0},{"$f":"COUNTIF(PrezenceZaLeden[4],\"N\")+COUNTIF(PrezenceZaLeden[4],\"O\")","v":0},{"$f":"COUNTIF(PrezenceZaLeden[5],\"N\")+COUNTIF(PrezenceZaLeden[5],\"O\")","v":0},{"$f":"COUNTIF(PrezenceZaLeden[6],\"N\")+COUNTIF(PrezenceZaLeden[6],\"O\")","v":0},{"$f":"COUNTIF(PrezenceZaLeden[7],\"N\")+COUNTIF(PrezenceZaLeden[7],\"O\")","v":0},{"$f":"COUNTIF(PrezenceZaLeden[8],\"N\")+COUNTIF(PrezenceZaLeden[8],\"O\")","v":0},{"$f":"COUNTIF(PrezenceZaLeden[9],\"N\")+COUNTIF(PrezenceZaLeden[9],\"O\")","v":0},{"$f":"COUNTIF(PrezenceZaLeden[10],\"N\")+COUNTIF(PrezenceZaLeden[10],\"O\")","v":0},{"$f":"COUNTIF(PrezenceZaLeden[11],\"N\")+COUNTIF(PrezenceZaLeden[11],\"O\")","v":0},{"$f":"COUNTIF(PrezenceZaLeden[12],\"N\")+COUNTIF(PrezenceZaLeden[12],\"O\")","v":0},{"$f":"COUNTIF(PrezenceZaLeden[13],\"N\")+COUNTIF(PrezenceZaLeden[13],\"O\")","v":0},{"$f":"COUNTIF(PrezenceZaLeden[14],\"N\")+COUNTIF(PrezenceZaLeden[14],\"O\")","v":0},{"$f":"COUNTIF(PrezenceZaLeden[15],\"N\")+COUNTIF(PrezenceZaLeden[15],\"O\")","v":0},{"$f":"COUNTIF(PrezenceZaLeden[16],\"N\")+COUNTIF(PrezenceZaLeden[16],\"O\")","v":0},{"$f":"COUNTIF(PrezenceZaLeden[17],\"N\")+COUNTIF(PrezenceZaLeden[17],\"O\")","v":0},{"$f":"COUNTIF(PrezenceZaLeden[18],\"N\")+COUNTIF(PrezenceZaLeden[18],\"O\")","v":0},{"$f":"COUNTIF(PrezenceZaLeden[19],\"N\")+COUNTIF(PrezenceZaLeden[19],\"O\")","v":0},{"$f":"COUNTIF(PrezenceZaLeden[20],\"N\")+COUNTIF(PrezenceZaLeden[20],\"O\")","v":0},{"$f":"COUNTIF(PrezenceZaLeden[21],\"N\")+COUNTIF(PrezenceZaLeden[21],\"O\")","v":0},{"$f":"COUNTIF(PrezenceZaLeden[22],\"N\")+COUNTIF(PrezenceZaLeden[22],\"O\")","v":0},{"$f":"COUNTIF(PrezenceZaLeden[23],\"N\")+COUNTIF(PrezenceZaLeden[23],\"O\")","v":0},{"$f":"COUNTIF(PrezenceZaLeden[24],\"N\")+COUNTIF(PrezenceZaLeden[24],\"O\")","v":0},{"$f":"COUNTIF(PrezenceZaLeden[25],\"N\")+COUNTIF(PrezenceZaLeden[25],\"O\")","v":0},{"$f":"COUNTIF(PrezenceZaLeden[26],\"N\")+COUNTIF(PrezenceZaLeden[26],\"O\")","v":0},{"$f":"COUNTIF(PrezenceZaLeden[27],\"N\")+COUNTIF(PrezenceZaLeden[27],\"O\")","v":0},{"$f":"COUNTIF(PrezenceZaLeden[28],\"N\")+COUNTIF(PrezenceZaLeden[28],\"O\")","v":0},{"$f":"COUNTIF(PrezenceZaLeden[29],\"N\")+COUNTIF(PrezenceZaLeden[29],\"O\")","v":0},{"$f":"COUNTIF(PrezenceZaLeden[30],\"N\")+COUNTIF(PrezenceZaLeden[30],\"O\")","v":0},{"$f":"COUNTIF(PrezenceZaLeden[31],\"N\")+COUNTIF(PrezenceZaLeden[31],\"O\")","v":0},{"$f":"SUBTOTAL(109,PrezenceZaLeden[Z])","v":0},{"$f":"SUBTOTAL(109,PrezenceZaLeden[O])","v":0},{"$f":"SUBTOTAL(109,PrezenceZaLeden[N])","v":0},{"$f":"SUBTOTAL(109,PrezenceZaLeden[P])","v":0},{"$f":"SUBTOTAL(109,PrezenceZaLeden[Dny absence])","v":0}]

{"sheet":"Únor","index":8,"n_rows":12,"n_cols":39,"rows_kept":12,"merged":[[4,34,4,38]]}
["ZÁZNAM PREZENCE STUDENTŮ",{"$nulls":36},"Zahájení školního roku:",{"$f":"KalendářníRok","v":2012}]
[]
[null,null,{"$f":"TextLegendyBarev","v":"LEGENDA BAREV "},{"$f":"Kód1","v":"Z"},{"$f":"Kód1Text","v":"Zpoždění"},null,null,{"$f":"Kód2","v":"O"},{"$f":"Kód2Text","v":"Omluven(a)"},null,null,{"$f":"Kód3","v":"N"},{"$f":"Kód3Text","v":"Neomluven(a)"},null,null,{"$f":"Kód4","v":"P"},{"$f":"Kód4Text","v":"Přítomnost"},null,null,{"$f":"Kód5","v":"Ne"},{"$f":"Kód5Text","v":"Není vyučování"}]
[]
[null,{"$f":"DATE(KalendářníRok+1,2,1)","v":"2013-02-01"},null,{"$f":"TEXT(WEEKDAY(DATE(KalendářníRok+1,2,1),1),\"aaa\")","v":"pá"},{"$f":"TEXT(WEEKDAY(DATE(KalendářníRok+1,2,2),1),\"aaa\")","v":"so"},{"$f":"TEXT(WEEKDAY(DATE(KalendářníRok+1,2,3),1),\"aaa\")","v":"ne"},{"$f":"TEXT(WEEKDAY(DATE(KalendářníRok+1,2,4),1),\"aaa\")","v":"po"},{"$f":"TEXT(WEEKDAY(DATE(KalendářníRok+1,2,5),1),\"aaa\")","v":"út"},{"$f":"TEXT(WEEKDAY(DATE(KalendářníRok+1,2,6),1),\"aaa\")","v":"st"},{"$f":"TEXT(WEEKDAY(DATE(KalendářníRok+1,2,7),1),\"aaa\")","v":"čt"},{"$f":"TEXT(WEEKDAY(DATE(KalendářníRok+1,2,8),1),\"aaa\")","v":"pá"},{"$f":"TEXT(WEEKDAY(DATE(KalendářníRok+1,2,9),1),\"aaa\")","v":"so"},{"$f":"TEXT(WEEKDAY(DATE(KalendářníRok+1,2,10),1),\"aaa\")","v":"ne"},{"$f":"TEXT(WEEKDAY(DATE(KalendářníRok+1,2,11),1),\"aaa\")","v":"po"},{"$f":"TEXT(WEEKDAY(DATE(KalendářníRok+1,2,12),1),\"aaa\")","v":"út"},{"$f":"TEXT(WEEKDAY(DATE(KalendářníRok+1,2,13),1),\"aaa\")","v":"st"},{"$f":"TEXT(WEEKDAY(DATE(KalendářníRok+1,2,14),1),\"aaa\")","v":"čt"},{"$f":"TEXT(WEEKDAY(DATE(KalendářníRok+1,2,15),1),\"aaa\")","v":"pá"},{"$f":"TEXT(WEEKDAY(DATE(KalendářníRok+1,2,16),1),\"aaa\")","v":"so"},{"$f":"TEXT(WEEKDAY(DATE(KalendářníRok+1,2,17),1),\"aaa\")","v":"ne"},{"$f":"TEXT(WEEKDAY(DATE(KalendářníRok+1,2,18),1),\"aaa\")","v":"po"},{"$f":"TEXT(WEEKDAY(DATE(KalendářníRok+1,2,19),1),\"aaa\")","v":"út"},{"$f":"TEXT(WEEKDAY(DATE(KalendářníRok+1,2,20),1),\"aaa\")","v":"st"},{"$f":"TEXT(WEEKDAY(DATE(KalendářníRok+1,2,21),1),\"aaa\")","v":"čt"},{"$f":"TEXT(WEEKDAY(DATE(KalendářníRok+1,2,22),1),\"aaa\")","v":"pá"},{"$f":"TEXT(WEEKDAY(DATE(KalendářníRok+1,2,23),1),\"aaa\")","v":"so"},{"$f":"TEXT(WEEKDAY(DATE(KalendářníRok+1,2,24),1),\"aaa\")","v":"ne"},{"$f":"TEXT(WEEKDAY(DATE(KalendářníRok+1,2,25),1),\"aaa\")","v":"po"},{"$f":"TEXT(WEEKDAY(DATE(KalendářníRok+1,2,26),1),\"aaa\")","v":"út"},{"$f":"TEXT(WEEKDAY(DATE(KalendářníRok+1,2,27),1),\"aaa\")","v":"st"},{"$f":"TEXT(WEEKDAY(DATE(KalendářníRok+1,2,28),1),\"aaa\")","v":"čt"},{"$f":"TEXT(WEEKDAY(DATE(KalendářníRok+1,2,29),1),\"aaa\")","v":"pá"},null,null,"Souhrny"]
[null,"Č. studenta","Jméno studenta","1","2","3","4","5","6","7","8","9","10","11","12","13","14","15","16","17","18","19","20","21","22","23","24","25","26","27","28","29","30","31","Z","O","N","P","Dny absence"]
[null,null,{"$f":"IFERROR(VLOOKUP(PrezenceZaÚnor[[#This Row],[Č. studenta]],SeznamStudentů[],18,FALSE),\"\")","v":""},{"$nulls":31},{"$f":"COUNTIF(PrezenceZaÚnor[[#This Row],[1]:[31]],Kód1)","v":0},{"$f":"COUNTIF(PrezenceZaÚnor[[#This Row],[1]:[31]],Kód2)","v":0},{"$f":"COUNTIF(PrezenceZaÚnor[[#This Row],[1]:[31]],Kód3)","v":0},{"$f":"COUNTIF(PrezenceZaÚnor[[#This Row],[1]:[31]],Kód4)","v":0},{"$f":"SUM(PrezenceZaÚnor[[#This Row],[O]:[N]])","v":0}]
[null,null,{"$f":"IFERROR(VLOOKUP(PrezenceZaÚnor[[#This Row],[Č. studenta]],SeznamStudentů[],18,FALSE),\"\")","v":""},{"$nulls":31},{"$f":"COUNTIF(PrezenceZaÚnor[[#This Row],[1]:[31]],Kód1)","v":0},{"$f":"COUNTIF(PrezenceZaÚnor[[#This Row],[1]:[31]],Kód2)","v":0},{"$f":"COUNTIF(PrezenceZaÚnor[[#This Row],[1]:[31]],Kód3)","v":0},{"$f":"COUNTIF(PrezenceZaÚnor[[#This Row],[1]:[31]],Kód4)","v":0},{"$f":"SUM(PrezenceZaÚnor[[#This Row],[O]:[N]])","v":0}]
[null,null,{"$f":"IFERROR(VLOOKUP(PrezenceZaÚnor[[#This Row],[Č. studenta]],SeznamStudentů[],18,FALSE),\"\")","v":""},{"$nulls":31},{"$f":"COUNTIF(PrezenceZaÚnor[[#This Row],[1]:[31]],Kód1)","v":0},{"$f":"COUNTIF(PrezenceZaÚnor[[#This Row],[1]:[31]],Kód2)","v":0},{"$f":"COUNTIF(PrezenceZaÚnor[[#This Row],[1]:[31]],Kód3)","v":0},{"$f":"COUNTIF(PrezenceZaÚnor[[#This Row],[1]:[31]],Kód4)","v":0},{"$f":"SUM(PrezenceZaÚnor[[#This Row],[O]:[N]])","v":0}]
[null,null,{"$f":"IFERROR(VLOOKUP(PrezenceZaÚnor[[#This Row],[Č. studenta]],SeznamStudentů[],18,FALSE),\"\")","v":""},{"$nulls":31},{"$f":"COUNTIF(PrezenceZaÚnor[[#This Row],[1]:[31]],Kód1)","v":0},{"$f":"COUNTIF(PrezenceZaÚnor[[#This Row],[1]:[31]],Kód2)","v":0},{"$f":"COUNTIF(PrezenceZaÚnor[[#This Row],[1]:[31]],Kód3)","v":0},{"$f":"COUNTIF(PrezenceZaÚnor[[#This Row],[1]:[31]],Kód4)","v":0},{"$f":"SUM(PrezenceZaÚnor[[#This Row],[O]:[N]])","v":0}]
[null,null,{"$f":"IFERROR(VLOOKUP(PrezenceZaÚnor[[#This Row],[Č. studenta]],SeznamStudentů[],18,FALSE),\"\")","v":""},{"$nulls":31},{"$f":"COUNTIF(PrezenceZaÚnor[[#This Row],[1]:[31]],Kód1)","v":0},{"$f":"COUNTIF(PrezenceZaÚnor[[#This Row],[1]:[31]],Kód2)","v":0},{"$f":"COUNTIF(PrezenceZaÚnor[[#This Row],[1]:[31]],Kód3)","v":0},{"$f":"COUNTIF(PrezenceZaÚnor[[#This Row],[1]:[31]],Kód4)","v":0},{"$f":"SUM(PrezenceZaÚnor[[#This Row],[O]:[N]])","v":0}]
[null,null,"Celkem dny absence",{"$f":"COUNTIF(PrezenceZaÚnor[1],\"N\")+COUNTIF(PrezenceZaÚnor[1],\"O\")","v":0},{"$f":"COUNTIF(PrezenceZaÚnor[2],\"N\")+COUNTIF(PrezenceZaÚnor[2],\"O\")","v":0},{"$f":"COUNTIF(PrezenceZaÚnor[3],\"N\")+COUNTIF(PrezenceZaÚnor[3],\"O\")","v":0},{"$f":"COUNTIF(PrezenceZaÚnor[4],\"N\")+COUNTIF(PrezenceZaÚnor[4],\"O\")","v":0},{"$f":"COUNTIF(PrezenceZaÚnor[5],\"N\")+COUNTIF(PrezenceZaÚnor[5],\"O\")","v":0},{"$f":"COUNTIF(PrezenceZaÚnor[6],\"N\")+COUNTIF(PrezenceZaÚnor[6],\"O\")","v":0},{"$f":"COUNTIF(PrezenceZaÚnor[7],\"N\")+COUNTIF(PrezenceZaÚnor[7],\"O\")","v":0},{"$f":"COUNTIF(PrezenceZaÚnor[8],\"N\")+COUNTIF(PrezenceZaÚnor[8],\"O\")","v":0},{"$f":"COUNTIF(PrezenceZaÚnor[9],\"N\")+COUNTIF(PrezenceZaÚnor[9],\"O\")","v":0},{"$f":"COUNTIF(PrezenceZaÚnor[10],\"N\")+COUNTIF(PrezenceZaÚnor[10],\"O\")","v":0},{"$f":"COUNTIF(PrezenceZaÚnor[11],\"N\")+COUNTIF(PrezenceZaÚnor[11],\"O\")","v":0},{"$f":"COUNTIF(PrezenceZaÚnor[12],\"N\")+COUNTIF(PrezenceZaÚnor[12],\"O\")","v":0},{"$f":"COUNTIF(PrezenceZaÚnor[13],\"N\")+COUNTIF(PrezenceZaÚnor[13],\"O\")","v":0},{"$f":"COUNTIF(PrezenceZaÚnor[14],\"N\")+COUNTIF(PrezenceZaÚnor[14],\"O\")","v":0},{"$f":"COUNTIF(PrezenceZaÚnor[15],\"N\")+COUNTIF(PrezenceZaÚnor[15],\"O\")","v":0},{"$f":"COUNTIF(PrezenceZaÚnor[16],\"N\")+COUNTIF(PrezenceZaÚnor[16],\"O\")","v":0},{"$f":"COUNTIF(PrezenceZaÚnor[17],\"N\")+COUNTIF(PrezenceZaÚnor[17],\"O\")","v":0},{"$f":"COUNTIF(PrezenceZaÚnor[18],\"N\")+COUNTIF(PrezenceZaÚnor[18],\"O\")","v":0},{"$f":"COUNTIF(PrezenceZaÚnor[19],\"N\")+COUNTIF(PrezenceZaÚnor[19],\"O\")","v":0},{"$f":"COUNTIF(PrezenceZaÚnor[20],\"N\")+COUNTIF(PrezenceZaÚnor[20],\"O\")","v":0},{"$f":"COUNTIF(PrezenceZaÚnor[21],\"N\")+COUNTIF(PrezenceZaÚnor[21],\"O\")","v":0},{"$f":"COUNTIF(PrezenceZaÚnor[22],\"N\")+COUNTIF(PrezenceZaÚnor[22],\"O\")","v":0},{"$f":"COUNTIF(PrezenceZaÚnor[23],\"N\")+COUNTIF(PrezenceZaÚnor[23],\"O\")","v":0},{"$f":"COUNTIF(PrezenceZaÚnor[24],\"N\")+COUNTIF(PrezenceZaÚnor[24],\"O\")","v":0},{"$f":"COUNTIF(PrezenceZaÚnor[25],\"N\")+COUNTIF(PrezenceZaÚnor[25],\"O\")","v":0},{"$f":"COUNTIF(PrezenceZaÚnor[26],\"N\")+COUNTIF(PrezenceZaÚnor[26],\"O\")","v":0},{"$f":"COUNTIF(PrezenceZaÚnor[27],\"N\")+COUNTIF(PrezenceZaÚnor[27],\"O\")","v":0},{"$f":"COUNTIF(PrezenceZaÚnor[28],\"N\")+COUNTIF(PrezenceZaÚnor[28],\"O\")","v":0},{"$f":"COUNTIF(PrezenceZaÚnor[29],\"N\")+COUNTIF(PrezenceZaÚnor[29],\"O\")","v":0},{"$f":"COUNTIF(PrezenceZaÚnor[30],\"N\")+COUNTIF(PrezenceZaÚnor[30],\"O\")","v":0},{"$f":"COUNTIF(PrezenceZaÚnor[31],\"N\")+COUNTIF(PrezenceZaÚnor[31],\"O\")","v":0},{"$f":"SUBTOTAL(109,PrezenceZaÚnor[Z])","v":0},{"$f":"SUBTOTAL(109,PrezenceZaÚnor[O])","v":0},{"$f":"SUBTOTAL(109,PrezenceZaÚnor[N])","v":0},{"$f":"SUBTOTAL(109,PrezenceZaÚnor[P])","v":0},{"$f":"SUBTOTAL(109,PrezenceZaÚnor[Dny absence])","v":0}]

{"sheet":"Březen","index":9,"n_rows":12,"n_cols":39,"rows_kept":12,"merged":[[4,34,4,38]]}
["ZÁZNAM PREZENCE STUDENTŮ",{"$nulls":36},"Zahájení školního roku:",{"$f":"KalendářníRok","v":2012}]
[]
[null,null,{"$f":"TextLegendyBarev","v":"LEGENDA BAREV "},{"$f":"Kód1","v":"Z"},{"$f":"Kód1Text","v":"Zpoždění"},null,null,{"$f":"Kód2","v":"O"},{"$f":"Kód2Text","v":"Omluven(a)"},null,null,{"$f":"Kód3","v":"N"},{"$f":"Kód3Text","v":"Neomluven(a)"},null,null,{"$f":"Kód4","v":"P"},{"$f":"Kód4Text","v":"Přítomnost"},null,null,{"$f":"Kód5","v":"Ne"},{"$f":"Kód5Text","v":"Není vyučování"}]
[]
[null,{"$f":"DATE(KalendářníRok+1,3,1)","v":"2013-03-01"},null,{"$f":"TEXT(WEEKDAY(DATE(KalendářníRok+1,3,1),1),\"aaa\")","v":"pá"},{"$f":"TEXT(WEEKDAY(DATE(KalendářníRok+1,3,2),1),\"aaa\")","v":"so"},{"$f":"TEXT(WEEKDAY(DATE(KalendářníRok+1,3,3),1),\"aaa\")","v":"ne"},{"$f":"TEXT(WEEKDAY(DATE(KalendářníRok+1,3,4),1),\"aaa\")","v":"po"},{"$f":"TEXT(WEEKDAY(DATE(KalendářníRok+1,3,5),1),\"aaa\")","v":"út"},{"$f":"TEXT(WEEKDAY(DATE(KalendářníRok+1,3,6),1),\"aaa\")","v":"st"},{"$f":"TEXT(WEEKDAY(DATE(KalendářníRok+1,3,7),1),\"aaa\")","v":"čt"},{"$f":"TEXT(WEEKDAY(DATE(KalendářníRok+1,3,8),1),\"aaa\")","v":"pá"},{"$f":"TEXT(WEEKDAY(DATE(KalendářníRok+1,3,9),1),\"aaa\")","v":"so"},{"$f":"TEXT(WEEKDAY(DATE(KalendářníRok+1,3,10),1),\"aaa\")","v":"ne"},{"$f":"TEXT(WEEKDAY(DATE(KalendářníRok+1,3,11),1),\"aaa\")","v":"po"},{"$f":"TEXT(WEEKDAY(DATE(KalendářníRok+1,3,12),1),\"aaa\")","v":"út"},{"$f":"TEXT(WEEKDAY(DATE(KalendářníRok+1,3,13),1),\"aaa\")","v":"st"},{"$f":"TEXT(WEEKDAY(DATE(KalendářníRok+1,3,14),1),\"aaa\")","v":"čt"},{"$f":"TEXT(WEEKDAY(DATE(KalendářníRok+1,3,15),1),\"aaa\")","v":"pá"},{"$f":"TEXT(WEEKDAY(DATE(KalendářníRok+1,3,16),1),\"aaa\")","v":"so"},{"$f":"TEXT(WEEKDAY(DATE(KalendářníRok+1,3,17),1),\"aaa\")","v":"ne"},{"$f":"TEXT(WEEKDAY(DATE(KalendářníRok+1,3,18),1),\"aaa\")","v":"po"},{"$f":"TEXT(WEEKDAY(DATE(KalendářníRok+1,3,19),1),\"aaa\")","v":"út"},{"$f":"TEXT(WEEKDAY(DATE(KalendářníRok+1,3,20),1),\"aaa\")","v":"st"},{"$f":"TEXT(WEEKDAY(DATE(KalendářníRok+1,3,21),1),\"aaa\")","v":"čt"},{"$f":"TEXT(WEEKDAY(DATE(KalendářníRok+1,3,22),1),\"aaa\")","v":"pá"},{"$f":"TEXT(WEEKDAY(DATE(KalendářníRok+1,3,23),1),\"aaa\")","v":"so"},{"$f":"TEXT(WEEKDAY(DATE(KalendářníRok+1,3,24),1),\"aaa\")","v":"ne"},{"$f":"TEXT(WEEKDAY(DATE(KalendářníRok+1,3,25),1),\"aaa\")","v":"po"},{"$f":"TEXT(WEEKDAY(DATE(KalendářníRok+1,3,26),1),\"aaa\")","v":"út"},{"$f":"TEXT(WEEKDAY(DATE(KalendářníRok+1,3,27),1),\"aaa\")","v":"st"},{"$f":"TEXT(WEEKDAY(DATE(KalendářníRok+1,3,28),1),\"aaa\")","v":"čt"},{"$f":"TEXT(WEEKDAY(DATE(KalendářníRok+1,3,29),1),\"aaa\")","v":"pá"},{"$f":"TEXT(WEEKDAY(DATE(KalendářníRok+1,3,30),1),\"aaa\")","v":"so"},{"$f":"TEXT(WEEKDAY(DATE(KalendářníRok+1,3,31),1),\"aaa\")","v":"ne"},"Souhrny"]
[null,"Č. studenta","Jméno studenta","1","2","3","4","5","6","7","8","9","10","11","12","13","14","15","16","17","18","19","20","21","22","23","24","25","26","27","28","29","30","31","Z","O","N","P","Dny absence"]
[null,null,{"$f":"IFERROR(VLOOKUP(PrezenceZaBřezen[[#This Row],[Č. studenta]],SeznamStudentů[],18,FALSE),\"\")","v":""},{"$nulls":31},{"$f":"COUNTIF(PrezenceZaBřezen[[#This Row],[1]:[31]],Kód1)","v":0},{"$f":"COUNTIF(PrezenceZaBřezen[[#This Row],[1]:[31]],Kód2)","v":0},{"$f":"COUNTIF(PrezenceZaBřezen[[#This Row],[1]:[31]],Kód3)","v":0},{"$f":"COUNTIF(PrezenceZaBřezen[[#This Row],[1]:[31]],Kód4)","v":0},{"$f":"SUM(PrezenceZaBřezen[[#This Row],[O]:[N]])","v":0}]
[null,null,{"$f":"IFERROR(VLOOKUP(PrezenceZaBřezen[[#This Row],[Č. studenta]],SeznamStudentů[],18,FALSE),\"\")","v":""},{"$nulls":31},{"$f":"COUNTIF(PrezenceZaBřezen[[#This Row],[1]:[31]],Kód1)","v":0},{"$f":"COUNTIF(PrezenceZaBřezen[[#This Row],[1]:[31]],Kód2)","v":0},{"$f":"COUNTIF(PrezenceZaBřezen[[#This Row],[1]:[31]],Kód3)","v":0},{"$f":"COUNTIF(PrezenceZaBřezen[[#This Row],[1]:[31]],Kód4)","v":0},{"$f":"SUM(PrezenceZaBřezen[[#This Row],[O]:[N]])","v":0}]
[null,null,{"$f":"IFERROR(VLOOKUP(PrezenceZaBřezen[[#This Row],[Č. studenta]],SeznamStudentů[],18,FALSE),\"\")","v":""},{"$nulls":31},{"$f":"COUNTIF(PrezenceZaBřezen[[#This Row],[1]:[31]],Kód1)","v":0},{"$f":"COUNTIF(PrezenceZaBřezen[[#This Row],[1]:[31]],Kód2)","v":0},{"$f":"COUNTIF(PrezenceZaBřezen[[#This Row],[1]:[31]],Kód3)","v":0},{"$f":"COUNTIF(PrezenceZaBřezen[[#This Row],[1]:[31]],Kód4)","v":0},{"$f":"SUM(PrezenceZaBřezen[[#This Row],[O]:[N]])","v":0}]
[null,null,{"$f":"IFERROR(VLOOKUP(PrezenceZaBřezen[[#This Row],[Č. studenta]],SeznamStudentů[],18,FALSE),\"\")","v":""},{"$nulls":31},{"$f":"COUNTIF(PrezenceZaBřezen[[#This Row],[1]:[31]],Kód1)","v":0},{"$f":"COUNTIF(PrezenceZaBřezen[[#This Row],[1]:[31]],Kód2)","v":0},{"$f":"COUNTIF(PrezenceZaBřezen[[#This Row],[1]:[31]],Kód3)","v":0},{"$f":"COUNTIF(PrezenceZaBřezen[[#This Row],[1]:[31]],Kód4)","v":0},{"$f":"SUM(PrezenceZaBřezen[[#This Row],[O]:[N]])","v":0}]
[null,null,{"$f":"IFERROR(VLOOKUP(PrezenceZaBřezen[[#This Row],[Č. studenta]],SeznamStudentů[],18,FALSE),\"\")","v":""},{"$nulls":31},{"$f":"COUNTIF(PrezenceZaBřezen[[#This Row],[1]:[31]],Kód1)","v":0},{"$f":"COUNTIF(PrezenceZaBřezen[[#This Row],[1]:[31]],Kód2)","v":0},{"$f":"COUNTIF(PrezenceZaBřezen[[#This Row],[1]:[31]],Kód3)","v":0},{"$f":"COUNTIF(PrezenceZaBřezen[[#This Row],[1]:[31]],Kód4)","v":0},{"$f":"SUM(PrezenceZaBřezen[[#This Row],[O]:[N]])","v":0}]
[null,null,"Celkem dny absence",{"$f":"COUNTIF(PrezenceZaBřezen[1],\"N\")+COUNTIF(PrezenceZaBřezen[1],\"O\")","v":0},{"$f":"COUNTIF(PrezenceZaBřezen[2],\"N\")+COUNTIF(PrezenceZaBřezen[2],\"O\")","v":0},{"$f":"COUNTIF(PrezenceZaBřezen[3],\"N\")+COUNTIF(PrezenceZaBřezen[3],\"O\")","v":0},{"$f":"COUNTIF(PrezenceZaBřezen[4],\"N\")+COUNTIF(PrezenceZaBřezen[4],\"O\")","v":0},{"$f":"COUNTIF(PrezenceZaBřezen[5],\"N\")+COUNTIF(PrezenceZaBřezen[5],\"O\")","v":0},{"$f":"COUNTIF(PrezenceZaBřezen[6],\"N\")+COUNTIF(PrezenceZaBřezen[6],\"O\")","v":0},{"$f":"COUNTIF(PrezenceZaBřezen[7],\"N\")+COUNTIF(PrezenceZaBřezen[7],\"O\")","v":0},{"$f":"COUNTIF(PrezenceZaBřezen[8],\"N\")+COUNTIF(PrezenceZaBřezen[8],\"O\")","v":0},{"$f":"COUNTIF(PrezenceZaBřezen[9],\"N\")+COUNTIF(PrezenceZaBřezen[9],\"O\")","v":0},{"$f":"COUNTIF(PrezenceZaBřezen[10],\"N\")+COUNTIF(PrezenceZaBřezen[10],\"O\")","v":0},{"$f":"COUNTIF(PrezenceZaBřezen[11],\"N\")+COUNTIF(PrezenceZaBřezen[11],\"O\")","v":0},{"$f":"COUNTIF(PrezenceZaBřezen[12],\"N\")+COUNTIF(PrezenceZaBřezen[12],\"O\")","v":0},{"$f":"COUNTIF(PrezenceZaBřezen[13],\"N\")+COUNTIF(PrezenceZaBřezen[13],\"O\")","v":0},{"$f":"COUNTIF(PrezenceZaBřezen[14],\"N\")+COUNTIF(PrezenceZaBřezen[14],\"O\")","v":0},{"$f":"COUNTIF(PrezenceZaBřezen[15],\"N\")+COUNTIF(PrezenceZaBřezen[15],\"O\")","v":0},{"$f":"COUNTIF(PrezenceZaBřezen[16],\"N\")+COUNTIF(PrezenceZaBřezen[16],\"O\")","v":0},{"$f":"COUNTIF(PrezenceZaBřezen[17],\"N\")+COUNTIF(PrezenceZaBřezen[17],\"O\")","v":0},{"$f":"COUNTIF(PrezenceZaBřezen[18],\"N\")+COUNTIF(PrezenceZaBřezen[18],\"O\")","v":0},{"$f":"COUNTIF(PrezenceZaBřezen[19],\"N\")+COUNTIF(PrezenceZaBřezen[19],\"O\")","v":0},{"$f":"COUNTIF(PrezenceZaBřezen[20],\"N\")+COUNTIF(PrezenceZaBřezen[20],\"O\")","v":0},{"$f":"COUNTIF(PrezenceZaBřezen[21],\"N\")+COUNTIF(PrezenceZaBřezen[21],\"O\")","v":0},{"$f":"COUNTIF(PrezenceZaBřezen[22],\"N\")+COUNTIF(PrezenceZaBřezen[22],\"O\")","v":0},{"$f":"COUNTIF(PrezenceZaBřezen[23],\"N\")+COUNTIF(PrezenceZaBřezen[23],\"O\")","v":0},{"$f":"COUNTIF(PrezenceZaBřezen[24],\"N\")+COUNTIF(PrezenceZaBřezen[24],\"O\")","v":0},{"$f":"COUNTIF(PrezenceZaBřezen[25],\"N\")+COUNTIF(PrezenceZaBřezen[25],\"O\")","v":0},{"$f":"COUNTIF(PrezenceZaBřezen[26],\"N\")+COUNTIF(PrezenceZaBřezen[26],\"O\")","v":0},{"$f":"COUNTIF(PrezenceZaBřezen[27],\"N\")+COUNTIF(PrezenceZaBřezen[27],\"O\")","v":0},{"$f":"COUNTIF(PrezenceZaBřezen[28],\"N\")+COUNTIF(PrezenceZaBřezen[28],\"O\")","v":0},{"$f":"COUNTIF(PrezenceZaBřezen[29],\"N\")+COUNTIF(PrezenceZaBřezen[29],\"O\")","v":0},{"$f":"COUNTIF(PrezenceZaBřezen[30],\"N\")+COUNTIF(PrezenceZaBřezen[30],\"O\")","v":0},{"$f":"COUNTIF(PrezenceZaBřezen[31],\"N\")+COUNTIF(PrezenceZaBřezen[31],\"O\")","v":0},{"$f":"SUBTOTAL(109,PrezenceZaBřezen[Z])","v":0},{"$f":"SUBTOTAL(109,PrezenceZaBřezen[O])","v":0},{"$f":"SUBTOTAL(109,PrezenceZaBřezen[N])","v":0},{"$f":"SUBTOTAL(109,PrezenceZaBřezen[P])","v":0},{"$f":"SUBTOTAL(109,PrezenceZaBřezen[Dny absence])","v":0}]

{"sheet":"Duben","index":10,"n_rows":12,"n_cols":39,"rows_kept":12,"merged":[[4,34,4,38]]}
["ZÁZNAM PREZENCE STUDENTŮ",{"$nulls":36},"Zahájení školního roku:",{"$f":"KalendářníRok","v":2012}]
[]
[null,null,{"$f":"TextLegendyBarev","v":"LEGENDA BAREV "},{"$f":"Kód1","v":"Z"},{"$f":"Kód1Text","v":"Zpoždění"},null,null,{"$f":"Kód2","v":"O"},{"$f":"Kód2Text","v":"Omluven(a)"},null,null,{"$f":"Kód3","v":"N"},{"$f":"Kód3Text","v":"Neomluven(a)"},null,null,{"$f":"Kód4","v":"P"},{"$f":"Kód4Text","v":"Přítomnost"},null,null,{"$f":"Kód5","v":"Ne"},{"$f":"Kód5Text","v":"Není vyučování"}]
[]
[null,{"$f":"DATE(KalendářníRok+1,4,1)","v":"2013-04-01"},null,{"$f":"TEXT(WEEKDAY(DATE(KalendářníRok+1,4,1),1),\"aaa\")","v":"po"},{"$f":"TEXT(WEEKDAY(DATE(KalendářníRok+1,4,2),1),\"aaa\")","v":"út"},{"$f":"TEXT(WEEKDAY(DATE(KalendářníRok+1,4,3),1),\"aaa\")","v":"st"},{"$f":"TEXT(WEEKDAY(DATE(KalendářníRok+1,4,4),1),\"aaa\")","v":"čt"},{"$f":"TEXT(WEEKDAY(DATE(KalendářníRok+1,4,5),1),\"aaa\")","v":"pá"},{"$f":"TEXT(WEEKDAY(DATE(KalendářníRok+1,4,6),1),\"aaa\")","v":"so"},{"$f":"TEXT(WEEKDAY(DATE(KalendářníRok+1,4,7),1),\"aaa\")","v":"ne"},{"$f":"TEXT(WEEKDAY(DATE(KalendářníRok+1,4,8),1),\"aaa\")","v":"po"},{"$f":"TEXT(WEEKDAY(DATE(KalendářníRok+1,4,9),1),\"aaa\")","v":"út"},{"$f":"TEXT(WEEKDAY(DATE(KalendářníRok+1,4,10),1),\"aaa\")","v":"st"},{"$f":"TEXT(WEEKDAY(DATE(KalendářníRok+1,4,11),1),\"aaa\")","v":"čt"},{"$f":"TEXT(WEEKDAY(DATE(KalendářníRok+1,4,12),1),\"aaa\")","v":"pá"},{"$f":"TEXT(WEEKDAY(DATE(KalendářníRok+1,4,13),1),\"aaa\")","v":"so"},{"$f":"TEXT(WEEKDAY(DATE(KalendářníRok+1,4,14),1),\"aaa\")","v":"ne"},{"$f":"TEXT(WEEKDAY(DATE(KalendářníRok+1,4,15),1),\"aaa\")","v":"po"},{"$f":"TEXT(WEEKDAY(DATE(KalendářníRok+1,4,16),1),\"aaa\")","v":"út"},{"$f":"TEXT(WEEKDAY(DATE(KalendářníRok+1,4,17),1),\"aaa\")","v":"st"},{"$f":"TEXT(WEEKDAY(DATE(KalendářníRok+1,4,18),1),\"aaa\")","v":"čt"},{"$f":"TEXT(WEEKDAY(DATE(KalendářníRok+1,4,19),1),\"aaa\")","v":"pá"},{"$f":"TEXT(WEEKDAY(DATE(KalendářníRok+1,4,20),1),\"aaa\")","v":"so"},{"$f":"TEXT(WEEKDAY(DATE(KalendářníRok+1,4,21),1),\"aaa\")","v":"ne"},{"$f":"TEXT(WEEKDAY(DATE(KalendářníRok+1,4,22),1),\"aaa\")","v":"po"},{"$f":"TEXT(WEEKDAY(DATE(KalendářníRok+1,4,23),1),\"aaa\")","v":"út"},{"$f":"TEXT(WEEKDAY(DATE(KalendářníRok+1,4,24),1),\"aaa\")","v":"st"},{"$f":"TEXT(WEEKDAY(DATE(KalendářníRok+1,4,25),1),\"aaa\")","v":"čt"},{"$f":"TEXT(WEEKDAY(DATE(KalendářníRok+1,4,26),1),\"aaa\")","v":"pá"},{"$f":"TEXT(WEEKDAY(DATE(KalendářníRok+1,4,27),1),\"aaa\")","v":"so"},{"$f":"TEXT(WEEKDAY(DATE(KalendářníRok+1,4,28),1),\"aaa\")","v":"ne"},{"$f":"TEXT(WEEKDAY(DATE(KalendářníRok+1,4,29),1),\"aaa\")","v":"po"},{"$f":"TEXT(WEEKDAY(DATE(KalendářníRok+1,4,30),1),\"aaa\")","v":"út"},null,"Souhrny"]
[null,"Č. studenta","Jméno studenta","1","2","3","4","5","6","7","8","9","10","11","12","13","14","15","16","17","18","19","20","21","22","23","24","25","26","27","28","29","30"," ","Z","O","N","P","Dny absence"]
[null,null,{"$f":"IFERROR(VLOOKUP(PrezenceZaDuben[[#This Row],[Č. studenta]],SeznamStudentů[],18,FALSE),\"\")","v":""},{"$nulls":31},{"$f":"COUNTIF(PrezenceZaDuben[[#This Row],[1]:[ ]],Kód1)","v":0},{"$f":"COUNTIF(PrezenceZaDuben[[#This Row],[1]:[ ]],Kód2)","v":0},{"$f":"COUNTIF(PrezenceZaDuben[[#This Row],[1]:[ ]],Kód3)","v":0},{"$f":"COUNTIF(PrezenceZaDuben[[#This Row],[1]:[ ]],Kód4)","v":0},{"$f":"SUM(PrezenceZaDuben[[#This Row],[O]:[N]])","v":0}]
[null,null,{"$f":"IFERROR(VLOOKUP(PrezenceZaDuben[[#This Row],[Č. studenta]],SeznamStudentů[],18,FALSE),\"\")","v":""},{"$nulls":31},{"$f":"COUNTIF(PrezenceZaDuben[[#This Row],[1]:[ ]],Kód1)","v":0},{"$f":"COUNTIF(PrezenceZaDuben[[#This Row],[1]:[ ]],Kód2)","v":0},{"$f":"COUNTIF(PrezenceZaDuben[[#This Row],[1]:[ ]],Kód3)","v":0},{"$f":"COUNTIF(PrezenceZaDuben[[#This Row],[1]:[ ]],Kód4)","v":0},{"$f":"SUM(PrezenceZaDuben[[#This Row],[O]:[N]])","v":0}]
[null,null,{"$f":"IFERROR(VLOOKUP(PrezenceZaDuben[[#This Row],[Č. studenta]],SeznamStudentů[],18,FALSE),\"\")","v":""},{"$nulls":31},{"$f":"COUNTIF(PrezenceZaDuben[[#This Row],[1]:[ ]],Kód1)","v":0},{"$f":"COUNTIF(PrezenceZaDuben[[#This Row],[1]:[ ]],Kód2)","v":0},{"$f":"COUNTIF(PrezenceZaDuben[[#This Row],[1]:[ ]],Kód3)","v":0},{"$f":"COUNTIF(PrezenceZaDuben[[#This Row],[1]:[ ]],Kód4)","v":0},{"$f":"SUM(PrezenceZaDuben[[#This Row],[O]:[N]])","v":0}]
[null,null,{"$f":"IFERROR(VLOOKUP(PrezenceZaDuben[[#This Row],[Č. studenta]],SeznamStudentů[],18,FALSE),\"\")","v":""},{"$nulls":31},{"$f":"COUNTIF(PrezenceZaDuben[[#This Row],[1]:[ ]],Kód1)","v":0},{"$f":"COUNTIF(PrezenceZaDuben[[#This Row],[1]:[ ]],Kód2)","v":0},{"$f":"COUNTIF(PrezenceZaDuben[[#This Row],[1]:[ ]],Kód3)","v":0},{"$f":"COUNTIF(PrezenceZaDuben[[#This Row],[1]:[ ]],Kód4)","v":0},{"$f":"SUM(PrezenceZaDuben[[#This Row],[O]:[N]])","v":0}]
[null,null,{"$f":"IFERROR(VLOOKUP(PrezenceZaDuben[[#This Row],[Č. studenta]],SeznamStudentů[],18,FALSE),\"\")","v":""},{"$nulls":31},{"$f":"COUNTIF(PrezenceZaDuben[[#This Row],[1]:[ ]],Kód1)","v":0},{"$f":"COUNTIF(PrezenceZaDuben[[#This Row],[1]:[ ]],Kód2)","v":0},{"$f":"COUNTIF(PrezenceZaDuben[[#This Row],[1]:[ ]],Kód3)","v":0},{"$f":"COUNTIF(PrezenceZaDuben[[#This Row],[1]:[ ]],Kód4)","v":0},{"$f":"SUM(PrezenceZaDuben[[#This Row],[O]:[N]])","v":0}]
[null,null,"Celkem dny absence",{"$f":"COUNTIF(PrezenceZaDuben[1],\"N\")+COUNTIF(PrezenceZaDuben[1],\"O\")","v":0},{"$f":"COUNTIF(PrezenceZaDuben[2],\"N\")+COUNTIF(PrezenceZaDuben[2],\"O\")","v":0},{"$f":"COUNTIF(PrezenceZaDuben[3],\"N\")+COUNTIF(PrezenceZaDuben[3],\"O\")","v":0},{"$f":"COUNTIF(PrezenceZaDuben[4],\"N\")+COUNTIF(PrezenceZaDuben[4],\"O\")","v":0},{"$f":"COUNTIF(PrezenceZaDuben[5],\"N\")+COUNTIF(PrezenceZaDuben[5],\"O\")","v":0},{"$f":"COUNTIF(PrezenceZaDuben[6],\"N\")+COUNTIF(PrezenceZaDuben[6],\"O\")","v":0},{"$f":"COUNTIF(PrezenceZaDuben[7],\"N\")+COUNTIF(PrezenceZaDuben[7],\"O\")","v":0},{"$f":"COUNTIF(PrezenceZaDuben[8],\"N\")+COUNTIF(PrezenceZaDuben[8],\"O\")","v":0},{"$f":"COUNTIF(PrezenceZaDuben[9],\"N\")+COUNTIF(PrezenceZaDuben[9],\"O\")","v":0},{"$f":"COUNTIF(PrezenceZaDuben[10],\"N\")+COUNTIF(PrezenceZaDuben[10],\"O\")","v":0},{"$f":"COUNTIF(PrezenceZaDuben[11],\"N\")+COUNTIF(PrezenceZaDuben[11],\"O\")","v":0},{"$f":"COUNTIF(PrezenceZaDuben[12],\"N\")+COUNTIF(PrezenceZaDuben[12],\"O\")","v":0},{"$f":"COUNTIF(PrezenceZaDuben[13],\"N\")+COUNTIF(PrezenceZaDuben[13],\"O\")","v":0},{"$f":"COUNTIF(PrezenceZaDuben[14],\"N\")+COUNTIF(PrezenceZaDuben[14],\"O\")","v":0},{"$f":"COUNTIF(PrezenceZaDuben[15],\"N\")+COUNTIF(PrezenceZaDuben[15],\"O\")","v":0},{"$f":"COUNTIF(PrezenceZaDuben[16],\"N\")+COUNTIF(PrezenceZaDuben[16],\"O\")","v":0},{"$f":"COUNTIF(PrezenceZaDuben[17],\"N\")+COUNTIF(PrezenceZaDuben[17],\"O\")","v":0},{"$f":"COUNTIF(PrezenceZaDuben[18],\"N\")+COUNTIF(PrezenceZaDuben[18],\"O\")","v":0},{"$f":"COUNTIF(PrezenceZaDuben[19],\"N\")+COUNTIF(PrezenceZaDuben[19],\"O\")","v":0},{"$f":"COUNTIF(PrezenceZaDuben[20],\"N\")+COUNTIF(PrezenceZaDuben[20],\"O\")","v":0},{"$f":"COUNTIF(PrezenceZaDuben[21],\"N\")+COUNTIF(PrezenceZaDuben[21],\"O\")","v":0},{"$f":"COUNTIF(PrezenceZaDuben[22],\"N\")+COUNTIF(PrezenceZaDuben[22],\"O\")","v":0},{"$f":"COUNTIF(PrezenceZaDuben[23],\"N\")+COUNTIF(PrezenceZaDuben[23],\"O\")","v":0},{"$f":"COUNTIF(PrezenceZaDuben[24],\"N\")+COUNTIF(PrezenceZaDuben[24],\"O\")","v":0},{"$f":"COUNTIF(PrezenceZaDuben[25],\"N\")+COUNTIF(PrezenceZaDuben[25],\"O\")","v":0},{"$f":"COUNTIF(PrezenceZaDuben[26],\"N\")+COUNTIF(PrezenceZaDuben[26],\"O\")","v":0},{"$f":"COUNTIF(PrezenceZaDuben[27],\"N\")+COUNTIF(PrezenceZaDuben[27],\"O\")","v":0},{"$f":"COUNTIF(PrezenceZaDuben[28],\"N\")+COUNTIF(PrezenceZaDuben[28],\"O\")","v":0},{"$f":"COUNTIF(PrezenceZaDuben[29],\"N\")+COUNTIF(PrezenceZaDuben[29],\"O\")","v":0},{"$f":"COUNTIF(PrezenceZaDuben[30],\"N\")+COUNTIF(PrezenceZaDuben[30],\"O\")","v":0},{"$f":"COUNTIF(PrezenceZaDuben[[ ]],\"N\")+COUNTIF(PrezenceZaDuben[[ ]],\"O\")","v":0},{"$f":"SUBTOTAL(109,PrezenceZaDuben[Z])","v":0},{"$f":"SUBTOTAL(109,PrezenceZaDuben[O])","v":0},{"$f":"SUBTOTAL(109,PrezenceZaDuben[N])","v":0},{"$f":"SUBTOTAL(109,PrezenceZaDuben[P])","v":0},{"$f":"SUBTOTAL(109,PrezenceZaDuben[Dny absence])","v":0}]

{"sheet":"Květen","index":11,"n_rows":12,"n_cols":39,"rows_kept":12,"merged":[[4,34,4,38]]}
["ZÁZNAM PREZENCE STUDENTŮ",{"$nulls":36},"Zahájení školního roku:",{"$f":"KalendářníRok","v":2012}]
[]
[null,null,{"$f":"TextLegendyBarev","v":"LEGENDA BAREV "},{"$f":"Kód1","v":"Z"},{"$f":"Kód1Text","v":"Zpoždění"},null,null,{"$f":"Kód2","v":"O"},{"$f":"Kód2Text","v":"Omluven(a)"},null,null,{"$f":"Kód3","v":"N"},{"$f":"Kód3Text","v":"Neomluven(a)"},null,null,{"$f":"Kód4","v":"P"},{"$f":"Kód4Text","v":"Přítomnost"},null,null,{"$f":"Kód5","v":"Ne"},{"$f":"Kód5Text","v":"Není vyučování"}]
[]
[null,{"$f":"DATE(KalendářníRok+1,5,1)","v":"2013-05-01"},null,{"$f":"TEXT(WEEKDAY(DATE(KalendářníRok+1,5,1),1),\"aaa\")","v":"st"},{"$f":"TEXT(WEEKDAY(DATE(KalendářníRok+1,5,2),1),\"aaa\")","v":"čt"},{"$f":"TEXT(WEEKDAY(DATE(KalendářníRok+1,5,3),1),\"aaa\")","v":"pá"},{"$f":"TEXT(WEEKDAY(DATE(KalendářníRok+1,5,4),1),\"aaa\")","v":"so"},{"$f":"TEXT(WEEKDAY(DATE(KalendářníRok+1,5,5),1),\"aaa\")","v":"ne"},{"$f":"TEXT(WEEKDAY(DATE(KalendářníRok+1,5,6),1),\"aaa\")","v":"po"},{"$f":"TEXT(WEEKDAY(DATE(KalendářníRok+1,5,7),1),\"aaa\")","v":"út"},{"$f":"TEXT(WEEKDAY(DATE(KalendářníRok+1,5,8),1),\"aaa\")","v":"st"},{"$f":"TEXT(WEEKDAY(DATE(KalendářníRok+1,5,9),1),\"aaa\")","v":"čt"},{"$f":"TEXT(WEEKDAY(DATE(KalendářníRok+1,5,10),1),\"aaa\")","v":"pá"},{"$f":"TEXT(WEEKDAY(DATE(KalendářníRok+1,5,11),1),\"aaa\")","v":"so"},{"$f":"TEXT(WEEKDAY(DATE(KalendářníRok+1,5,12),1),\"aaa\")","v":"ne"},{"$f":"TEXT(WEEKDAY(DATE(KalendářníRok+1,5,13),1),\"aaa\")","v":"po"},{"$f":"TEXT(WEEKDAY(DATE(KalendářníRok+1,5,14),1),\"aaa\")","v":"út"},{"$f":"TEXT(WEEKDAY(DATE(KalendářníRok+1,5,15),1),\"aaa\")","v":"st"},{"$f":"TEXT(WEEKDAY(DATE(KalendářníRok+1,5,16),1),\"aaa\")","v":"čt"},{"$f":"TEXT(WEEKDAY(DATE(KalendářníRok+1,5,17),1),\"aaa\")","v":"pá"},{"$f":"TEXT(WEEKDAY(DATE(KalendářníRok+1,5,18),1),\"aaa\")","v":"so"},{"$f":"TEXT(WEEKDAY(DATE(KalendářníRok+1,5,19),1),\"aaa\")","v":"ne"},{"$f":"TEXT(WEEKDAY(DATE(KalendářníRok+1,5,20),1),\"aaa\")","v":"po"},{"$f":"TEXT(WEEKDAY(DATE(KalendářníRok+1,5,21),1),\"aaa\")","v":"út"},{"$f":"TEXT(WEEKDAY(DATE(KalendářníRok+1,5,22),1),\"aaa\")","v":"st"},{"$f":"TEXT(WEEKDAY(DATE(KalendářníRok+1,5,23),1),\"aaa\")","v":"čt"},{"$f":"TEXT(WEEKDAY(DATE(KalendářníRok+1,5,24),1),\"aaa\")","v":"pá"},{"$f":"TEXT(WEEKDAY(DATE(KalendářníRok+1,5,25),1),\"aaa\")","v":"so"},{"$f":"TEXT(WEEKDAY(DATE(KalendářníRok+1,5,26),1),\"aaa\")","v":"ne"},{"$f":"TEXT(WEEKDAY(DATE(KalendářníRok+1,5,27),1),\"aaa\")","v":"po"},{"$f":"TEXT(WEEKDAY(DATE(KalendářníRok+1,5,28),1),\"aaa\")","v":"út"},{"$f":"TEXT(WEEKDAY(DATE(KalendářníRok+1,5,29),1),\"aaa\")","v":"st"},{"$f":"TEXT(WEEKDAY(DATE(KalendářníRok+1,5,30),1),\"aaa\")","v":"čt"},{"$f":"TEXT(WEEKDAY(DATE(KalendářníRok+1,5,31),1),\"aaa\")","v":"pá"},"Souhrny"]
[null,"Č. studenta","Jméno studenta","1","2","3","4","5","6","7","8","9","10","11","12","13","14","15","16","17","18","19","20","21","22","23","24","25","26","27","28","29","30","31","Z","O","N","P","Dny absence"]
[null,null,{"$f":"IFERROR(VLOOKUP(PrezenceZaKvěten[[#This Row],[Č. studenta]],SeznamStudentů[],18,FALSE),\"\")","v":""},{"$nulls":31},{"$f":"COUNTIF(PrezenceZaKvěten[[#This Row],[1]:[31]],Kód1)","v":0},{"$f":"COUNTIF(PrezenceZaKvěten[[#This Row],[1]:[31]],Kód2)","v":0},{"$f":"COUNTIF(PrezenceZaKvěten[[#This Row],[1]:[31]],Kód3)","v":0},{"$f":"COUNTIF(PrezenceZaKvěten[[#This Row],[1]:[31]],Kód4)","v":0},{"$f":"SUM(PrezenceZaKvěten[[#This Row],[O]:[N]])","v":0}]
[null,null,{"$f":"IFERROR(VLOOKUP(PrezenceZaKvěten[[#This Row],[Č. studenta]],SeznamStudentů[],18,FALSE),\"\")","v":""},{"$nulls":31},{"$f":"COUNTIF(PrezenceZaKvěten[[#This Row],[1]:[31]],Kód1)","v":0},{"$f":"COUNTIF(PrezenceZaKvěten[[#This Row],[1]:[31]],Kód2)","v":0},{"$f":"COUNTIF(PrezenceZaKvěten[[#This Row],[1]:[31]],Kód3)","v":0},{"$f":"COUNTIF(PrezenceZaKvěten[[#This Row],[1]:[31]],Kód4)","v":0},{"$f":"SUM(PrezenceZaKvěten[[#This Row],[O]:[N]])","v":0}]
[null,null,{"$f":"IFERROR(VLOOKUP(PrezenceZaKvěten[[#This Row],[Č. studenta]],SeznamStudentů[],18,FALSE),\"\")","v":""},{"$nulls":31},{"$f":"COUNTIF(PrezenceZaKvěten[[#This Row],[1]:[31]],Kód1)","v":0},{"$f":"COUNTIF(PrezenceZaKvěten[[#This Row],[1]:[31]],Kód2)","v":0},{"$f":"COUNTIF(PrezenceZaKvěten[[#This Row],[1]:[31]],Kód3)","v":0},{"$f":"COUNTIF(PrezenceZaKvěten[[#This Row],[1]:[31]],Kód4)","v":0},{"$f":"SUM(PrezenceZaKvěten[[#This Row],[O]:[N]])","v":0}]
[null,null,{"$f":"IFERROR(VLOOKUP(PrezenceZaKvěten[[#This Row],[Č. studenta]],SeznamStudentů[],18,FALSE),\"\")","v":""},{"$nulls":31},{"$f":"COUNTIF(PrezenceZaKvěten[[#This Row],[1]:[31]],Kód1)","v":0},{"$f":"COUNTIF(PrezenceZaKvěten[[#This Row],[1]:[31]],Kód2)","v":0},{"$f":"COUNTIF(PrezenceZaKvěten[[#This Row],[1]:[31]],Kód3)","v":0},{"$f":"COUNTIF(PrezenceZaKvěten[[#This Row],[1]:[31]],Kód4)","v":0},{"$f":"SUM(PrezenceZaKvěten[[#This Row],[O]:[N]])","v":0}]
[null,null,{"$f":"IFERROR(VLOOKUP(PrezenceZaKvěten[[#This Row],[Č. studenta]],SeznamStudentů[],18,FALSE),\"\")","v":""},{"$nulls":31},{"$f":"COUNTIF(PrezenceZaKvěten[[#This Row],[1]:[31]],Kód1)","v":0},{"$f":"COUNTIF(PrezenceZaKvěten[[#This Row],[1]:[31]],Kód2)","v":0},{"$f":"COUNTIF(PrezenceZaKvěten[[#This Row],[1]:[31]],Kód3)","v":0},{"$f":"COUNTIF(PrezenceZaKvěten[[#This Row],[1]:[31]],Kód4)","v":0},{"$f":"SUM(PrezenceZaKvěten[[#This Row],[O]:[N]])","v":0}]
[null,null,"Celkem dny absence",{"$f":"COUNTIF(PrezenceZaKvěten[1],\"N\")+COUNTIF(PrezenceZaKvěten[1],\"O\")","v":0},{"$f":"COUNTIF(PrezenceZaKvěten[2],\"N\")+COUNTIF(PrezenceZaKvěten[2],\"O\")","v":0},{"$f":"COUNTIF(PrezenceZaKvěten[3],\"N\")+COUNTIF(PrezenceZaKvěten[3],\"O\")","v":0},{"$f":"COUNTIF(PrezenceZaKvěten[4],\"N\")+COUNTIF(PrezenceZaKvěten[4],\"O\")","v":0},{"$f":"COUNTIF(PrezenceZaKvěten[5],\"N\")+COUNTIF(PrezenceZaKvěten[5],\"O\")","v":0},{"$f":"COUNTIF(PrezenceZaKvěten[6],\"N\")+COUNTIF(PrezenceZaKvěten[6],\"O\")","v":0},{"$f":"COUNTIF(PrezenceZaKvěten[7],\"N\")+COUNTIF(PrezenceZaKvěten[7],\"O\")","v":0},{"$f":"COUNTIF(PrezenceZaKvěten[8],\"N\")+COUNTIF(PrezenceZaKvěten[8],\"O\")","v":0},{"$f":"COUNTIF(PrezenceZaKvěten[9],\"N\")+COUNTIF(PrezenceZaKvěten[9],\"O\")","v":0},{"$f":"COUNTIF(PrezenceZaKvěten[10],\"N\")+COUNTIF(PrezenceZaKvěten[10],\"O\")","v":0},{"$f":"COUNTIF(PrezenceZaKvěten[11],\"N\")+COUNTIF(PrezenceZaKvěten[11],\"O\")","v":0},{"$f":"COUNTIF(PrezenceZaKvěten[12],\"N\")+COUNTIF(PrezenceZaKvěten[12],\"O\")","v":0},{"$f":"COUNTIF(PrezenceZaKvěten[13],\"N\")+COUNTIF(PrezenceZaKvěten[13],\"O\")","v":0},{"$f":"COUNTIF(PrezenceZaKvěten[14],\"N\")+COUNTIF(PrezenceZaKvěten[14],\"O\")","v":0},{"$f":"COUNTIF(PrezenceZaKvěten[15],\"N\")+COUNTIF(PrezenceZaKvěten[15],\"O\")","v":0},{"$f":"COUNTIF(PrezenceZaKvěten[16],\"N\")+COUNTIF(PrezenceZaKvěten[16],\"O\")","v":0},{"$f":"COUNTIF(PrezenceZaKvěten[17],\"N\")+COUNTIF(PrezenceZaKvěten[17],\"O\")","v":0},{"$f":"COUNTIF(PrezenceZaKvěten[18],\"N\")+COUNTIF(PrezenceZaKvěten[18],\"O\")","v":0},{"$f":"COUNTIF(PrezenceZaKvěten[19],\"N\")+COUNTIF(PrezenceZaKvěten[19],\"O\")","v":0},{"$f":"COUNTIF(PrezenceZaKvěten[20],\"N\")+COUNTIF(PrezenceZaKvěten[20],\"O\")","v":0},{"$f":"COUNTIF(PrezenceZaKvěten[21],\"N\")+COUNTIF(PrezenceZaKvěten[21],\"O\")","v":0},{"$f":"COUNTIF(PrezenceZaKvěten[22],\"N\")+COUNTIF(PrezenceZaKvěten[22],\"O\")","v":0},{"$f":"COUNTIF(PrezenceZaKvěten[23],\"N\")+COUNTIF(PrezenceZaKvěten[23],\"O\")","v":0},{"$f":"COUNTIF(PrezenceZaKvěten[24],\"N\")+COUNTIF(PrezenceZaKvěten[24],\"O\")","v":0},{"$f":"COUNTIF(PrezenceZaKvěten[25],\"N\")+COUNTIF(PrezenceZaKvěten[25],\"O\")","v":0},{"$f":"COUNTIF(PrezenceZaKvěten[26],\"N\")+COUNTIF(PrezenceZaKvěten[26],\"O\")","v":0},{"$f":"COUNTIF(PrezenceZaKvěten[27],\"N\")+COUNTIF(PrezenceZaKvěten[27],\"O\")","v":0},{"$f":"COUNTIF(PrezenceZaKvěten[28],\"N\")+COUNTIF(PrezenceZaKvěten[28],\"O\")","v":0},{"$f":"COUNTIF(PrezenceZaKvěten[29],\"N\")+COUNTIF(PrezenceZaKvěten[29],\"O\")","v":0},{"$f":"COUNTIF(PrezenceZaKvěten[30],\"N\")+COUNTIF(PrezenceZaKvěten[30],\"O\")","v":0},{"$f":"COUNTIF(PrezenceZaKvěten[31],\"N\")+COUNTIF(PrezenceZaKvěten[31],\"O\")","v":0},{"$f":"SUBTOTAL(109,PrezenceZaKvěten[Z])","v":0},{"$f":"SUBTOTAL(109,PrezenceZaKvěten[O])","v":0},{"$f":"SUBTOTAL(109,PrezenceZaKvěten[N])","v":0},{"$f":"SUBTOTAL(109,PrezenceZaKvěten[P])","v":0},{"$f":"SUBTOTAL(109,PrezenceZaKvěten[Dny absence])","v":0}]

{"sheet":"Červen","index":12,"n_rows":12,"n_cols":39,"rows_kept":12,"merged":[[4,34,4,38]]}
["ZÁZNAM PREZENCE STUDENTŮ",{"$nulls":36},"Zahájení školního roku:",{"$f":"KalendářníRok","v":2012}]
[]
[null,null,{"$f":"TextLegendyBarev","v":"LEGENDA BAREV "},{"$f":"Kód1","v":"Z"},{"$f":"Kód1Text","v":"Zpoždění"},null,null,{"$f":"Kód2","v":"O"},{"$f":"Kód2Text","v":"Omluven(a)"},null,null,{"$f":"Kód3","v":"N"},{"$f":"Kód3Text","v":"Neomluven(a)"},null,null,{"$f":"Kód4","v":"P"},{"$f":"Kód4Text","v":"Přítomnost"},null,null,{"$f":"Kód5","v":"Ne"},{"$f":"Kód5Text","v":"Není vyučování"}]
[]
[null,{"$f":"DATE(KalendářníRok+1,6,1)","v":"2013-06-01"},null,{"$f":"TEXT(WEEKDAY(DATE(KalendářníRok+1,6,1),1),\"aaa\")","v":"so"},{"$f":"TEXT(WEEKDAY(DATE(KalendářníRok+1,6,2),1),\"aaa\")","v":"ne"},{"$f":"TEXT(WEEKDAY(DATE(KalendářníRok+1,6,3),1),\"aaa\")","v":"po"},{"$f":"TEXT(WEEKDAY(DATE(KalendářníRok+1,6,4),1),\"aaa\")","v":"út"},{"$f":"TEXT(WEEKDAY(DATE(KalendářníRok+1,6,5),1),\"aaa\")","v":"st"},{"$f":"TEXT(WEEKDAY(DATE(KalendářníRok+1,6,6),1),\"aaa\")","v":"čt"},{"$f":"TEXT(WEEKDAY(DATE(KalendářníRok+1,6,7),1),\"aaa\")","v":"pá"},{"$f":"TEXT(WEEKDAY(DATE(KalendářníRok+1,6,8),1),\"aaa\")","v":"so"},{"$f":"TEXT(WEEKDAY(DATE(KalendářníRok+1,6,9),1),\"aaa\")","v":"ne"},{"$f":"TEXT(WEEKDAY(DATE(KalendářníRok+1,6,10),1),\"aaa\")","v":"po"},{"$f":"TEXT(WEEKDAY(DATE(KalendářníRok+1,6,11),1),\"aaa\")","v":"út"},{"$f":"TEXT(WEEKDAY(DATE(KalendářníRok+1,6,12),1),\"aaa\")","v":"st"},{"$f":"TEXT(WEEKDAY(DATE(KalendářníRok+1,6,13),1),\"aaa\")","v":"čt"},{"$f":"TEXT(WEEKDAY(DATE(KalendářníRok+1,6,14),1),\"aaa\")","v":"pá"},{"$f":"TEXT(WEEKDAY(DATE(KalendářníRok+1,6,15),1),\"aaa\")","v":"so"},{"$f":"TEXT(WEEKDAY(DATE(KalendářníRok+1,6,16),1),\"aaa\")","v":"ne"},{"$f":"TEXT(WEEKDAY(DATE(KalendářníRok+1,6,17),1),\"aaa\")","v":"po"},{"$f":"TEXT(WEEKDAY(DATE(KalendářníRok+1,6,18),1),\"aaa\")","v":"út"},{"$f":"TEXT(WEEKDAY(DATE(KalendářníRok+1,6,19),1),\"aaa\")","v":"st"},{"$f":"TEXT(WEEKDAY(DATE(KalendářníRok+1,6,20),1),\"aaa\")","v":"čt"},{"$f":"TEXT(WEEKDAY(DATE(KalendářníRok+1,6,21),1),\"aaa\")","v":"pá"},{"$f":"TEXT(WEEKDAY(DATE(KalendářníRok+1,6,22),1),\"aaa\")","v":"so"},{"$f":"TEXT(WEEKDAY(DATE(KalendářníRok+1,6,23),1),\"aaa\")","v":"ne"},{"$f":"TEXT(WEEKDAY(DATE(KalendářníRok+1,6,24),1),\"aaa\")","v":"po"},{"$f":"TEXT(WEEKDAY(DATE(KalendářníRok+1,6,25),1),\"aaa\")","v":"út"},{"$f":"TEXT(WEEKDAY(DATE(KalendářníRok+1,6,26),1),\"aaa\")","v":"st"},{"$f":"TEXT(WEEKDAY(DATE(KalendářníRok+1,6,27),1),\"aaa\")","v":"čt"},{"$f":"TEXT(WEEKDAY(DATE(KalendářníRok+1,6,28),1),\"aaa\")","v":"pá"},{"$f":"TEXT(WEEKDAY(DATE(KalendářníRok+1,6,29),1),\"aaa\")","v":"so"},{"$f":"TEXT(WEEKDAY(DATE(KalendářníRok+1,6,30),1),\"aaa\")","v":"ne"},null,"Souhrny"]
[null,"Č. studenta","Jméno studenta","1","2","3","4","5","6","7","8","9","10","11","12","13","14","15","16","17","18","19","20","21","22","23","24","25","26","27","28","29","30"," ","Z","O","N","P","Dny absence"]
[null,null,{"$f":"IFERROR(VLOOKUP(PrezenceZaČerven[[#This Row],[Č. studenta]],SeznamStudentů[],18,FALSE),\"\")","v":""},{"$nulls":31},{"$f":"COUNTIF(PrezenceZaČerven[[#This Row],[1]:[ ]],Kód1)","v":0},{"$f":"COUNTIF(PrezenceZaČerven[[#This Row],[1]:[ ]],Kód2)","v":0},{"$f":"COUNTIF(PrezenceZaČerven[[#This Row],[1]:[ ]],Kód3)","v":0},{"$f":"COUNTIF(PrezenceZaČerven[[#This Row],[1]:[ ]],Kód4)","v":0},{"$f":"SUM(PrezenceZaČerven[[#This Row],[O]:[N]])","v":0}]
[null,null,{"$f":"IFERROR(VLOOKUP(PrezenceZaČerven[[#This Row],[Č. studenta]],SeznamStudentů[],18,FALSE),\"\")","v":""},{"$nulls":31},{"$f":"COUNTIF(PrezenceZaČerven[[#This Row],[1]:[ ]],Kód1)","v":0},{"$f":"COUNTIF(PrezenceZaČerven[[#This Row],[1]:[ ]],Kód2)","v":0},{"$f":"COUNTIF(PrezenceZaČerven[[#This Row],[1]:[ ]],Kód3)","v":0},{"$f":"COUNTIF(PrezenceZaČerven[[#This Row],[1]:[ ]],Kód4)","v":0},{"$f":"SUM(PrezenceZaČerven[[#This Row],[O]:[N]])","v":0}]
[null,null,{"$f":"IFERROR(VLOOKUP(PrezenceZaČerven[[#This Row],[Č. studenta]],SeznamStudentů[],18,FALSE),\"\")","v":""},{"$nulls":31},{"$f":"COUNTIF(PrezenceZaČerven[[#This Row],[1]:[ ]],Kód1)","v":0},{"$f":"COUNTIF(PrezenceZaČerven[[#This Row],[1]:[ ]],Kód2)","v":0},{"$f":"COUNTIF(PrezenceZaČerven[[#This Row],[1]:[ ]],Kód3)","v":0},{"$f":"COUNTIF(PrezenceZaČerven[[#This Row],[1]:[ ]],Kód4)","v":0},{"$f":"SUM(PrezenceZaČerven[[#This Row],[O]:[N]])","v":0}]
[null,null,{"$f":"IFERROR(VLOOKUP(PrezenceZaČerven[[#This Row],[Č. studenta]],SeznamStudentů[],18,FALSE),\"\")","v":""},{"$nulls":31},{"$f":"COUNTIF(PrezenceZaČerven[[#This Row],[1]:[ ]],Kód1)","v":0},{"$f":"COUNTIF(PrezenceZaČerven[[#This Row],[1]:[ ]],Kód2)","v":0},{"$f":"COUNTIF(PrezenceZaČerven[[#This Row],[1]:[ ]],Kód3)","v":0},{"$f":"COUNTIF(PrezenceZaČerven[[#This Row],[1]:[ ]],Kód4)","v":0},{"$f":"SUM(PrezenceZaČerven[[#This Row],[O]:[N]])","v":0}]
[null,null,{"$f":"IFERROR(VLOOKUP(PrezenceZaČerven[[#This Row],[Č. studenta]],SeznamStudentů[],18,FALSE),\"\")","v":""},{"$nulls":31},{"$f":"COUNTIF(PrezenceZaČerven[[#This Row],[1]:[ ]],Kód1)","v":0},{"$f":"COUNTIF(PrezenceZaČerven[[#This Row],[1]:[ ]],Kód2)","v":0},{"$f":"COUNTIF(PrezenceZaČerven[[#This Row],[1]:[ ]],Kód3)","v":0},{"$f":"COUNTIF(PrezenceZaČerven[[#This Row],[1]:[ ]],Kód4)","v":0},{"$f":"SUM(PrezenceZaČerven[[#This Row],[O]:[N]])","v":0}]
[null,null,"Celkem dny absence",{"$f":"COUNTIF(PrezenceZaČerven[1],\"N\")+COUNTIF(PrezenceZaČerven[1],\"O\")","v":0},{"$f":"COUNTIF(PrezenceZaČerven[2],\"N\")+COUNTIF(PrezenceZaČerven[2],\"O\")","v":0},{"$f":"COUNTIF(PrezenceZaČerven[3],\"N\")+COUNTIF(PrezenceZaČerven[3],\"O\")","v":0},{"$f":"COUNTIF(PrezenceZaČerven[4],\"N\")+COUNTIF(PrezenceZaČerven[4],\"O\")","v":0},{"$f":"COUNTIF(PrezenceZaČerven[5],\"N\")+COUNTIF(PrezenceZaČerven[5],\"O\")","v":0},{"$f":"COUNTIF(PrezenceZaČerven[6],\"N\")+COUNTIF(PrezenceZaČerven[6],\"O\")","v":0},{"$f":"COUNTIF(PrezenceZaČerven[7],\"N\")+COUNTIF(PrezenceZaČerven[7],\"O\")","v":0},{"$f":"COUNTIF(PrezenceZaČerven[8],\"N\")+COUNTIF(PrezenceZaČerven[8],\"O\")","v":0},{"$f":"COUNTIF(PrezenceZaČerven[9],\"N\")+COUNTIF(PrezenceZaČerven[9],\"O\")","v":0},{"$f":"COUNTIF(PrezenceZaČerven[10],\"N\")+COUNTIF(PrezenceZaČerven[10],\"O\")","v":0},{"$f":"COUNTIF(PrezenceZaČerven[11],\"N\")+COUNTIF(PrezenceZaČerven[11],\"O\")","v":0},{"$f":"COUNTIF(PrezenceZaČerven[12],\"N\")+COUNTIF(PrezenceZaČerven[12],\"O\")","v":0},{"$f":"COUNTIF(PrezenceZaČerven[13],\"N\")+COUNTIF(PrezenceZaČerven[13],\"O\")","v":0},{"$f":"COUNTIF(PrezenceZaČerven[14],\"N\")+COUNTIF(PrezenceZaČerven[14],\"O\")","v":0},{"$f":"COUNTIF(PrezenceZaČerven[15],\"N\")+COUNTIF(PrezenceZaČerven[15],\"O\")","v":0},{"$f":"COUNTIF(PrezenceZaČerven[16],\"N\")+COUNTIF(PrezenceZaČerven[16],\"O\")","v":0},{"$f":"COUNTIF(PrezenceZaČerven[17],\"N\")+COUNTIF(PrezenceZaČerven[17],\"O\")","v":0},{"$f":"COUNTIF(PrezenceZaČerven[18],\"N\")+COUNTIF(PrezenceZaČerven[18],\"O\")","v":0},{"$f":"COUNTIF(PrezenceZaČerven[19],\"N\")+COUNTIF(PrezenceZaČerven[19],\"O\")","v":0},{"$f":"COUNTIF(PrezenceZaČerven[20],\"N\")+COUNTIF(PrezenceZaČerven[20],\"O\")","v":0},{"$f":"COUNTIF(PrezenceZaČerven[21],\"N\")+COUNTIF(PrezenceZaČerven[21],\"O\")","v":0},{"$f":"COUNTIF(PrezenceZaČerven[22],\"N\")+COUNTIF(PrezenceZaČerven[22],\"O\")","v":0},{"$f":"COUNTIF(PrezenceZaČerven[23],\"N\")+COUNTIF(PrezenceZaČerven[23],\"O\")","v":0},{"$f":"COUNTIF(PrezenceZaČerven[24],\"N\")+COUNTIF(PrezenceZaČerven[24],\"O\")","v":0},{"$f":"COUNTIF(PrezenceZaČerven[25],\"N\")+COUNTIF(PrezenceZaČerven[25],\"O\")","v":0},{"$f":"COUNTIF(PrezenceZaČerven[26],\"N\")+COUNTIF(PrezenceZaČerven[26],\"O\")","v":0},{"$f":"COUNTIF(PrezenceZaČerven[27],\"N\")+COUNTIF(PrezenceZaČerven[27],\"O\")","v":0},{"$f":"COUNTIF(PrezenceZaČerven[28],\"N\")+COUNTIF(PrezenceZaČerven[28],\"O\")","v":0},{"$f":"COUNTIF(PrezenceZaČerven[29],\"N\")+COUNTIF(PrezenceZaČerven[29],\"O\")","v":0},{"$f":"COUNTIF(PrezenceZaČerven[30],\"N\")+COUNTIF(PrezenceZaČerven[30],\"O\")","v":0},{"$f":"COUNTIF(PrezenceZaČerven[[ ]],\"N\")+COUNTIF(PrezenceZaČerven[[ ]],\"O\")","v":0},{"$f":"SUBTOTAL(109,PrezenceZaČerven[Z])","v":0},{"$f":"SUBTOTAL(109,PrezenceZaČerven[O])","v":0},{"$f":"SUBTOTAL(109,PrezenceZaČerven[N])","v":0},{"$f":"SUBTOTAL(109,PrezenceZaČerven[P])","v":0},{"$f":"SUBTOTAL(109,PrezenceZaČerven[Dny absence])","v":0}]

{"sheet":"Červenec","index":13,"n_rows":12,"n_cols":39,"rows_kept":12,"merged":[[4,34,4,38]]}
["ZÁZNAM PREZENCE STUDENTŮ",{"$nulls":36},"Zahájení školního roku:",{"$f":"KalendářníRok","v":2012}]
[]
[null,null,{"$f":"TextLegendyBarev","v":"LEGENDA BAREV "},{"$f":"Kód1","v":"Z"},{"$f":"Kód1Text","v":"Zpoždění"},null,null,{"$f":"Kód2","v":"O"},{"$f":"Kód2Text","v":"Omluven(a)"},null,null,{"$f":"Kód3","v":"N"},{"$f":"Kód3Text","v":"Neomluven(a)"},null,null,{"$f":"Kód4","v":"P"},{"$f":"Kód4Text","v":"Přítomnost"},null,null,{"$f":"Kód5","v":"Ne"},{"$f":"Kód5Text","v":"Není vyučování"}]
[]
[null,{"$f":"DATE(KalendářníRok+1,7,1)","v":"2013-07-01"},null,{"$f":"TEXT(WEEKDAY(DATE(KalendářníRok+1,7,1),1),\"aaa\")","v":"po"},{"$f":"TEXT(WEEKDAY(DATE(KalendářníRok+1,7,2),1),\"aaa\")","v":"út"},{"$f":"TEXT(WEEKDAY(DATE(KalendářníRok+1,7,3),1),\"aaa\")","v":"st"},{"$f":"TEXT(WEEKDAY(DATE(KalendářníRok+1,7,4),1),\"aaa\")","v":"čt"},{"$f":"TEXT(WEEKDAY(DATE(KalendářníRok+1,7,5),1),\"aaa\")","v":"pá"},{"$f":"TEXT(WEEKDAY(DATE(KalendářníRok+1,7,6),1),\"aaa\")","v":"so"},{"$f":"TEXT(WEEKDAY(DATE(KalendářníRok+1,7,7),1),\"aaa\")","v":"ne"},{"$f":"TEXT(WEEKDAY(DATE(KalendářníRok+1,7,8),1),\"aaa\")","v":"po"},{"$f":"TEXT(WEEKDAY(DATE(KalendářníRok+1,7,9),1),\"aaa\")","v":"út"},{"$f":"TEXT(WEEKDAY(DATE(KalendářníRok+1,7,10),1),\"aaa\")","v":"st"},{"$f":"TEXT(WEEKDAY(DATE(KalendářníRok+1,7,11),1),\"aaa\")","v":"čt"},{"$f":"TEXT(WEEKDAY(DATE(KalendářníRok+1,7,12),1),\"aaa\")","v":"pá"},{"$f":"TEXT(WEEKDAY(DATE(KalendářníRok+1,7,13),1),\"aaa\")","v":"so"},{"$f":"TEXT(WEEKDAY(DATE(KalendářníRok+1,7,14),1),\"aaa\")","v":"ne"},{"$f":"TEXT(WEEKDAY(DATE(KalendářníRok+1,7,15),1),\"aaa\")","v":"po"},{"$f":"TEXT(WEEKDAY(DATE(KalendářníRok+1,7,16),1),\"aaa\")","v":"út"},{"$f":"TEXT(WEEKDAY(DATE(KalendářníRok+1,7,17),1),\"aaa\")","v":"st"},{"$f":"TEXT(WEEKDAY(DATE(KalendářníRok+1,7,18),1),\"aaa\")","v":"čt"},{"$f":"TEXT(WEEKDAY(DATE(KalendářníRok+1,7,19),1),\"aaa\")","v":"pá"},{"$f":"TEXT(WEEKDAY(DATE(KalendářníRok+1,7,20),1),\"aaa\")","v":"so"},{"$f":"TEXT(WEEKDAY(DATE(KalendářníRok+1,7,21),1),\"aaa\")","v":"ne"},{"$f":"TEXT(WEEKDAY(DATE(KalendářníRok+1,7,22),1),\"aaa\")","v":"po"},{"$f":"TEXT(WEEKDAY(DATE(KalendářníRok+1,7,23),1),\"aaa\")","v":"út"},{"$f":"TEXT(WEEKDAY(DATE(KalendářníRok+1,7,24),1),\"aaa\")","v":"st"},{"$f":"TEXT(WEEKDAY(DATE(KalendářníRok+1,7,25),1),\"aaa\")","v":"čt"},{"$f":"TEXT(WEEKDAY(DATE(KalendářníRok+1,7,26),1),\"aaa\")","v":"pá"},{"$f":"TEXT(WEEKDAY(DATE(KalendářníRok+1,7,27),1),\"aaa\")","v":"so"},{"$f":"TEXT(WEEKDAY(DATE(KalendářníRok+1,7,28),1),\"aaa\")","v":"ne"},{"$f":"TEXT(WEEKDAY(DATE(KalendářníRok+1,7,29),1),\"aaa\")","v":"po"},{"$f":"TEXT(WEEKDAY(DATE(KalendářníRok+1,7,30),1),\"aaa\")","v":"út"},{"$f":"TEXT(WEEKDAY(DATE(KalendářníRok+1,7,31),1),\"aaa\")","v":"st"},"Souhrny"]
[null,"Č. studenta","Jméno studenta","1","2","3","4","5","6","7","8","9","10","11","12","13","14","15","16","17","18","19","20","21","22","23","24","25","26","27","28","29","30","31","Z","O","N","P","Dny absence"]
[null,null,{"$f":"IFERROR(VLOOKUP(PrezenceZaČervenec[[#This Row],[Č. studenta]],SeznamStudentů[],18,FALSE),\"\")","v":""},{"$nulls":31},{"$f":"COUNTIF(PrezenceZaČervenec[[#This Row],[1]:[31]],Kód1)","v":0},{"$f":"COUNTIF(PrezenceZaČervenec[[#This Row],[1]:[31]],Kód2)","v":0},{"$f":"COUNTIF(PrezenceZaČervenec[[#This Row],[1]:[31]],Kód3)","v":0},{"$f":"COUNTIF(PrezenceZaČervenec[[#This Row],[1]:[31]],Kód4)","v":0},{"$f":"SUM(PrezenceZaČervenec[[#This Row],[O]:[N]])","v":0}]
[null,null,{"$f":"IFERROR(VLOOKUP(PrezenceZaČervenec[[#This Row],[Č. studenta]],SeznamStudentů[],18,FALSE),\"\")","v":""},{"$nulls":31},{"$f":"COUNTIF(PrezenceZaČervenec[[#This Row],[1]:[31]],Kód1)","v":0},{"$f":"COUNTIF(PrezenceZaČervenec[[#This Row],[1]:[31]],Kód2)","v":0},{"$f":"COUNTIF(PrezenceZaČervenec[[#This Row],[1]:[31]],Kód3)","v":0},{"$f":"COUNTIF(PrezenceZaČervenec[[#This Row],[1]:[31]],Kód4)","v":0},{"$f":"SUM(PrezenceZaČervenec[[#This Row],[O]:[N]])","v":0}]
[null,null,{"$f":"IFERROR(VLOOKUP(PrezenceZaČervenec[[#This Row],[Č. studenta]],SeznamStudentů[],18,FALSE),\"\")","v":""},{"$nulls":31},{"$f":"COUNTIF(PrezenceZaČervenec[[#This Row],[1]:[31]],Kód1)","v":0},{"$f":"COUNTIF(PrezenceZaČervenec[[#This Row],[1]:[31]],Kód2)","v":0},{"$f":"COUNTIF(PrezenceZaČervenec[[#This Row],[1]:[31]],Kód3)","v":0},{"$f":"COUNTIF(PrezenceZaČervenec[[#This Row],[1]:[31]],Kód4)","v":0},{"$f":"SUM(PrezenceZaČervenec[[#This Row],[O]:[N]])","v":0}]
[null,null,{"$f":"IFERROR(VLOOKUP(PrezenceZaČervenec[[#This Row],[Č. studenta]],SeznamStudentů[],18,FALSE),\"\")","v":""},{"$nulls":31},{"$f":"COUNTIF(PrezenceZaČervenec[[#This Row],[1]:[31]],Kód1)","v":0},{"$f":"COUNTIF(PrezenceZaČervenec[[#This Row],[1]:[31]],Kód2)","v":0},{"$f":"COUNTIF(PrezenceZaČervenec[[#This Row],[1]:[31]],Kód3)","v":0},{"$f":"COUNTIF(PrezenceZaČervenec[[#This Row],[1]:[31]],Kód4)","v":0},{"$f":"SUM(PrezenceZaČervenec[[#This Row],[O]:[N]])","v":0}]
[null,null,{"$f":"IFERROR(VLOOKUP(PrezenceZaČervenec[[#This Row],[Č. studenta]],SeznamStudentů[],18,FALSE),\"\")","v":""},{"$nulls":31},{"$f":"COUNTIF(PrezenceZaČervenec[[#This Row],[1]:[31]],Kód1)","v":0},{"$f":"COUNTIF(PrezenceZaČervenec[[#This Row],[1]:[31]],Kód2)","v":0},{"$f":"COUNTIF(PrezenceZaČervenec[[#This Row],[1]:[31]],Kód3)","v":0},{"$f":"COUNTIF(PrezenceZaČervenec[[#This Row],[1]:[31]],Kód4)","v":0},{"$f":"SUM(PrezenceZaČervenec[[#This Row],[O]:[N]])","v":0}]
[null,null,"Celkem dny absence",{"$f":"COUNTIF(PrezenceZaČervenec[1],\"N\")+COUNTIF(PrezenceZaČervenec[1],\"O\")","v":0},{"$f":"COUNTIF(PrezenceZaČervenec[2],\"N\")+COUNTIF(PrezenceZaČervenec[2],\"O\")","v":0},{"$f":"COUNTIF(PrezenceZaČervenec[3],\"N\")+COUNTIF(PrezenceZaČervenec[3],\"O\")","v":0},{"$f":"COUNTIF(PrezenceZaČervenec[4],\"N\")+COUNTIF(PrezenceZaČervenec[4],\"O\")","v":0},{"$f":"COUNTIF(PrezenceZaČervenec[5],\"N\")+COUNTIF(PrezenceZaČervenec[5],\"O\")","v":0},{"$f":"COUNTIF(PrezenceZaČervenec[6],\"N\")+COUNTIF(PrezenceZaČervenec[6],\"O\")","v":0},{"$f":"COUNTIF(PrezenceZaČervenec[7],\"N\")+COUNTIF(PrezenceZaČervenec[7],\"O\")","v":0},{"$f":"COUNTIF(PrezenceZaČervenec[8],\"N\")+COUNTIF(PrezenceZaČervenec[8],\"O\")","v":0},{"$f":"COUNTIF(PrezenceZaČervenec[9],\"N\")+COUNTIF(PrezenceZaČervenec[9],\"O\")","v":0},{"$f":"COUNTIF(PrezenceZaČervenec[10],\"N\")+COUNTIF(PrezenceZaČervenec[10],\"O\")","v":0},{"$f":"COUNTIF(PrezenceZaČervenec[11],\"N\")+COUNTIF(PrezenceZaČervenec[11],\"O\")","v":0},{"$f":"COUNTIF(PrezenceZaČervenec[12],\"N\")+COUNTIF(PrezenceZaČervenec[12],\"O\")","v":0},{"$f":"COUNTIF(PrezenceZaČervenec[13],\"N\")+COUNTIF(PrezenceZaČervenec[13],\"O\")","v":0},{"$f":"COUNTIF(PrezenceZaČervenec[14],\"N\")+COUNTIF(PrezenceZaČervenec[14],\"O\")","v":0},{"$f":"COUNTIF(PrezenceZaČervenec[15],\"N\")+COUNTIF(PrezenceZaČervenec[15],\"O\")","v":0},{"$f":"COUNTIF(PrezenceZaČervenec[16],\"N\")+COUNTIF(PrezenceZaČervenec[16],\"O\")","v":0},{"$f":"COUNTIF(PrezenceZaČervenec[17],\"N\")+COUNTIF(PrezenceZaČervenec[17],\"O\")","v":0},{"$f":"COUNTIF(PrezenceZaČervenec[18],\"N\")+COUNTIF(PrezenceZaČervenec[18],\"O\")","v":0},{"$f":"COUNTIF(PrezenceZaČervenec[19],\"N\")+COUNTIF(PrezenceZaČervenec[19],\"O\")","v":0},{"$f":"COUNTIF(PrezenceZaČervenec[20],\"N\")+COUNTIF(PrezenceZaČervenec[20],\"O\")","v":0},{"$f":"COUNTIF(PrezenceZaČervenec[21],\"N\")+COUNTIF(PrezenceZaČervenec[21],\"O\")","v":0},{"$f":"COUNTIF(PrezenceZaČervenec[22],\"N\")+COUNTIF(PrezenceZaČervenec[22],\"O\")","v":0},{"$f":"COUNTIF(PrezenceZaČervenec[23],\"N\")+COUNTIF(PrezenceZaČervenec[23],\"O\")","v":0},{"$f":"COUNTIF(PrezenceZaČervenec[24],\"N\")+COUNTIF(PrezenceZaČervenec[24],\"O\")","v":0},{"$f":"COUNTIF(PrezenceZaČervenec[25],\"N\")+COUNTIF(PrezenceZaČervenec[25],\"O\")","v":0},{"$f":"COUNTIF(PrezenceZaČervenec[26],\"N\")+COUNTIF(PrezenceZaČervenec[26],\"O\")","v":0},{"$f":"COUNTIF(PrezenceZaČervenec[27],\"N\")+COUNTIF(PrezenceZaČervenec[27],\"O\")","v":0},{"$f":"COUNTIF(PrezenceZaČervenec[28],\"N\")+COUNTIF(PrezenceZaČervenec[28],\"O\")","v":0},{"$f":"COUNTIF(PrezenceZaČervenec[29],\"N\")+COUNTIF(PrezenceZaČervenec[29],\"O\")","v":0},{"$f":"COUNTIF(PrezenceZaČervenec[30],\"N\")+COUNTIF(PrezenceZaČervenec[30],\"O\")","v":0},{"$f":"COUNTIF(PrezenceZaČervenec[31],\"N\")+COUNTIF(PrezenceZaČervenec[31],\"O\")","v":0},{"$f":"SUBTOTAL(109,PrezenceZaČervenec[Z])","v":0},{"$f":"SUBTOTAL(109,PrezenceZaČervenec[O])","v":0},{"$f":"SUBTOTAL(109,PrezenceZaČervenec[N])","v":0},{"$f":"SUBTOTAL(109,PrezenceZaČervenec[P])","v":0},{"$f":"SUBTOTAL(109,PrezenceZaČervenec[Dny absence])","v":0}]

{"sheet":"Sestava prezence studentů","index":14,"n_rows":40,"n_cols":37,"rows_kept":40,"merged":[[2,3,2,14],[2,15,2,17],[2,18,2,21],[2,22,2,29],[2,30,2,31],[2,32,2,35],[3,1,3,2],[3,3,3,14],[3,15,3,17],[3,18,3,21],[3,22,3,29],[3,30,3,31],[3,32,3,35],[4,1,4,9],[4,10,4,21],[4,22,4,29],[4,30,4,36],[5,1,5,9],[5,10,5,21],[5,22,5,29],[5,30,5,36],[6,1,6,9],[6,10,6,21],[6,22,6,29],[6,30,6,36],[7,1,7,9],[7,10,7,21],[7,22,7,29],[7,30,7,36],[8,1,8,9],[8,10,8,21],[8,22,8,29],[8,30,8,36],[9,1,9,9],[9,10,9,21],[9,22,9,29],[9,30,9,36],[13,1,14,32],[13,33,13,36],[15,1,16,1],[15,33,16,33],[15,34,16,34],[15,35,16,35],[15,36,16,36],[17,1,18,1],[17,33,18,33],[17,34,18,34],[17,35,18,35],[17,36,18,36],[19,1,20,1],[19,33,20,33],[19,34,20,34],[19,35,20,35],[19,36,20,36],[21,1,22,1],[21,33,22,33],[21,34,22,34],[21,35,22,35],[21,36,22,36],[23,1,24,1],[23,33,24,33],[23,34,24,34],[23,35,24,35],[23,36,24,36],[25,1,26,1],[25,33,26,33],[25,34,26,34],[25,35,26,35],[25,36,26,36],[27,1,28,1],[27,33,28,33],[27,34,28,34],[27,35,28,35],[27,36,28,36],[29,1,30,1],[29,33,30,33],[29,34,30,34],[29,35,30,35],[29,36,30,36],[31,1,32,1],[31,33,32,33],[31,34,32,34],[31,35,32,35],[31,36,32,36],[33,1,34,1],[33,33,34,33],[33,34,34,34],[33,35,34,35],[33,36,34,36],[35,1,36,1],[35,33,36,33],[35,34,36,34],[35,35,36,35],[35,36,36,36],[37,1,38,1],[37,33,38,33],[37,34,38,34],[37,35,38,35],[37,36,38,36],[39,30,39,32]]}
[{"$f":"\"Záznam prezence pro: \"","v":"Záznam prezence pro: "},{"$nulls":7},{"$f":"D4","v":"David Burian"}]
[]
[null,"Č. studenta",null,"Jméno studenta",{"$nulls":11},"Pohlaví",null,null,"Datum narození",{"$nulls":3},"Škola",{"$nulls":7},"Stupeň",null,"Učitel(ka)",{"$nulls":3},"Místnost"]
[null,"S001",null,{"$f":"IFERROR(VLOOKUP(VyhledáníStudenta,SeznamStudentů[],18,FALSE),\"\")","v":"David Burian"},{"$nulls":11},{"$f":"IFERROR(VLOOKUP(VyhledáníStudenta,SeznamStudentů[],4,FALSE),\"\")","v":"M"},null,null,{"$f":"IFERROR(VLOOKUP(VyhledáníStudenta,SeznamStudentů[],5,FALSE),\"\")","v":"1997-03-28"},{"$nulls":3},"School of Fine Art ",{"$nulls":7},7,null,"Jan Dryml",{"$nulls":3},123]
[null,"Jméno rodiče nebo zákonného zástupce 1",{"$nulls":8},"– vztah",{"$nulls":11},"Číslo do práce",{"$nulls":7},"Číslo domů"]
[null,{"$f":"IFERROR(VLOOKUP(VyhledáníStudenta,SeznamStudentů[],6,FALSE),\"\")","v":"Jiří"},{"$nulls":8},{"$f":"IFERROR(VLOOKUP(VyhledáníStudenta,SeznamStudentů[],7,FALSE),\"\")","v":"Burian"},{"$nulls":11},{"$f":"IFERROR(VLOOKUP(VyhledáníStudenta,SeznamStudentů[],8,FALSE),\"\")","v":543222111},{"$nulls":7},{"$f":"IFERROR(VLOOKUP(VyhledáníStudenta,SeznamStudentů[],9,FALSE),\"\")","v":545555789}]
[null,"Jméno rodiče nebo zákonného zástupce 2",{"$nulls":8},"– vztah",{"$nulls":11},"Číslo do práce",{"$nulls":7},"Číslo domů"]
[null,{"$f":"IFERROR(VLOOKUP(VyhledáníStudenta,SeznamStudentů[],10,FALSE),\"\")","v":"Dita Burianová"},{"$nulls":8},{"$f":"IFERROR(VLOOKUP(VyhledáníStudenta,SeznamStudentů[],11,FALSE),\"\")","v":"Matka"},{"$nulls":11},{"$f":"IFERROR(VLOOKUP(VyhledáníStudenta,SeznamStudentů[],12,FALSE),\"\")","v":543222111},{"$nulls":7},{"$f":"IFERROR(VLOOKUP(VyhledáníStudenta,SeznamStudentů[],13,FALSE),\"\")","v":545555789}]
[null,"Nouzový kontakt",{"$nulls":8},"– vztah",{"$nulls":11},"Číslo do práce",{"$nulls":7},"Číslo domů"]
[null,{"$f":"IFERROR(VLOOKUP(VyhledáníStudenta,SeznamStudentů[],14,FALSE),\"\")","v":"Jan Kotas"},{"$nulls":8},{"$f":"IFERROR(VLOOKUP(VyhledáníStudenta,SeznamStudentů[],15,FALSE),\"\")","v":"Dědeček"},{"$nulls":11},{"$f":"IFERROR(VLOOKUP(VyhledáníStudenta,SeznamStudentů[],16,FALSE),\"\")","v":549125111},{"$nulls":7},{"$f":"IFERROR(VLOOKUP(VyhledáníStudenta,SeznamStudentů[],17,FALSE),\"\")","v":549125125}]
[]
[null,{"$f":"Srpen!C3","v":"LEGENDA BAREV "},null,{"$f":"Srpen!D3","v":"Z"},{"$f":"Srpen!E3","v":"Zpoždění"},null,null,{"$f":"Srpen!H3","v":"O"},{"$f":"Srpen!I3","v":"Omluven(a)"},{"$nulls":3},{"$f":"Srpen!L3","v":"N"},{"$f":"Srpen!M3","v":"Neomluven(a)"},{"$nulls":3},{"$f":"Srpen!P3","v":"P"},{"$f":"Srpen!Q3","v":"Přítomnost"},null,null,{"$f":"Srpen!T3","v":"Ne"},{"$f":"Srpen!U3","v":"Není vyučování"}]
[]
[null,"Prezence",{"$nulls":31},"Souhrny prezence"]
[{"$nulls":33},"Z","O","N","P"]
[null,"Srpen",1,2,3,4,5,6,7,8,9,10,11,12,13,14,15,16,17,18,19,20,21,22,23,24,25,26,27,28,29,30,31,{"$f":"COUNTIF($D17:$AH17,Kód1)","v":2},{"$f":"COUNTIF($D17:$AH17,Kód2)","v":1},{"$f":"COUNTIF($D17:$AH17,Kód3)","v":0},{"$f":"COUNTIF($D17:$AH17,Kód4)","v":19}]
[null,null,{"$f":"IFERROR(VLOOKUP(VyhledáníStudenta,PrezenceZaSrpen[],3,FALSE),\"\")","v":"P"},{"$f":"IFERROR(VLOOKUP(VyhledáníStudenta,PrezenceZaSrpen[],4,FALSE),\"\")","v":"P"},{"$f":"IFERROR(VLOOKUP(VyhledáníStudenta,PrezenceZaSrpen[],5,FALSE),\"\")","v":"Z"},{"$f":"IFERROR(VLOOKUP(VyhledáníStudenta,PrezenceZaSrpen[],6,FALSE),\"\")","v":"Z"},{"$f":"IFERROR(VLOOKUP(VyhledáníStudenta,PrezenceZaSrpen[],7,FALSE),\"\")","v":"P"},{"$f":"IFERROR(VLOOKUP(VyhledáníStudenta,PrezenceZaSrpen[],8,FALSE),\"\")","v":"Ne"},{"$f":"IFERROR(VLOOKUP(VyhledáníStudenta,PrezenceZaSrpen[],9,FALSE),\"\")","v":"Ne"},{"$f":"IFERROR(VLOOKUP(VyhledáníStudenta,PrezenceZaSrpen[],10,FALSE),\"\")","v":"P"},{"$f":"IFERROR(VLOOKUP(VyhledáníStudenta,PrezenceZaSrpen[],11,FALSE),\"\")","v":"P"},{"$f":"IFERROR(VLOOKUP(VyhledáníStudenta,PrezenceZaSrpen[],12,FALSE),\"\")","v":"O"},{"$f":"IFERROR(VLOOKUP(VyhledáníStudenta,PrezenceZaSrpen[],13,FALSE),\"\")","v":"P"},{"$f":"IFERROR(VLOOKUP(VyhledáníStudenta,PrezenceZaSrpen[],14,FALSE),\"\")","v":"P"},{"$f":"IFERROR(VLOOKUP(VyhledáníStudenta,PrezenceZaSrpen[],15,FALSE),\"\")","v":"Ne"},{"$f":"IFERROR(VLOOKUP(VyhledáníStudenta,PrezenceZaSrpen[],16,FALSE),\"\")","v":"Ne"},{"$f":"IFERROR(VLOOKUP(VyhledáníStudenta,PrezenceZaSrpen[],17,FALSE),\"\")","v":"P"},{"$f":"IFERROR(VLOOKUP(VyhledáníStudenta,PrezenceZaSrpen[],18,FALSE),\"\")","v":"P"},{"$f":"IFERROR(VLOOKUP(VyhledáníStudenta,PrezenceZaSrpen[],19,FALSE),\"\")","v":"P"},{"$f":"IFERROR(VLOOKUP(VyhledáníStudenta,PrezenceZaSrpen[],20,FALSE),\"\")","v":"P"},{"$f":"IFERROR(VLOOKUP(VyhledáníStudenta,PrezenceZaSrpen[],21,FALSE),\"\")","v":"P"},{"$f":"IFERROR(VLOOKUP(VyhledáníStudenta,PrezenceZaSrpen[],22,FALSE),\"\")","v":"Ne"},{"$f":"IFERROR(VLOOKUP(VyhledáníStudenta,PrezenceZaSrpen[],23,FALSE),\"\")","v":"Ne"},{"$f":"IFERROR(VLOOKUP(VyhledáníStudenta,PrezenceZaSrpen[],24,FALSE),\"\")","v":"P"},{"$f":"IFERROR(VLOOKUP(VyhledáníStudenta,PrezenceZaSrpen[],25,FALSE),\"\")","v":"P"},{"$f":"IFERROR(VLOOKUP(VyhledáníStudenta,PrezenceZaSrpen[],26,FALSE),\"\")","v":"P"},{"$f":"IFERROR(VLOOKUP(VyhledáníStudenta,PrezenceZaSrpen[],27,FALSE),\"\")","v":"P"},{"$f":"IFERROR(VLOOKUP(VyhledáníStudenta,PrezenceZaSrpen[],28,FALSE),\"\")","v":"P"},{"$f":"IFERROR(VLOOKUP(VyhledáníStudenta,PrezenceZaSrpen[],29,FALSE),\"\")","v":"Ne"},{"$f":"IFERROR(VLOOKUP(VyhledáníStudenta,PrezenceZaSrpen[],30,FALSE),\"\")","v":"Ne"},{"$f":"IFERROR(VLOOKUP(VyhledáníStudenta,PrezenceZaSrpen[],31,FALSE),\"\")","v":"P"},{"$f":"IFERROR(VLOOKUP(VyhledáníStudenta,PrezenceZaSrpen[],32,FALSE),\"\")","v":"P"},{"$f":"IFERROR(VLOOKUP(VyhledáníStudenta,PrezenceZaSrpen[],33,FALSE),\"\")","v":"P"}]
[null,"Září",1,2,3,4,5,6,7,8,9,10,11,12,13,14,15,16,17,18,19,20,21,22,23,24,25,26,27,28,29,30,null,{"$f":"COUNTIF($D19:$AH19,Kód1)","v":0},{"$f":"COUNTIF($D19:$AH19,Kód2)","v":0},{"$f":"COUNTIF($D19:$AH19,Kód3)","v":0},{"$f":"COUNTIF($D19:$AH19,Kód4)","v":0}]
[null,null,{"$f":"IFERROR(VLOOKUP(VyhledáníStudenta,PrezenceZaZáří[],3,FALSE),\"\")","v":""},{"$f":"IFERROR(VLOOKUP(VyhledáníStudenta,PrezenceZaZáří[],4,FALSE),\"\")","v":""},{"$f":"IFERROR(VLOOKUP(VyhledáníStudenta,PrezenceZaZáří[],5,FALSE),\"\")","v":""},{"$f":"IFERROR(VLOOKUP(VyhledáníStudenta,PrezenceZaZáří[],6,FALSE),\"\")","v":""},{"$f":"IFERROR(VLOOKUP(VyhledáníStudenta,PrezenceZaZáří[],7,FALSE),\"\")","v":""},{"$f":"IFERROR(VLOOKUP(VyhledáníStudenta,PrezenceZaZáří[],8,FALSE),\"\")","v":""},{"$f":"IFERROR(VLOOKUP(VyhledáníStudenta,PrezenceZaZáří[],9,FALSE),\"\")","v":""},{"$f":"IFERROR(VLOOKUP(VyhledáníStudenta,PrezenceZaZáří[],10,FALSE),\"\")","v":""},{"$f":"IFERROR(VLOOKUP(VyhledáníStudenta,PrezenceZaZáří[],11,FALSE),\"\")","v":""},{"$f":"IFERROR(VLOOKUP(VyhledáníStudenta,PrezenceZaZáří[],12,FALSE),\"\")","v":""},{"$f":"IFERROR(VLOOKUP(VyhledáníStudenta,PrezenceZaZáří[],13,FALSE),\"\")","v":""},{"$f":"IFERROR(VLOOKUP(VyhledáníStudenta,PrezenceZaZáří[],14,FALSE),\"\")","v":""},{"$f":"IFERROR(VLOOKUP(VyhledáníStudenta,PrezenceZaZáří[],15,FALSE),\"\")","v":""},{"$f":"IFERROR(VLOOKUP(VyhledáníStudenta,PrezenceZaZáří[],16,FALSE),\"\")","v":""},{"$f":"IFERROR(VLOOKUP(VyhledáníStudenta,PrezenceZaZáří[],17,FALSE),\"\")","v":""},{"$f":"IFERROR(VLOOKUP(VyhledáníStudenta,PrezenceZaZáří[],18,FALSE),\"\")","v":""},{"$f":"IFERROR(VLOOKUP(VyhledáníStudenta,PrezenceZaZáří[],19,FALSE),\"\")","v":""},{"$f":"IFERROR(VLOOKUP(VyhledáníStudenta,PrezenceZaZáří[],20,FALSE),\"\")","v":""},{"$f":"IFERROR(VLOOKUP(VyhledáníStudenta,PrezenceZaZáří[],21,FALSE),\"\")","v":""},{"$f":"IFERROR(VLOOKUP(VyhledáníStudenta,PrezenceZaZáří[],22,FALSE),\"\")","v":""},{"$f":"IFERROR(VLOOKUP(VyhledáníStudenta,PrezenceZaZáří[],23,FALSE),\"\")","v":""},{"$f":"IFERROR(VLOOKUP(VyhledáníStudenta,PrezenceZaZáří[],24,FALSE),\"\")","v":""},{"$f":"IFERROR(VLOOKUP(VyhledáníStudenta,PrezenceZaZáří[],25,FALSE),\"\")","v":""},{"$f":"IFERROR(VLOOKUP(VyhledáníStudenta,PrezenceZaZáří[],26,FALSE),\"\")","v":""},{"$f":"IFERROR(VLOOKUP(VyhledáníStudenta,PrezenceZaZáří[],27,FALSE),\"\")","v":""},{"$f":"IFERROR(VLOOKUP(VyhledáníStudenta,PrezenceZaZáří[],28,FALSE),\"\")","v":""},{"$f":"IFERROR(VLOOKUP(VyhledáníStudenta,PrezenceZaZáří[],29,FALSE),\"\")","v":""},{"$f":"IFERROR(VLOOKUP(VyhledáníStudenta,PrezenceZaZáří[],30,FALSE),\"\")","v":""},{"$f":"IFERROR(VLOOKUP(VyhledáníStudenta,PrezenceZaZáří[],31,FALSE),\"\")","v":""},{"$f":"IFERROR(VLOOKUP(VyhledáníStudenta,PrezenceZaZáří[],32,FALSE),\"\")","v":""}]
[null,"Říjen",1,2,3,4,5,6,7,8,9,10,11,12,13,14,15,16,17,18,19,20,21,22,23,24,25,26,27,28,29,30,31,{"$f":"COUNTIF($D21:$AH21,Kód1)","v":0},{"$f":"COUNTIF($D21:$AH21,Kód2)","v":0},{"$f":"COUNTIF($D21:$AH21,Kód3)","v":0},{"$f":"COUNTIF($D21:$AH21,Kód4)","v":0}]
[null,null,{"$f":"IFERROR(VLOOKUP(VyhledáníStudenta,PrezenceZaŘíjen[],3,FALSE),\"\")","v":""},{"$f":"IFERROR(VLOOKUP(VyhledáníStudenta,PrezenceZaŘíjen[],4,FALSE),\"\")","v":""},{"$f":"IFERROR(VLOOKUP(VyhledáníStudenta,PrezenceZaŘíjen[],5,FALSE),\"\")","v":""},{"$f":"IFERROR(VLOOKUP(VyhledáníStudenta,PrezenceZaŘíjen[],6,FALSE),\"\")","v":""},{"$f":"IFERROR(VLOOKUP(VyhledáníStudenta,PrezenceZaŘíjen[],7,FALSE),\"\")","v":""},{"$f":"IFERROR(VLOOKUP(VyhledáníStudenta,PrezenceZaŘíjen[],8,FALSE),\"\")","v":""},{"$f":"IFERROR(VLOOKUP(VyhledáníStudenta,PrezenceZaŘíjen[],9,FALSE),\"\")","v":""},{"$f":"IFERROR(VLOOKUP(VyhledáníStudenta,PrezenceZaŘíjen[],10,FALSE),\"\")","v":""},{"$f":"IFERROR(VLOOKUP(VyhledáníStudenta,PrezenceZaŘíjen[],11,FALSE),\"\")","v":""},{"$f":"IFERROR(VLOOKUP(VyhledáníStudenta,PrezenceZaŘíjen[],12,FALSE),\"\")","v":""},{"$f":"IFERROR(VLOOKUP(VyhledáníStudenta,PrezenceZaŘíjen[],13,FALSE),\"\")","v":""},{"$f":"IFERROR(VLOOKUP(VyhledáníStudenta,PrezenceZaŘíjen[],14,FALSE),\"\")","v":""},{"$f":"IFERROR(VLOOKUP(VyhledáníStudenta,PrezenceZaŘíjen[],15,FALSE),\"\")","v":""},{"$f":"IFERROR(VLOOKUP(VyhledáníStudenta,PrezenceZaŘíjen[],16,FALSE),\"\")","v":""},{"$f":"IFERROR(VLOOKUP(VyhledáníStudenta,PrezenceZaŘíjen[],17,FALSE),\"\")","v":""},{"$f":"IFERROR(VLOOKUP(VyhledáníStudenta,PrezenceZaŘíjen[],18,FALSE),\"\")","v":""},{"$f":"IFERROR(VLOOKUP(VyhledáníStudenta,PrezenceZaŘíjen[],19,FALSE),\"\")","v":""},{"$f":"IFERROR(VLOOKUP(VyhledáníStudenta,PrezenceZaŘíjen[],20,FALSE),\"\")","v":""},{"$f":"IFERROR(VLOOKUP(VyhledáníStudenta,PrezenceZaŘíjen[],21,FALSE),\"\")","v":""},{"$f":"IFERROR(VLOOKUP(VyhledáníStudenta,PrezenceZaŘíjen[],22,FALSE),\"\")","v":""},{"$f":"IFERROR(VLOOKUP(VyhledáníStudenta,PrezenceZaŘíjen[],23,FALSE),\"\")","v":""},{"$f":"IFERROR(VLOOKUP(VyhledáníStudenta,PrezenceZaŘíjen[],24,FALSE),\"\")","v":""},{"$f":"IFERROR(VLOOKUP(VyhledáníStudenta,PrezenceZaŘíjen[],25,FALSE),\"\")","v":""},{"$f":"IFERROR(VLOOKUP(VyhledáníStudenta,PrezenceZaŘíjen[],26,FALSE),\"\")","v":""},{"$f":"IFERROR(VLOOKUP(VyhledáníStudenta,PrezenceZaŘíjen[],27,FALSE),\"\")","v":""},{"$f":"IFERROR(VLOOKUP(VyhledáníStudenta,PrezenceZaŘíjen[],28,FALSE),\"\")","v":""},{"$f":"IFERROR(VLOOKUP(VyhledáníStudenta,PrezenceZaŘíjen[],29,FALSE),\"\")","v":""},{"$f":"IFERROR(VLOOKUP(VyhledáníStudenta,PrezenceZaŘíjen[],30,FALSE),\"\")","v":""},{"$f":"IFERROR(VLOOKUP(VyhledáníStudenta,PrezenceZaŘíjen[],31,FALSE),\"\")","v":""},{"$f":"IFERROR(VLOOKUP(VyhledáníStudenta,PrezenceZaŘíjen[],32,FALSE),\"\")","v":""},{"$f":"IFERROR(VLOOKUP(VyhledáníStudenta,PrezenceZaŘíjen[],33,FALSE),\"\")","v":""}]
[null,"Listopad",1,2,3,4,5,6,7,8,9,10,11,12,13,14,15,16,17,18,19,20,21,22,23,24,25,26,27,28,29,30,null,{"$f":"COUNTIF($D23:$AH23,Kód1)","v":0},{"$f":"COUNTIF($D23:$AH23,Kód2)","v":0},{"$f":"COUNTIF($D23:$AH23,Kód3)","v":0},{"$f":"COUNTIF($D23:$AH23,Kód4)","v":0}]
[null,null,{"$f":"IFERROR(VLOOKUP(VyhledáníStudenta,PrezenceZaListopad[],3,FALSE),\"\")","v":""},{"$f":"IFERROR(VLOOKUP(VyhledáníStudenta,PrezenceZaListopad[],4,FALSE),\"\")","v":""},{"$f":"IFERROR(VLOOKUP(VyhledáníStudenta,PrezenceZaListopad[],5,FALSE),\"\")","v":""},{"$f":"IFERROR(VLOOKUP(VyhledáníStudenta,PrezenceZaListopad[],6,FALSE),\"\")","v":""},{"$f":"IFERROR(VLOOKUP(VyhledáníStudenta,PrezenceZaListopad[],7,FALSE),\"\")","v":""},{"$f":"IFERROR(VLOOKUP(VyhledáníStudenta,PrezenceZaListopad[],8,FALSE),\"\")","v":""},{"$f":"IFERROR(VLOOKUP(VyhledáníStudenta,PrezenceZaListopad[],9,FALSE),\"\")","v":""},{"$f":"IFERROR(VLOOKUP(VyhledáníStudenta,PrezenceZaListopad[],10,FALSE),\"\")","v":""},{"$f":"IFERROR(VLOOKUP(VyhledáníStudenta,PrezenceZaListopad[],11,FALSE),\"\")","v":""},{"$f":"IFERROR(VLOOKUP(VyhledáníStudenta,PrezenceZaListopad[],12,FALSE),\"\")","v":""},{"$f":"IFERROR(VLOOKUP(VyhledáníStudenta,PrezenceZaListopad[],13,FALSE),\"\")","v":""},{"$f":"IFERROR(VLOOKUP(VyhledáníStudenta,PrezenceZaListopad[],14,FALSE),\"\")","v":""},{"$f":"IFERROR(VLOOKUP(VyhledáníStudenta,PrezenceZaListopad[],15,FALSE),\"\")","v":""},{"$f":"IFERROR(VLOOKUP(VyhledáníStudenta,PrezenceZaListopad[],16,FALSE),\"\")","v":""},{"$f":"IFERROR(VLOOKUP(VyhledáníStudenta,PrezenceZaListopad[],17,FALSE),\"\")","v":""},{"$f":"IFERROR(VLOOKUP(VyhledáníStudenta,PrezenceZaListopad[],18,FALSE),\"\")","v":""},{"$f":"IFERROR(VLOOKUP(VyhledáníStudenta,PrezenceZaListopad[],19,FALSE),\"\")","v":""},{"$f":"IFERROR(VLOOKUP(VyhledáníStudenta,PrezenceZaListopad[],20,FALSE),\"\")","v":""},{"$f":"IFERROR(VLOOKUP(VyhledáníStudenta,PrezenceZaListopad[],21,FALSE),\"\")","v":""},{"$f":"IFERROR(VLOOKUP(VyhledáníStudenta,PrezenceZaListopad[],22,FALSE),\"\")","v":""},{"$f":"IFERROR(VLOOKUP(VyhledáníStudenta,PrezenceZaListopad[],23,FALSE),\"\")","v":""},{"$f":"IFERROR(VLOOKUP(VyhledáníStudenta,PrezenceZaListopad[],24,FALSE),\"\")","v":""},{"$f":"IFERROR(VLOOKUP(VyhledáníStudenta,PrezenceZaListopad[],25,FALSE),\"\")","v":""},{"$f":"IFERROR(VLOOKUP(VyhledáníStudenta,PrezenceZaListopad[],26,FALSE),\"\")","v":""},{"$f":"IFERROR(VLOOKUP(VyhledáníStudenta,PrezenceZaListopad[],27,FALSE),\"\")","v":""},{"$f":"IFERROR(VLOOKUP(VyhledáníStudenta,PrezenceZaListopad[],28,FALSE),\"\")","v":""},{"$f":"IFERROR(VLOOKUP(VyhledáníStudenta,PrezenceZaListopad[],29,FALSE),\"\")","v":""},{"$f":"IFERROR(VLOOKUP(VyhledáníStudenta,PrezenceZaListopad[],30,FALSE),\"\")","v":""},{"$f":"IFERROR(VLOOKUP(VyhledáníStudenta,PrezenceZaListopad[],31,FALSE),\"\")","v":""},{"$f":"IFERROR(VLOOKUP(VyhledáníStudenta,PrezenceZaListopad[],32,FALSE),\"\")","v":""}]
[null,"Prosinec",1,2,3,4,5,6,7,8,9,10,11,12,13,14,15,16,17,18,19,20,21,22,23,24,25,26,27,28,29,30,31,{"$f":"COUNTIF($D25:$AH25,Kód1)","v":0},{"$f":"COUNTIF($D25:$AH25,Kód2)","v":0},{"$f":"COUNTIF($D25:$AH25,Kód3)","v":0},{"$f":"COUNTIF($D25:$AH25,Kód4)","v":0}]
[null,null,{"$f":"IFERROR(VLOOKUP(VyhledáníStudenta,PrezenceZaProsinec[],3,FALSE),\"\")","v":""},{"$f":"IFERROR(VLOOKUP(VyhledáníStudenta,PrezenceZaProsinec[],4,FALSE),\"\")","v":""},{"$f":"IFERROR(VLOOKUP(VyhledáníStudenta,PrezenceZaProsinec[],5,FALSE),\"\")","v":""},{"$f":"IFERROR(VLOOKUP(VyhledáníStudenta,PrezenceZaProsinec[],6,FALSE),\"\")","v":""},{"$f":"IFERROR(VLOOKUP(VyhledáníStudenta,PrezenceZaProsinec[],7,FALSE),\"\")","v":""},{"$f":"IFERROR(VLOOKUP(VyhledáníStudenta,PrezenceZaProsinec[],8,FALSE),\"\")","v":""},{"$f":"IFERROR(VLOOKUP(VyhledáníStudenta,PrezenceZaProsinec[],9,FALSE),\"\")","v":""},{"$f":"IFERROR(VLOOKUP(VyhledáníStudenta,PrezenceZaProsinec[],10,FALSE),\"\")","v":""},{"$f":"IFERROR(VLOOKUP(VyhledáníStudenta,PrezenceZaProsinec[],11,FALSE),\"\")","v":""},{"$f":"IFERROR(VLOOKUP(VyhledáníStudenta,PrezenceZaProsinec[],12,FALSE),\"\")","v":""},{"$f":"IFERROR(VLOOKUP(VyhledáníStudenta,PrezenceZaProsinec[],13,FALSE),\"\")","v":""},{"$f":"IFERROR(VLOOKUP(VyhledáníStudenta,PrezenceZaProsinec[],14,FALSE),\"\")","v":""},{"$f":"IFERROR(VLOOKUP(VyhledáníStudenta,PrezenceZaProsinec[],15,FALSE),\"\")","v":""},{"$f":"IFERROR(VLOOKUP(VyhledáníStudenta,PrezenceZaProsinec[],16,FALSE),\"\")","v":""},{"$f":"IFERROR(VLOOKUP(VyhledáníStudenta,PrezenceZaProsinec[],17,FALSE),\"\")","v":""},{"$f":"IFERROR(VLOOKUP(VyhledáníStudenta,PrezenceZaProsinec[],18,FALSE),\"\")","v":""},{"$f":"IFERROR(VLOOKUP(VyhledáníStudenta,PrezenceZaProsinec[],19,FALSE),\"\")","v":""},{"$f":"IFERROR(VLOOKUP(VyhledáníStudenta,PrezenceZaProsinec[],20,FALSE),\"\")","v":""},{"$f":"IFERROR(VLOOKUP(VyhledáníStudenta,PrezenceZaProsinec[],21,FALSE),\"\")","v":""},{"$f":"IFERROR(VLOOKUP(VyhledáníStudenta,PrezenceZaProsinec[],22,FALSE),\"\")","v":""},{"$f":"IFERROR(VLOOKUP(VyhledáníStudenta,PrezenceZaProsinec[],23,FALSE),\"\")","v":""},{"$f":"IFERROR(VLOOKUP(VyhledáníStudenta,PrezenceZaProsinec[],24,FALSE),\"\")","v":""},{"$f":"IFERROR(VLOOKUP(VyhledáníStudenta,PrezenceZaProsinec[],25,FALSE),\"\")","v":""},{"$f":"IFERROR(VLOOKUP(VyhledáníStudenta,PrezenceZaProsinec[],26,FALSE),\"\")","v":""},{"$f":"IFERROR(VLOOKUP(VyhledáníStudenta,PrezenceZaProsinec[],27,FALSE),\"\")","v":""},{"$f":"IFERROR(VLOOKUP(VyhledáníStudenta,PrezenceZaProsinec[],28,FALSE),\"\")","v":""},{"$f":"IFERROR(VLOOKUP(VyhledáníStudenta,PrezenceZaProsinec[],29,FALSE),\"\")","v":""},{"$f":"IFERROR(VLOOKUP(VyhledáníStudenta,PrezenceZaProsinec[],30,FALSE),\"\")","v":""},{"$f":"IFERROR(VLOOKUP(VyhledáníStudenta,PrezenceZaProsinec[],31,FALSE),\"\")","v":""},{"$f":"IFERROR(VLOOKUP(VyhledáníStudenta,PrezenceZaProsinec[],32,FALSE),\"\")","v":""},{"$f":"IFERROR(VLOOKUP(VyhledáníStudenta,PrezenceZaProsinec[],33,FALSE),\"\")","v":""}]
[null,"Leden",1,2,3,4,5,6,7,8,9,10,11,12,13,14,15,16,17,18,19,20,21,22,23,24,25,26,27,28,29,30,31,{"$f":"COUNTIF($D27:$AH27,Kód1)","v":0},{"$f":"COUNTIF($D27:$AH27,Kód2)","v":0},{"$f":"COUNTIF($D27:$AH27,Kód3)","v":0},{"$f":"COUNTIF($D27:$AH27,Kód4)","v":0}]
[null,null,{"$f":"IFERROR(VLOOKUP(VyhledáníStudenta,PrezenceZaLeden[],3,FALSE),\"\")","v":""},{"$f":"IFERROR(VLOOKUP(VyhledáníStudenta,PrezenceZaLeden[],4,FALSE),\"\")","v":""},{"$f":"IFERROR(VLOOKUP(VyhledáníStudenta,PrezenceZaLeden[],5,FALSE),\"\")","v":""},{"$f":"IFERROR(VLOOKUP(VyhledáníStudenta,PrezenceZaLeden[],6,FALSE),\"\")","v":""},{"$f":"IFERROR(VLOOKUP(VyhledáníStudenta,PrezenceZaLeden[],7,FALSE),\"\")","v":""},{"$f":"IFERROR(VLOOKUP(VyhledáníStudenta,PrezenceZaLeden[],8,FALSE),\"\")","v":""},{"$f":"IFERROR(VLOOKUP(VyhledáníStudenta,PrezenceZaLeden[],9,FALSE),\"\")","v":""},{"$f":"IFERROR(VLOOKUP(VyhledáníStudenta,PrezenceZaLeden[],10,FALSE),\"\")","v":""},{"$f":"IFERROR(VLOOKUP(VyhledáníStudenta,PrezenceZaLeden[],11,FALSE),\"\")","v":""},{"$f":"IFERROR(VLOOKUP(VyhledáníStudenta,PrezenceZaLeden[],12,FALSE),\"\")","v":""},{"$f":"IFERROR(VLOOKUP(VyhledáníStudenta,PrezenceZaLeden[],13,FALSE),\"\")","v":""},{"$f":"IFERROR(VLOOKUP(VyhledáníStudenta,PrezenceZaLeden[],14,FALSE),\"\")","v":""},{"$f":"IFERROR(VLOOKUP(VyhledáníStudenta,PrezenceZaLeden[],15,FALSE),\"\")","v":""},{"$f":"IFERROR(VLOOKUP(VyhledáníStudenta,PrezenceZaLeden[],16,FALSE),\"\")","v":""},{"$f":"IFERROR(VLOOKUP(VyhledáníStudenta,PrezenceZaLeden[],17,FALSE),\"\")","v":""},{"$f":"IFERROR(VLOOKUP(VyhledáníStudenta,PrezenceZaLeden[],18,FALSE),\"\")","v":""},{"$f":"IFERROR(VLOOKUP(VyhledáníStudenta,PrezenceZaLeden[],19,FALSE),\"\")","v":""},{"$f":"IFERROR(VLOOKUP(VyhledáníStudenta,PrezenceZaLeden[],20,FALSE),\"\")","v":""},{"$f":"IFERROR(VLOOKUP(VyhledáníStudenta,PrezenceZaLeden[],21,FALSE),\"\")","v":""},{"$f":"IFERROR(VLOOKUP(VyhledáníStudenta,PrezenceZaLeden[],22,FALSE),\"\")","v":""},{"$f":"IFERROR(VLOOKUP(VyhledáníStudenta,PrezenceZaLeden[],23,FALSE),\"\")","v":""},{"$f":"IFERROR(VLOOKUP(VyhledáníStudenta,PrezenceZaLeden[],24,FALSE),\"\")","v":""},{"$f":"IFERROR(VLOOKUP(VyhledáníStudenta,PrezenceZaLeden[],25,FALSE),\"\")","v":""},{"$f":"IFERROR(VLOOKUP(VyhledáníStudenta,PrezenceZaLeden[],26,FALSE),\"\")","v":""},{"$f":"IFERROR(VLOOKUP(VyhledáníStudenta,PrezenceZaLeden[],27,FALSE),\"\")","v":""},{"$f":"IFERROR(VLOOKUP(VyhledáníStudenta,PrezenceZaLeden[],28,FALSE),\"\")","v":""},{"$f":"IFERROR(VLOOKUP(VyhledáníStudenta,PrezenceZaLeden[],29,FALSE),\"\")","v":""},{"$f":"IFERROR(VLOOKUP(VyhledáníStudenta,PrezenceZaLeden[],30,FALSE),\"\")","v":""},{"$f":"IFERROR(VLOOKUP(VyhledáníStudenta,PrezenceZaLeden[],31,FALSE),\"\")","v":""},{"$f":"IFERROR(VLOOKUP(VyhledáníStudenta,PrezenceZaLeden[],32,FALSE),\"\")","v":""},{"$f":"IFERROR(VLOOKUP(VyhledáníStudenta,PrezenceZaLeden[],33,FALSE),\"\")","v":""}]
[null,"Únor",1,2,3,4,5,6,7,8,9,10,11,12,13,14,15,16,17,18,19,20,21,22,23,24,25,26,27,28,29,null,null,{"$f":"COUNTIF($D29:$AH29,Kód1)","v":0},{"$f":"COUNTIF($D29:$AH29,Kód2)","v":0},{"$f":"COUNTIF($D29:$AH29,Kód3)","v":0},{"$f":"COUNTIF($D29:$AH29,Kód4)","v":0}]
[null,null,{"$f":"IFERROR(VLOOKUP(VyhledáníStudenta,PrezenceZaÚnor[],3,FALSE),\"\")","v":""},{"$f":"IFERROR(VLOOKUP(VyhledáníStudenta,PrezenceZaÚnor[],4,FALSE),\"\")","v":""},{"$f":"IFERROR(VLOOKUP(VyhledáníStudenta,PrezenceZaÚnor[],5,FALSE),\"\")","v":""},{"$f":"IFERROR(VLOOKUP(VyhledáníStudenta,PrezenceZaÚnor[],6,FALSE),\"\")","v":""},{"$f":"IFERROR(VLOOKUP(VyhledáníStudenta,PrezenceZaÚnor[],7,FALSE),\"\")","v":""},{"$f":"IFERROR(VLOOKUP(VyhledáníStudenta,PrezenceZaÚnor[],8,FALSE),\"\")","v":""},{"$f":"IFERROR(VLOOKUP(VyhledáníStudenta,PrezenceZaÚnor[],9,FALSE),\"\")","v":""},{"$f":"IFERROR(VLOOKUP(VyhledáníStudenta,PrezenceZaÚnor[],10,FALSE),\"\")","v":""},{"$f":"IFERROR(VLOOKUP(VyhledáníStudenta,PrezenceZaÚnor[],11,FALSE),\"\")","v":""},{"$f":"IFERROR(VLOOKUP(VyhledáníStudenta,PrezenceZaÚnor[],12,FALSE),\"\")","v":""},{"$f":"IFERROR(VLOOKUP(VyhledáníStudenta,PrezenceZaÚnor[],13,FALSE),\"\")","v":""},{"$f":"IFERROR(VLOOKUP(VyhledáníStudenta,PrezenceZaÚnor[],14,FALSE),\"\")","v":""},{"$f":"IFERROR(VLOOKUP(VyhledáníStudenta,PrezenceZaÚnor[],15,FALSE),\"\")","v":""},{"$f":"IFERROR(VLOOKUP(VyhledáníStudenta,PrezenceZaÚnor[],16,FALSE),\"\")","v":""},{"$f":"IFERROR(VLOOKUP(VyhledáníStudenta,PrezenceZaÚnor[],17,FALSE),\"\")","v":""},{"$f":"IFERROR(VLOOKUP(VyhledáníStudenta,PrezenceZaÚnor[],18,FALSE),\"\")","v":""},{"$f":"IFERROR(VLOOKUP(VyhledáníStudenta,PrezenceZaÚnor[],19,FALSE),\"\")","v":""},{"$f":"IFERROR(VLOOKUP(VyhledáníStudenta,PrezenceZaÚnor[],20,FALSE),\"\")","v":""},{"$f":"IFERROR(VLOOKUP(VyhledáníStudenta,PrezenceZaÚnor[],21,FALSE),\"\")","v":""},{"$f":"IFERROR(VLOOKUP(VyhledáníStudenta,PrezenceZaÚnor[],22,FALSE),\"\")","v":""},{"$f":"IFERROR(VLOOKUP(VyhledáníStudenta,PrezenceZaÚnor[],23,FALSE),\"\")","v":""},{"$f":"IFERROR(VLOOKUP(VyhledáníStudenta,PrezenceZaÚnor[],24,FALSE),\"\")","v":""},{"$f":"IFERROR(VLOOKUP(VyhledáníStudenta,PrezenceZaÚnor[],25,FALSE),\"\")","v":""},{"$f":"IFERROR(VLOOKUP(VyhledáníStudenta,PrezenceZaÚnor[],26,FALSE),\"\")","v":""},{"$f":"IFERROR(VLOOKUP(VyhledáníStudenta,PrezenceZaÚnor[],27,FALSE),\"\")","v":""},{"$f":"IFERROR(VLOOKUP(VyhledáníStudenta,PrezenceZaÚnor[],28,FALSE),\"\")","v":""},{"$f":"IFERROR(VLOOKUP(VyhledáníStudenta,PrezenceZaÚnor[],29,FALSE),\"\")","v":""},{"$f":"IFERROR(VLOOKUP(VyhledáníStudenta,PrezenceZaÚnor[],30,FALSE),\"\")","v":""},{"$f":"IFERROR(VLOOKUP(VyhledáníStudenta,PrezenceZaÚnor[],31,FALSE),\"\")","v":""}]
[null,"Březen",1,2,3,4,5,6,7,8,9,10,11,12,13,14,15,16,17,18,19,20,21,22,23,24,25,26,27,28,29,30,31,{"$f":"COUNTIF($D31:$AH31,Kód1)","v":0},{"$f":"COUNTIF($D31:$AH31,Kód2)","v":0},{"$f":"COUNTIF($D31:$AH31,Kód3)","v":0},{"$f":"COUNTIF($D31:$AH31,Kód4)","v":0}]
[null,null,{"$f":"IFERROR(VLOOKUP(VyhledáníStudenta,PrezenceZaBřezen[],3,FALSE),\"\")","v":""},{"$f":"IFERROR(VLOOKUP(VyhledáníStudenta,PrezenceZaBřezen[],4,FALSE),\"\")","v":""},{"$f":"IFERROR(VLOOKUP(VyhledáníStudenta,PrezenceZaBřezen[],5,FALSE),\"\")","v":""},{"$f":"IFERROR(VLOOKUP(VyhledáníStudenta,PrezenceZaBřezen[],6,FALSE),\"\")","v":""},{"$f":"IFERROR(VLOOKUP(VyhledáníStudenta,PrezenceZaBřezen[],7,FALSE),\"\")","v":""},{"$f":"IFERROR(VLOOKUP(VyhledáníStudenta,PrezenceZaBřezen[],8,FALSE),\"\")","v":""},{"$f":"IFERROR(VLOOKUP(VyhledáníStudenta,PrezenceZaBřezen[],9,FALSE),\"\")","v":""},{"$f":"IFERROR(VLOOKUP(VyhledáníStudenta,PrezenceZaBřezen[],10,FALSE),\"\")","v":""},{"$f":"IFERROR(VLOOKUP(VyhledáníStudenta,PrezenceZaBřezen[],11,FALSE),\"\")","v":""},{"$f":"IFERROR(VLOOKUP(VyhledáníStudenta,PrezenceZaBřezen[],12,FALSE),\"\")","v":""},{"$f":"IFERROR(VLOOKUP(VyhledáníStudenta,PrezenceZaBřezen[],13,FALSE),\"\")","v":""},{"$f":"IFERROR(VLOOKUP(VyhledáníStudenta,PrezenceZaBřezen[],14,FALSE),\"\")","v":""},{"$f":"IFERROR(VLOOKUP(VyhledáníStudenta,PrezenceZaBřezen[],15,FALSE),\"\")","v":""},{"$f":"IFERROR(VLOOKUP(VyhledáníStudenta,PrezenceZaBřezen[],16,FALSE),\"\")","v":""},{"$f":"IFERROR(VLOOKUP(VyhledáníStudenta,PrezenceZaBřezen[],17,FALSE),\"\")","v":""},{"$f":"IFERROR(VLOOKUP(VyhledáníStudenta,PrezenceZaBřezen[],18,FALSE),\"\")","v":""},{"$f":"IFERROR(VLOOKUP(VyhledáníStudenta,PrezenceZaBřezen[],19,FALSE),\"\")","v":""},{"$f":"IFERROR(VLOOKUP(VyhledáníStudenta,PrezenceZaBřezen[],20,FALSE),\"\")","v":""},{"$f":"IFERROR(VLOOKUP(VyhledáníStudenta,PrezenceZaBřezen[],21,FALSE),\"\")","v":""},{"$f":"IFERROR(VLOOKUP(VyhledáníStudenta,PrezenceZaBřezen[],22,FALSE),\"\")","v":""},{"$f":"IFERROR(VLOOKUP(VyhledáníStudenta,PrezenceZaBřezen[],23,FALSE),\"\")","v":""},{"$f":"IFERROR(VLOOKUP(VyhledáníStudenta,PrezenceZaBřezen[],24,FALSE),\"\")","v":""},{"$f":"IFERROR(VLOOKUP(VyhledáníStudenta,PrezenceZaBřezen[],25,FALSE),\"\")","v":""},{"$f":"IFERROR(VLOOKUP(VyhledáníStudenta,PrezenceZaBřezen[],26,FALSE),\"\")","v":""},{"$f":"IFERROR(VLOOKUP(VyhledáníStudenta,PrezenceZaBřezen[],27,FALSE),\"\")","v":""},{"$f":"IFERROR(VLOOKUP(VyhledáníStudenta,PrezenceZaBřezen[],28,FALSE),\"\")","v":""},{"$f":"IFERROR(VLOOKUP(VyhledáníStudenta,PrezenceZaBřezen[],29,FALSE),\"\")","v":""},{"$f":"IFERROR(VLOOKUP(VyhledáníStudenta,PrezenceZaBřezen[],30,FALSE),\"\")","v":""},{"$f":"IFERROR(VLOOKUP(VyhledáníStudenta,PrezenceZaBřezen[],31,FALSE),\"\")","v":""},{"$f":"IFERROR(VLOOKUP(VyhledáníStudenta,PrezenceZaBřezen[],32,FALSE),\"\")","v":""},{"$f":"IFERROR(VLOOKUP(VyhledáníStudenta,PrezenceZaBřezen[],33,FALSE),\"\")","v":""}]
[null,"Duben",1,2,3,4,5,6,7,8,9,10,11,12,13,14,15,16,17,18,19,20,21,22,23,24,25,26,27,28,29,30,null,{"$f":"COUNTIF($D33:$AH33,Kód1)","v":0},{"$f":"COUNTIF($D33:$AH33,Kód2)","v":0},{"$f":"COUNTIF($D33:$AH33,Kód3)","v":0},{"$f":"COUNTIF($D33:$AH33,Kód4)","v":0}]
[null,null,{"$f":"IFERROR(VLOOKUP(VyhledáníStudenta,PrezenceZaDuben[],3,FALSE),\"\")","v":""},{"$f":"IFERROR(VLOOKUP(VyhledáníStudenta,PrezenceZaDuben[],4,FALSE),\"\")","v":""},{"$f":"IFERROR(VLOOKUP(VyhledáníStudenta,PrezenceZaDuben[],5,FALSE),\"\")","v":""},{"$f":"IFERROR(VLOOKUP(VyhledáníStudenta,PrezenceZaDuben[],6,FALSE),\"\")","v":""},{"$f":"IFERROR(VLOOKUP(VyhledáníStudenta,PrezenceZaDuben[],7,FALSE),\"\")","v":""},{"$f":"IFERROR(VLOOKUP(VyhledáníStudenta,PrezenceZaDuben[],8,FALSE),\"\")","v":""},{"$f":"IFERROR(VLOOKUP(VyhledáníStudenta,PrezenceZaDuben[],9,FALSE),\"\")","v":""},{"$f":"IFERROR(VLOOKUP(VyhledáníStudenta,PrezenceZaDuben[],10,FALSE),\"\")","v":""},{"$f":"IFERROR(VLOOKUP(VyhledáníStudenta,PrezenceZaDuben[],11,FALSE),\"\")","v":""},{"$f":"IFERROR(VLOOKUP(VyhledáníStudenta,PrezenceZaDuben[],12,FALSE),\"\")","v":""},{"$f":"IFERROR(VLOOKUP(VyhledáníStudenta,PrezenceZaDuben[],13,FALSE),\"\")","v":""},{"$f":"IFERROR(VLOOKUP(VyhledáníStudenta,PrezenceZaDuben[],14,FALSE),\"\")","v":""},{"$f":"IFERROR(VLOOKUP(VyhledáníStudenta,PrezenceZaDuben[],15,FALSE),\"\")","v":""},{"$f":"IFERROR(VLOOKUP(VyhledáníStudenta,PrezenceZaDuben[],16,FALSE),\"\")","v":""},{"$f":"IFERROR(VLOOKUP(VyhledáníStudenta,PrezenceZaDuben[],17,FALSE),\"\")","v":""},{"$f":"IFERROR(VLOOKUP(VyhledáníStudenta,PrezenceZaDuben[],18,FALSE),\"\")","v":""},{"$f":"IFERROR(VLOOKUP(VyhledáníStudenta,PrezenceZaDuben[],19,FALSE),\"\")","v":""},{"$f":"IFERROR(VLOOKUP(VyhledáníStudenta,PrezenceZaDuben[],20,FALSE),\"\")","v":""},{"$f":"IFERROR(VLOOKUP(VyhledáníStudenta,PrezenceZaDuben[],21,FALSE),\"\")","v":""},{"$f":"IFERROR(VLOOKUP(VyhledáníStudenta,PrezenceZaDuben[],22,FALSE),\"\")","v":""},{"$f":"IFERROR(VLOOKUP(VyhledáníStudenta,PrezenceZaDuben[],23,FALSE),\"\")","v":""},{"$f":"IFERROR(VLOOKUP(VyhledáníStudenta,PrezenceZaDuben[],24,FALSE),\"\")","v":""},{"$f":"IFERROR(VLOOKUP(VyhledáníStudenta,PrezenceZaDuben[],25,FALSE),\"\")","v":""},{"$f":"IFERROR(VLOOKUP(VyhledáníStudenta,PrezenceZaDuben[],26,FALSE),\"\")","v":""},{"$f":"IFERROR(VLOOKUP(VyhledáníStudenta,PrezenceZaDuben[],27,FALSE),\"\")","v":""},{"$f":"IFERROR(VLOOKUP(VyhledáníStudenta,PrezenceZaDuben[],28,FALSE),\"\")","v":""},{"$f":"IFERROR(VLOOKUP(VyhledáníStudenta,PrezenceZaDuben[],29,FALSE),\"\")","v":""},{"$f":"IFERROR(VLOOKUP(VyhledáníStudenta,PrezenceZaDuben[],30,FALSE),\"\")","v":""},{"$f":"IFERROR(VLOOKUP(VyhledáníStudenta,PrezenceZaDuben[],31,FALSE),\"\")","v":""},{"$f":"IFERROR(VLOOKUP(VyhledáníStudenta,PrezenceZaDuben[],32,FALSE),\"\")","v":""}]
[null,"Květen",1,2,3,4,5,6,7,8,9,10,11,12,13,14,15,16,17,18,19,20,21,22,23,24,25,26,27,28,29,30,31,{"$f":"COUNTIF($D35:$AH35,Kód1)","v":0},{"$f":"COUNTIF($D35:$AH35,Kód2)","v":0},{"$f":"COUNTIF($D35:$AH35,Kód3)","v":0},{"$f":"COUNTIF($D35:$AH35,Kód4)","v":0}]
[null,null,{"$f":"IFERROR(VLOOKUP(VyhledáníStudenta,PrezenceZaKvěten[],3,FALSE),\"\")","v":""},{"$f":"IFERROR(VLOOKUP(VyhledáníStudenta,PrezenceZaKvěten[],4,FALSE),\"\")","v":""},{"$f":"IFERROR(VLOOKUP(VyhledáníStudenta,PrezenceZaKvěten[],5,FALSE),\"\")","v":""},{"$f":"IFERROR(VLOOKUP(VyhledáníStudenta,PrezenceZaKvěten[],6,FALSE),\"\")","v":""},{"$f":"IFERROR(VLOOKUP(VyhledáníStudenta,PrezenceZaKvěten[],7,FALSE),\"\")","v":""},{"$f":"IFERROR(VLOOKUP(VyhledáníStudenta,PrezenceZaKvěten[],8,FALSE),\"\")","v":""},{"$f":"IFERROR(VLOOKUP(VyhledáníStudenta,PrezenceZaKvěten[],9,FALSE),\"\")","v":""},{"$f":"IFERROR(VLOOKUP(VyhledáníStudenta,PrezenceZaKvěten[],10,FALSE),\"\")","v":""},{"$f":"IFERROR(VLOOKUP(VyhledáníStudenta,PrezenceZaKvěten[],11,FALSE),\"\")","v":""},{"$f":"IFERROR(VLOOKUP(VyhledáníStudenta,PrezenceZaKvěten[],12,FALSE),\"\")","v":""},{"$f":"IFERROR(VLOOKUP(VyhledáníStudenta,PrezenceZaKvěten[],13,FALSE),\"\")","v":""},{"$f":"IFERROR(VLOOKUP(VyhledáníStudenta,PrezenceZaKvěten[],14,FALSE),\"\")","v":""},{"$f":"IFERROR(VLOOKUP(VyhledáníStudenta,PrezenceZaKvěten[],15,FALSE),\"\")","v":""},{"$f":"IFERROR(VLOOKUP(VyhledáníStudenta,PrezenceZaKvěten[],16,FALSE),\"\")","v":""},{"$f":"IFERROR(VLOOKUP(VyhledáníStudenta,PrezenceZaKvěten[],17,FALSE),\"\")","v":""},{"$f":"IFERROR(VLOOKUP(VyhledáníStudenta,PrezenceZaKvěten[],18,FALSE),\"\")","v":""},{"$f":"IFERROR(VLOOKUP(VyhledáníStudenta,PrezenceZaKvěten[],19,FALSE),\"\")","v":""},{"$f":"IFERROR(VLOOKUP(VyhledáníStudenta,PrezenceZaKvěten[],20,FALSE),\"\")","v":""},{"$f":"IFERROR(VLOOKUP(VyhledáníStudenta,PrezenceZaKvěten[],21,FALSE),\"\")","v":""},{"$f":"IFERROR(VLOOKUP(VyhledáníStudenta,PrezenceZaKvěten[],22,FALSE),\"\")","v":""},{"$f":"IFERROR(VLOOKUP(VyhledáníStudenta,PrezenceZaKvěten[],23,FALSE),\"\")","v":""},{"$f":"IFERROR(VLOOKUP(VyhledáníStudenta,PrezenceZaKvěten[],24,FALSE),\"\")","v":""},{"$f":"IFERROR(VLOOKUP(VyhledáníStudenta,PrezenceZaKvěten[],25,FALSE),\"\")","v":""},{"$f":"IFERROR(VLOOKUP(VyhledáníStudenta,PrezenceZaKvěten[],26,FALSE),\"\")","v":""},{"$f":"IFERROR(VLOOKUP(VyhledáníStudenta,PrezenceZaKvěten[],27,FALSE),\"\")","v":""},{"$f":"IFERROR(VLOOKUP(VyhledáníStudenta,PrezenceZaKvěten[],28,FALSE),\"\")","v":""},{"$f":"IFERROR(VLOOKUP(VyhledáníStudenta,PrezenceZaKvěten[],29,FALSE),\"\")","v":""},{"$f":"IFERROR(VLOOKUP(VyhledáníStudenta,PrezenceZaKvěten[],30,FALSE),\"\")","v":""},{"$f":"IFERROR(VLOOKUP(VyhledáníStudenta,PrezenceZaKvěten[],31,FALSE),\"\")","v":""},{"$f":"IFERROR(VLOOKUP(VyhledáníStudenta,PrezenceZaKvěten[],32,FALSE),\"\")","v":""},{"$f":"IFERROR(VLOOKUP(VyhledáníStudenta,PrezenceZaKvěten[],33,FALSE),\"\")","v":""}]
[null,"Červen",1,2,3,4,5,6,7,8,9,10,11,12,13,14,15,16,17,18,19,20,21,22,23,24,25,26,27,28,29,30,null,{"$f":"COUNTIF($D37:$AH37,Kód1)","v":0},{"$f":"COUNTIF($D37:$AH37,Kód2)","v":0},{"$f":"COUNTIF($D37:$AH37,Kód3)","v":0},{"$f":"COUNTIF($D37:$AH37,Kód4)","v":0}]
[null,null,{"$f":"IFERROR(VLOOKUP(VyhledáníStudenta,PrezenceZaČerven[],3,FALSE),\"\")","v":""},{"$f":"IFERROR(VLOOKUP(VyhledáníStudenta,PrezenceZaČerven[],4,FALSE),\"\")","v":""},{"$f":"IFERROR(VLOOKUP(VyhledáníStudenta,PrezenceZaČerven[],5,FALSE),\"\")","v":""},{"$f":"IFERROR(VLOOKUP(VyhledáníStudenta,PrezenceZaČerven[],6,FALSE),\"\")","v":""},{"$f":"IFERROR(VLOOKUP(VyhledáníStudenta,PrezenceZaČerven[],7,FALSE),\"\")","v":""},{"$f":"IFERROR(VLOOKUP(VyhledáníStudenta,PrezenceZaČerven[],8,FALSE),\"\")","v":""},{"$f":"IFERROR(VLOOKUP(VyhledáníStudenta,PrezenceZaČerven[],9,FALSE),\"\")","v":""},{"$f":"IFERROR(VLOOKUP(VyhledáníStudenta,PrezenceZaČerven[],10,FALSE),\"\")","v":""},{"$f":"IFERROR(VLOOKUP(VyhledáníStudenta,PrezenceZaČerven[],11,FALSE),\"\")","v":""},{"$f":"IFERROR(VLOOKUP(VyhledáníStudenta,PrezenceZaČerven[],12,FALSE),\"\")","v":""},{"$f":"IFERROR(VLOOKUP(VyhledáníStudenta,PrezenceZaČerven[],13,FALSE),\"\")","v":""},{"$f":"IFERROR(VLOOKUP(VyhledáníStudenta,PrezenceZaČerven[],14,FALSE),\"\")","v":""},{"$f":"IFERROR(VLOOKUP(VyhledáníStudenta,PrezenceZaČerven[],15,FALSE),\"\")","v":""},{"$f":"IFERROR(VLOOKUP(VyhledáníStudenta,PrezenceZaČerven[],16,FALSE),\"\")","v":""},{"$f":"IFERROR(VLOOKUP(VyhledáníStudenta,PrezenceZaČerven[],17,FALSE),\"\")","v":""},{"$f":"IFERROR(VLOOKUP(VyhledáníStudenta,PrezenceZaČerven[],18,FALSE),\"\")","v":""},{"$f":"IFERROR(VLOOKUP(VyhledáníStudenta,PrezenceZaČerven[],19,FALSE),\"\")","v":""},{"$f":"IFERROR(VLOOKUP(VyhledáníStudenta,PrezenceZaČerven[],20,FALSE),\"\")","v":""},{"$f":"IFERROR(VLOOKUP(VyhledáníStudenta,PrezenceZaČerven[],21,FALSE),\"\")","v":""},{"$f":"IFERROR(VLOOKUP(VyhledáníStudenta,PrezenceZaČerven[],22,FALSE),\"\")","v":""},{"$f":"IFERROR(VLOOKUP(VyhledáníStudenta,PrezenceZaČerven[],23,FALSE),\"\")","v":""},{"$f":"IFERROR(VLOOKUP(VyhledáníStudenta,PrezenceZaČerven[],24,FALSE),\"\")","v":""},{"$f":"IFERROR(VLOOKUP(VyhledáníStudenta,PrezenceZaČerven[],25,FALSE),\"\")","v":""},{"$f":"IFERROR(VLOOKUP(VyhledáníStudenta,PrezenceZaČerven[],26,FALSE),\"\")","v":""},{"$f":"IFERROR(VLOOKUP(VyhledáníStudenta,PrezenceZaČerven[],27,FALSE),\"\")","v":""},{"$f":"IFERROR(VLOOKUP(VyhledáníStudenta,PrezenceZaČerven[],28,FALSE),\"\")","v":""},{"$f":"IFERROR(VLOOKUP(VyhledáníStudenta,PrezenceZaČerven[],29,FALSE),\"\")","v":""},{"$f":"IFERROR(VLOOKUP(VyhledáníStudenta,PrezenceZaČerven[],30,FALSE),\"\")","v":""},{"$f":"IFERROR(VLOOKUP(VyhledáníStudenta,PrezenceZaČerven[],31,FALSE),\"\")","v":""},{"$f":"IFERROR(VLOOKUP(VyhledáníStudenta,PrezenceZaČerven[],32,FALSE),\"\")","v":""}]
[null,"Červenec",1,2,3,4,5,6,7,8,9,10,11,12,13,14,15,16,17,18,19,20,21,22,23,24,25,26,27,28,29,30,31,{"$f":"COUNTIF($D39:$AH39,Kód1)","v":0},{"$f":"COUNTIF($D39:$AH39,Kód2)","v":0},{"$f":"COUNTIF($D39:$AH39,Kód3)","v":0},{"$f":"COUNTIF($D39:$AH39,Kód4)","v":0}]
[null,null,{"$f":"IFERROR(VLOOKUP(VyhledáníStudenta,PrezenceZaČervenec[],3,FALSE),\"\")","v":""},{"$f":"IFERROR(VLOOKUP(VyhledáníStudenta,PrezenceZaČervenec[],4,FALSE),\"\")","v":""},{"$f":"IFERROR(VLOOKUP(VyhledáníStudenta,PrezenceZaČervenec[],5,FALSE),\"\")","v":""},{"$f":"IFERROR(VLOOKUP(VyhledáníStudenta,PrezenceZaČervenec[],6,FALSE),\"\")","v":""},{"$f":"IFERROR(VLOOKUP(VyhledáníStudenta,PrezenceZaČervenec[],7,FALSE),\"\")","v":""},{"$f":"IFERROR(VLOOKUP(VyhledáníStudenta,PrezenceZaČervenec[],8,FALSE),\"\")","v":""},{"$f":"IFERROR(VLOOKUP(VyhledáníStudenta,PrezenceZaČervenec[],9,FALSE),\"\")","v":""},{"$f":"IFERROR(VLOOKUP(VyhledáníStudenta,PrezenceZaČervenec[],10,FALSE),\"\")","v":""},{"$f":"IFERROR(VLOOKUP(VyhledáníStudenta,PrezenceZaČervenec[],11,FALSE),\"\")","v":""},{"$f":"IFERROR(VLOOKUP(VyhledáníStudenta,PrezenceZaČervenec[],12,FALSE),\"\")","v":""},{"$f":"IFERROR(VLOOKUP(VyhledáníStudenta,PrezenceZaČervenec[],13,FALSE),\"\")","v":""},{"$f":"IFERROR(VLOOKUP(VyhledáníStudenta,PrezenceZaČervenec[],14,FALSE),\"\")","v":""},{"$f":"IFERROR(VLOOKUP(VyhledáníStudenta,PrezenceZaČervenec[],15,FALSE),\"\")","v":""},{"$f":"IFERROR(VLOOKUP(VyhledáníStudenta,PrezenceZaČervenec[],16,FALSE),\"\")","v":""},{"$f":"IFERROR(VLOOKUP(VyhledáníStudenta,PrezenceZaČervenec[],17,FALSE),\"\")","v":""},{"$f":"IFERROR(VLOOKUP(VyhledáníStudenta,PrezenceZaČervenec[],18,FALSE),\"\")","v":""},{"$f":"IFERROR(VLOOKUP(VyhledáníStudenta,PrezenceZaČervenec[],19,FALSE),\"\")","v":""},{"$f":"IFERROR(VLOOKUP(VyhledáníStudenta,PrezenceZaČervenec[],20,FALSE),\"\")","v":""},{"$f":"IFERROR(VLOOKUP(VyhledáníStudenta,PrezenceZaČervenec[],21,FALSE),\"\")","v":""},{"$f":"IFERROR(VLOOKUP(VyhledáníStudenta,PrezenceZaČervenec[],22,FALSE),\"\")","v":""},{"$f":"IFERROR(VLOOKUP(VyhledáníStudenta,PrezenceZaČervenec[],23,FALSE),\"\")","v":""},{"$f":"IFERROR(VLOOKUP(VyhledáníStudenta,PrezenceZaČervenec[],24,FALSE),\"\")","v":""},{"$f":"IFERROR(VLOOKUP(VyhledáníStudenta,PrezenceZaČervenec[],25,FALSE),\"\")","v":""},{"$f":"IFERROR(VLOOKUP(VyhledáníStudenta,PrezenceZaČervenec[],26,FALSE),\"\")","v":""},{"$f":"IFERROR(VLOOKUP(VyhledáníStudenta,PrezenceZaČervenec[],27,FALSE),\"\")","v":""},{"$f":"IFERROR(VLOOKUP(VyhledáníStudenta,PrezenceZaČervenec[],28,FALSE),\"\")","v":""},{"$f":"IFERROR(VLOOKUP(VyhledáníStudenta,PrezenceZaČervenec[],29,FALSE),\"\")","v":""},{"$f":"IFERROR(VLOOKUP(VyhledáníStudenta,PrezenceZaČervenec[],30,FALSE),\"\")","v":""},{"$f":"IFERROR(VLOOKUP(VyhledáníStudenta,PrezenceZaČervenec[],31,FALSE),\"\")","v":""},{"$f":"IFERROR(VLOOKUP(VyhledáníStudenta,PrezenceZaČervenec[],32,FALSE),\"\")","v":""},{"$f":"IFERROR(VLOOKUP(VyhledáníStudenta,PrezenceZaČervenec[],33,FALSE),\"\")","v":""}]
[{"$nulls":30},"Souhrny",null,null,{"$f":"SUM(AH16:AH39)","v":2},{"$f":"SUM(AI16:AI39)","v":1},{"$f":"SUM(AJ16:AJ39)","v":0},{"$f":"SUM(AK16:AK39)","v":19}]